Workbook

Sheet Отчет
A1: Кумулятивный рейтинг студентов
A2: Дата выгрузки: 15.11.2018
A3: Период: с начала обучения по 2017/2018 учебный год II семестр
A4: Факультет/отделение: Факультет бизнеса и менеджмента
A5: Направление подготовки: Бизнес-информатика
A6: Уровень образования, номер курса: Магистратура 1 курс
A8: Место | B8: Номер зачетной книжки | C8: Студент | D8: ID | E8: Группа | F8: Образовательная программа студента | G8: Вид места | I8: Кумулятивный рейтинг | J8: Сумма оценок | K8: Количество оценок | L8: Средняя оценка | M8: Минимальный балл | N8: Номер места | O8: 2016/2017 учебный год 4 модуль | P8: 2017/2018 учебный год 1 модуль | W8: 2017/2018 учебный год 2 модуль | AD8: 2017/2018 учебный год 3 модуль | AT8: 2017/2018 учебный год 4 модуль
O9: Экзамен | P9: Экзамен | W9: Экзамен | AD9: Экзамен | AT9: Экзамен
O10: Анализ социальных сетей | P10: Анализ данных | Q10: Архитектура предприятия | R10: Методология и инструментарий для моделирования бизнес-процессов | S10: Проектирование информационных систем | T10: Процессы и инструменты управления проектами | U10: Системный анализ и проектирование | V10: Экономико-математическое моделирование | W10: Научно-исследовательский семинар | X10: Организационно-правовые аспекты информационной безопасности | Y10: Предпринимательство и модели бизнеса в Интернет | Z10: Русский язык как иностранный. Уровень 1. Elementary | AA10: Системный анализ и проектирование | AB10: Совершенствование архитектуры предприятия | AC10: Совершенствование архитектуры предприятия | AD10: Актуальные проблемы конкурентной (деловой) разведки | AE10: Анализ поведения потребителя в коммерческих информационных сетях | AF10: Безопасность информации в государственном и частном секторах | AG10: История технологического развития общества | AH10: Методология и практика ИТ-консалтинга | AI10: Перспективные методы анализа данных и Большие данные в бизнес-интеллекте | AJ10: Практика управленческих решений в системе международного бизнеса | AK10: Предпринимательство и модели бизнеса в Интернет | AL10: Психология креативности | AM10: Психология семейных отношений (как психологи вывели Формулу качества брака) | AN10: Сбор, хранение и обработка данных в гетерогенных распределенных компьютерных сетях | AO10: Системы бизнес-интеллекта | AP10: Системы поддержки принятия решений | AQ10: Теория поколений для бизнеса, политики, общества | AR10: Управление Интернет-проектами | AS10: Управление рисками IT-проектов | AT10: 3-D моделирование в компьютерной графике в пакете AutoCAD и трёхмерное мышление человека | AU10: Анализ данных | AV10: Анализ неструктурированной информации | AW10: Анализ социальных сетей | AX10: Введение в нейроэкономику | AY10: Визуализация данных | AZ10: Выбор и методологии внедрения ИТ-решений | BA10: Дебаты на английском языке | BB10: Интеграция бизнес-процессов на базе информационных систем | BC10: Интеллектуальные технологии в бизнесе | BD10: Информационно-аналитические системы управления корпоративной результативностью на базе решений IBM Cognos TM1 | BE10: Информационные системы корпоративного управления на платформе 1С | BF10: Исследования в Интернет | BG10: Криптографические методы защиты информации | BH10: Культурное потребление и исследования аудитории | BI10: Культурный ландшафт города | BJ10: Курсовая работа | BK10: Курсовая работа | BL10: Литература русской эмиграции | BM10: Машинное обучение с использованием больших данных | BN10: Международный деловой этикет и дипломатический протокол | BO10: Моделирование больших данных и системы управления большими данными | BP10: Научно-исследовательский семинар | BQ10: Научно-исследовательский семинар "Информационная бизнес-аналитика" | BR10: Научно-исследовательский семинар "Моделирование и оптимизация бизнес-процессов" | BS10: Научно-исследовательский семинар "Проблемы управления информационной безопасностью | BT10: Научно-исследовательский семинар "Управление жизненным циклом информационных систем" | BU10: Научно-исследовательский семинар "Электронный бизнес: исследования, разработки, обучение" | BV10: Облачные вычисления | BW10: Основные виды академического письма | BX10: Основы SAP | BY10: Основы астрономии | BZ10: Правовые основы высокотехнологичного бизнеса | CA10: Прикладные аспекты машинного обучения | CB10: Применение облачных вычислений, часть I: Облачные системы и инфраструктура | CC10: Применение облачных вычислений, часть II: Применение технологий больших данных в облачных системах | CD10: Прогностическая аналитика | CE10: Программирование в R | CF10: Проектирование систем | CG10: Проектирование человеко-машинного взаимодействия | CH10: Психология управления организацией | CI10: Разработка и внедрение систем больших данных | CJ10: Системы управления эффективностью бизнеса | CK10: Современный менеджмент данных | CL10: Специальные методики сбора и анализа данных в маркетинговых исследованиях | CM10: Статистические методы в обеспечении информационной безопасности | CN10: Теоретические аспекты безопасности компьютерных систем | CO10: Техника презентаций | CP10: Технологии извлечения знаний из большого объема данных | CQ10: Технологии манипулирования сознанием и поведением людей: выявление, анализ, противодействие | CR10: Технологические основы разработки и управления интернет-проектами | CS10: Типовые подсистемы и решения обеспечения информационной безопасности | CT10: Управление IT проектами | CU10: Управление IT-сервисами | CV10: Управление внедрением информационных систем | CW10: Управление развитием информационных систем | CX10: Управление устойчивостью бизнеса | CY10: Финансовые рынки, институты и инструменты | CZ10: Экономическая психология | DA10: Экстремальная психология | DB10: Электронный бизнес
A11: Число кумулятивных кредитов: | O11: 3 | P11: 3 | Q11: 3 | R11: 3 | S11: 3 | T11: 2 | U11: 3 | V11: 3 | W11: 5 | X11: 4 | Y11: 3 | Z11: 6 | AA11: 4 | AB11: 3 | AC11: 4 | AD11: 3 | AE11: 5 | AF11: 4 | AG11: 3 | AH11: 5 | AI11: 5 | AJ11: 3 | AK11: 6 | AL11: 3 | AM11: 3 | AN11: 5 | AO11: 5 | AP11: 5 | AQ11: 3 | AR11: 5 | AS11: 5 | AT11: 3 | AU11: 3 | AV11: 5 | AW11: 3 | AX11: 3 | AY11: 4 | AZ11: 3 | BA11: 3 | BB11: 5 | BC11: 3 | BD11: 5 | BE11: 3 | BF11: 5 | BG11: 6 | BH11: 3 | BI11: 3 | BJ11: 5 | BK11: 6 | BL11: 3 | BM11: 3 | BN11: 3 | BO11: 3 | BP11: 6 | BQ11: 10 | BR11: 10 | BS11: 10 | BT11: 10 | BU11: 10 | BV11: 3 | BW11: 3 | BX11: 5 | BY11: 3 | BZ11: 5 | CA11: 4 | CB11: 3 | CC11: 3 | CD11: 5 | CE11: 3 | CF11: 5 | CG11: 3 | CH11: 3 | CI11: 5 | CJ11: 5 | CK11: 3 | CL11: 3 | CM11: 5 | CN11: 5 | CO11: 3 | CP11: 3 | CQ11: 3 | CR11: 5 | CS11: 5 | CT11: 3 | CU11: 5 | CV11: 6 | CW11: 5 | CX11: 3 | CY11: 3 | CZ11: 3 | DA11: 3 | DB11: 5
A12: 1 | B12: М171МСБДН002 | C12: Вилкова Елена Александровна | D12: 1937366422 | E12: МБД171 | F12: Системы больших данных | G12: Бюдж | H12: =MATCH(D12,Данные!$D$1:$D$65536,0) -> 10 | I12: 674 | J12: 167 | K12: 18 | L12: =IF(K12 > 0,J12/K12,0) -> 9.277777778 | M12: =MIN($O12:DB12) -> 7 | N12: 1 | P12: 7 | Q12: 9 | V12: 8 | W12: 10 | AA12: 10 | AB12: 9 | AI12: 10 | AN12: 10 | AW12: 9 | AY12: 10 | BF12: 9 | BJ12: 9 | BP12: 9 | BV12: 10 | CA12: 10 | CI12: 10 | CK12: 10 | CP12: 8
A13: 2 | B13: М171МСБДН024 | C13: Прохоренков Дмитрий Викторович | D13: 1940816185 | E13: МБД171 | F13: Системы больших данных | G13: Комм | H13: =MATCH(D13,Данные!$D$1:$D$65536,0) -> 26 | I13: 660 | J13: 168 | K13: 18 | L13: =IF(K13 > 0,J13/K13,0) -> 9.333333333 | M13: =MIN($O13:DB13) -> 7 | N13: 2 | P13: 7 | Q13: 9 | V13: 9 | W13: 10 | AA13: 10 | AB13: 8 | AI13: 10 | AN13: 10 | AW13: 8 | AY13: 10 | BJ13: 10 | BO13: 10 | BP13: 9 | BV13: 10 | CA13: 9 | CI13: 10 | CK13: 10 | CP13: 9
A14: 3 | B14: М171МБИИН090 | C14: Рябов Дмитрий Валерьевич | D14: 1941989108 | E14: МБИ173 | F14: Бизнес-информатика | G14: Бюдж | H14: =MATCH(D14,Данные!$D$1:$D$65536,0) -> 89 | I14: 651 | J14: 137 | K14: 14 | L14: =IF(K14 > 0,J14/K14,0) -> 9.785714286 | M14: =MIN($O14:DB14) -> 8 | N14: 3 | R14: 10 | S14: 8 | U14: 9 | V14: 10 | AC14: 10 | AH14: 10 | AS14: 10 | AZ14: 10 | BB14: 10 | BK14: 10 | BT14: 10 | CU14: 10 | CV14: 10 | CW14: 10
A15: 4 | B15: М171МБИИН089 | C15: Павлова Татьяна Михайловна | D15: 1941989121 | E15: МБИ172 | F15: Бизнес-информатика | G15: Комм | H15: =MATCH(D15,Данные!$D$1:$D$65536,0) -> 90 | I15: 640 | J15: 135 | K15: 14 | L15: =IF(K15 > 0,J15/K15,0) -> 9.642857143 | M15: =MIN($O15:DB15) -> 9 | N15: 4 | R15: 10 | S15: 9 | U15: 9 | V15: 10 | AC15: 10 | AH15: 10 | AS15: 10 | AZ15: 9 | BB15: 9 | BK15: 10 | BT15: 10 | CU15: 10 | CV15: 9 | CW15: 10
A16: 5 - 6 | B16: М171МСБДН001 | C16: Архипенко Анастасия Дмитриевна | D16: 1937366216 | E16: МБД171 | F16: Системы больших данных | G16: Бюдж | H16: =MATCH(D16,Данные!$D$1:$D$65536,0) -> 8 | I16: 638 | J16: 157 | K16: 17 | L16: =IF(K16 > 0,J16/K16,0) -> 9.235294118 | M16: =MIN($O16:DB16) -> 8 | N16: 5 | P16: 10 | Q16: 9 | V16: 8 | W16: 10 | AA16: 9 | AB16: 9 | AI16: 9 | AN16: 10 | AW16: 9 | AY16: 10 | BF16: 8 | BJ16: 10 | BO16: 9 | BP16: 8 | CA16: 10 | CI16: 10 | CK16: 9
B17: М171МСБДН017 | C17: Шеин Александр Владимирович | D17: 1937366348 | E17: МБД171 | F17: Системы больших данных | G17: Бюдж | H17: =MATCH(D17,Данные!$D$1:$D$65536,0) -> 14 | I17: 638 | J17: 162 | K17: 18 | L17: =IF(K17 > 0,J17/K17,0) -> 9 | M17: =MIN($O17:DB17) -> 7 | N17: 6 | P17: 8 | Q17: 7 | V17: 8 | W17: 10 | AA17: 10 | AB17: 7 | AI17: 9 | AL17: 9 | AN17: 9 | AY17: 9 | BJ17: 10 | BP17: 9 | BV17: 8 | CA17: 10 | CC17: 9 | CI17: 10 | CK17: 10 | CP17: 10
A18: 7 | B18: М171МБИИН082 | C18: Бородко Вера Николаевна | D18: 1941989199 | E18: МБИ171 | F18: Бизнес-информатика | G18: Комм | H18: =MATCH(D18,Данные!$D$1:$D$65536,0) -> 100 | I18: 633 | J18: 135 | K18: 14 | L18: =IF(K18 > 0,J18/K18,0) -> 9.642857143 | M18: =MIN($O18:DB18) -> 8 | N18: 7 | R18: 10 | S18: 10 | U18: 10 | V18: 10 | AC18: 9 | AH18: 10 | AS18: 10 | AZ18: 10 | BB18: 9 | BK18: 9 | BT18: 10 | CU18: 10 | CV18: 8 | CW18: 10
A19: 8 | B19: М171МСБДН009 | C19: Кулаков Александр Сергеевич | D19: 1937366334 | E19: МБД171 | F19: Системы больших данных | G19: Бюдж | H19: =MATCH(D19,Данные!$D$1:$D$65536,0) -> 16 | I19: 611 | J19: 154 | K19: 17 | L19: =IF(K19 > 0,J19/K19,0) -> 9.058823529 | M19: =MIN($O19:DB19) -> 7 | N19: 8 | P19: 7 | Q19: 7 | V19: 8 | W19: 9 | AA19: 9 | AB19: 9 | AI19: 10 | AN19: 10 | AW19: 9 | AY19: 10 | BJ19: 8 | BP19: 9 | BV19: 10 | CA19: 9 | CE19: 10 | CI19: 10 | CK19: 10
A20: 9 | B20: М171МУБЕЗ007 | C20: Иванов Владислав Сергеевич | D20: 1937370369 | E20: МИБ171 | F20: Управление информационной безопасностью | G20: Бюдж | H20: =MATCH(D20,Данные!$D$1:$D$65536,0) -> 73 | I20: 605 | J20: 132 | K20: 14 | L20: =IF(K20 > 0,J20/K20,0) -> 9.428571429 | M20: =MIN($O20:DB20) -> 8 | N20: 9 | R20: 9 | T20: 8 | U20: 10 | V20: 8 | X20: 10 | AC20: 9 | AD20: 9 | AF20: 10 | BG20: 10 | BK20: 10 | BS20: 10 | CM20: 9 | CN20: 10 | CS20: 10
A21: 10 | B21: М171МСБДН005 | C21: Дякин Николай Валерьевич | D21: 1937366231 | E21: МБД171 | F21: Системы больших данных | G21: Бюдж | H21: =MATCH(D21,Данные!$D$1:$D$65536,0) -> 4 | I21: 602 | J21: 153 | K21: 18 | L21: =IF(K21 > 0,J21/K21,0) -> 8.5 | M21: =MIN($O21:DB21) -> 7 | N21: 10 | P21: 9 | Q21: 8 | V21: 8 | W21: 8 | AA21: 9 | AB21: 7 | AI21: 10 | AN21: 8 | AW21: 8 | AY21: 9 | BJ21: 9 | BP21: 9 | BV21: 8 | CA21: 8 | CB21: 9 | CI21: 10 | CK21: 8 | CP21: 8
A22: 11 | B22: М171МБИИН093 | C22: Бытка Дарья | D22: 1944931265 | E22: МБИ171 | F22: Бизнес-информатика | G22: Бюдж | H22: =MATCH(D22,Данные!$D$1:$D$65536,0) -> 51 | I22: 601 | J22: 128 | K22: 14 | L22: =IF(K22 > 0,J22/K22,0) -> 9.142857143 | M22: =MIN($O22:DB22) -> 8 | N22: 11 | R22: 9 | S22: 10 | U22: 10 | V22: 8 | AC22: 8 | AH22: 9 | BB22: 9 | BD22: 9 | BK22: 8 | BT22: 9 | CU22: 10 | CV22: 10 | CW22: 9 | CX22: 10
A23: 12 | B23: М171МБИИН036 | C23: Конова Марина Валерьевна | D23: 1937363600 | E23: МБИ172 | F23: Бизнес-информатика | G23: Бюдж | H23: =MATCH(D23,Данные!$D$1:$D$65536,0) -> 53 | I23: 600 | J23: 127 | K23: 14 | L23: =IF(K23 > 0,J23/K23,0) -> 9.071428571 | M23: =MIN($O23:DB23) -> 6 | N23: 12 | R23: 10 | S23: 8 | U23: 10 | V23: 10 | AC23: 9 | AH23: 8 | AS23: 10 | AZ23: 9 | BB23: 9 | BK23: 10 | BT23: 10 | CU23: 10 | CV23: 8 | CW23: 6
A24: 13 | B24: М171МЭЛБЗ025 | C24: Юлдашева Камилла Адилевна | D24: 1937372852 | E24: МЭБ171 | F24: Электронный бизнес | G24: Бюдж | H24: =MATCH(D24,Данные!$D$1:$D$65536,0) -> 82 | I24: 597 | J24: 128 | K24: 14 | L24: =IF(K24 > 0,J24/K24,0) -> 9.142857143 | M24: =MIN($O24:DB24) -> 7 | N24: 13 | R24: 10 | U24: 9 | V24: 7 | Y24: 10 | AC24: 8 | AE24: 10 | AK24: 9 | AR24: 10 | BF24: 9 | BK24: 8 | BU24: 8 | BZ24: 10 | CL24: 10 | CR24: 10
A25: 14 | B25: М171МУБЕЗ013 | C25: Осадчая Алина Дмитриевна | D25: 1937370517 | E25: МИБ171 | F25: Управление информационной безопасностью | G25: Бюдж | H25: =MATCH(D25,Данные!$D$1:$D$65536,0) -> 66 | I25: 596 | J25: 131 | K25: 14 | L25: =IF(K25 > 0,J25/K25,0) -> 9.357142857 | M25: =MIN($O25:DB25) -> 7 | N25: 14 | R25: 10 | T25: 10 | U25: 9 | V25: 7 | X25: 10 | AC25: 7 | AD25: 10 | AF25: 10 | BG25: 10 | BK25: 10 | BS25: 10 | CM25: 9 | CN25: 9 | CS25: 10
A26: 15 | B26: М171МБИИН058 | C26: Сафохин Андрей Дмитриевич | D26: 1937363386 | E26: МБИ173 | F26: Бизнес-информатика | G26: Бюдж | H26: =MATCH(D26,Данные!$D$1:$D$65536,0) -> 55 | I26: 589 | J26: 124 | K26: 14 | L26: =IF(K26 > 0,J26/K26,0) -> 8.857142857 | M26: =MIN($O26:DB26) -> 6 | N26: 15 | R26: 10 | S26: 8 | U26: 10 | V26: 10 | AC26: 6 | AH26: 8 | AS26: 10 | BB26: 8 | BK26: 9 | BT26: 10 | CH26: 8 | CU26: 10 | CV26: 8 | CW26: 9
A27: 16 | B27: М171МЭЛБЗ022 | C27: Суряднов Дмитрий Юрьевич | D27: 1937373025 | E27: МЭБ171 | F27: Электронный бизнес | G27: Бюдж | H27: =MATCH(D27,Данные!$D$1:$D$65536,0) -> 80 | I27: 586 | J27: 123 | K27: 14 | L27: =IF(K27 > 0,J27/K27,0) -> 8.785714286 | M27: =MIN($O27:DB27) -> 7 | N27: 16 | R27: 10 | U27: 10 | V27: 7 | Y27: 8 | AC27: 8 | AE27: 8 | AK27: 9 | AR27: 9 | BF27: 10 | BK27: 9 | BU27: 9 | BZ27: 10 | CR27: 9 | CY27: 7
A28: 17 - 18 | B28: М171МБИИН034 | C28: Клименко Екатерина Андреевна | D28: 1937364110 | E28: МБИ172 | F28: Бизнес-информатика | G28: Бюдж | H28: =MATCH(D28,Данные!$D$1:$D$65536,0) -> 58 | I28: 581 | J28: 123 | K28: 14 | L28: =IF(K28 > 0,J28/K28,0) -> 8.785714286 | M28: =MIN($O28:DB28) -> 6 | N28: 17 | R28: 10 | S28: 8 | U28: 10 | V28: 8 | AC28: 6 | AH28: 9 | BB28: 8 | BD28: 10 | BK28: 9 | BT28: 9 | CJ28: 10 | CO28: 9 | CV28: 8 | CW28: 9
B29: М171МБИИН075 | C29: Мирской Александр Леонидович | D29: 1940750974 | E29: МБИ172 | F29: Бизнес-информатика | G29: Комм | H29: =MATCH(D29,Данные!$D$1:$D$65536,0) -> 92 | I29: 581 | J29: 122 | K29: 14 | L29: =IF(K29 > 0,J29/K29,0) -> 8.714285714 | M29: =MIN($O29:DB29) -> 7 | N29: 18 | R29: 9 | S29: 8 | U29: 9 | V29: 7 | AC29: 8 | AJ29: 9 | AO29: 9 | AP29: 8 | AV29: 9 | BB29: 9 | BD29: 10 | BK29: 8 | BQ29: 9 | CV29: 10
A30: 19 | B30: М171МУБЕЗ005 | C30: Дарбишева Патимат Гаджимурадовна | D30: 1937370480 | E30: МИБ171 | F30: Управление информационной безопасностью | G30: Бюдж | H30: =MATCH(D30,Данные!$D$1:$D$65536,0) -> 78 | I30: 576 | J30: 125 | K30: 14 | L30: =IF(K30 > 0,J30/K30,0) -> 8.928571429 | M30: =MIN($O30:DB30) -> 5 | N30: 19 | R30: 9 | T30: 9 | U30: 9 | V30: 5 | X30: 10 | AC30: 7 | AD30: 10 | AF30: 8 | BG30: 9 | BK30: 10 | BS30: 10 | CM30: 10 | CN30: 9 | CS30: 10
A31: 20 | B31: М171МБИИН077 | C31: Музыка Наталия Константиновна | D31: 1940815787 | E31: МБИ172 | F31: Бизнес-информатика | G31: Бюдж | H31: =MATCH(D31,Данные!$D$1:$D$65536,0) -> 97 | I31: 573 | J31: 121 | K31: 14 | L31: =IF(K31 > 0,J31/K31,0) -> 8.642857143 | M31: =MIN($O31:DB31) -> 6 | N31: 20 | R31: 9 | S31: 8 | U31: 9 | V31: 6 | AC31: 8 | AH31: 8 | AS31: 10 | AT31: 9 | BB31: 9 | BK31: 9 | BT31: 8 | CU31: 10 | CV31: 9 | CW31: 9
A32: 21 | B32: М171МСБДН018 | C32: Шубина Виктория Ильинична | D32: 1937366394 | E32: МБД171 | F32: Системы больших данных | G32: Бюдж | H32: =MATCH(D32,Данные!$D$1:$D$65536,0) -> 6 | I32: 572 | J32: 142 | K32: 17 | L32: =IF(K32 > 0,J32/K32,0) -> 8.352941176 | M32: =MIN($O32:DB32) -> 5 | N32: 21 | P32: 7 | Q32: 7 | V32: 7 | W32: 10 | AA32: 10 | AB32: 8 | AI32: 9 | AN32: 8 | AX32: 9 | AY32: 9 | BJ32: 10 | BP32: 9 | BV32: 9 | CA32: 6 | CI32: 10 | CK32: 9 | CP32: 5
A33: 22 - 23 | B33: М171МУБЕЗ020 | C33: Смирнов Данил Вадимович | D33: 1937370596 | E33: МИБ171 | F33: Управление информационной безопасностью | G33: Бюдж | H33: =MATCH(D33,Данные!$D$1:$D$65536,0) -> 69 | I33: 570 | J33: 124 | K33: 14 | L33: =IF(K33 > 0,J33/K33,0) -> 8.857142857 | M33: =MIN($O33:DB33) -> 8 | N33: 22 | R33: 9 | T33: 8 | U33: 10 | V33: 8 | X33: 8 | AC33: 9 | AD33: 8 | AF33: 8 | BG33: 9 | BK33: 10 | BS33: 10 | CM33: 8 | CN33: 9 | CS33: 10
B34: М171МСБДН003 | C34: Гатина Эльмира Ринатовна | D34: 1937366366 | E34: МБД171 | F34: Системы больших данных | G34: Бюдж | H34: =MATCH(D34,Данные!$D$1:$D$65536,0) -> 22 | I34: 570 | J34: 145 | K34: 17 | L34: =IF(K34 > 0,J34/K34,0) -> 8.529411765 | M34: =MIN($O34:DB34) -> 6 | N34: 23 | P34: 10 | Q34: 8 | V34: 9 | W34: 8 | AA34: 9 | AB34: 8 | AI34: 9 | AN34: 7 | AW34: 6 | AY34: 8 | BJ34: 9 | BP34: 8 | BV34: 8 | CA34: 8 | CI34: 10 | CK34: 10 | CP34: 10
A35: 24 | B35: М171МБИИН018 | C35: Войнов Евгений Вадимович | D35: 1937363332 | E35: МБИ171 | F35: Бизнес-информатика | G35: Бюдж | H35: =MATCH(D35,Данные!$D$1:$D$65536,0) -> 54 | I35: 568 | J35: 119 | K35: 14 | L35: =IF(K35 > 0,J35/K35,0) -> 8.5 | M35: =MIN($O35:DB35) -> 8 | N35: 24 | R35: 8 | S35: 8 | U35: 9 | V35: 10 | AC35: 8 | AH35: 8 | AS35: 8 | AZ35: 8 | BB35: 8 | BK35: 9 | BT35: 10 | CU35: 8 | CV35: 8 | CW35: 9
A36: 25 | B36: М171МСБДН023 | C36: Обаляева Екатерина Ильинична | D36: 1940816199 | E36: МБД171 | F36: Системы больших данных | G36: Комм | H36: =MATCH(D36,Данные!$D$1:$D$65536,0) -> 5 | I36: 565 | J36: 143 | K36: 17 | L36: =IF(K36 > 0,J36/K36,0) -> 8.411764706 | M36: =MIN($O36:DB36) -> 4 | N36: 25 | P36: 10 | Q36: 9 | V36: 10 | W36: 8 | AA36: 8 | AB36: 8 | AI36: 9 | AN36: 8 | AW36: 8 | AY36: 8 | BJ36: 8 | BP36: 8 | BV36: 8 | CA36: 10 | CI36: 10 | CK36: 9 | CP36: 4
A37: 26 | B37: М171МЭЛБЗ023 | C37: Фахрова Дина Вадимовна | D37: 1937372985 | E37: МЭБ171 | F37: Электронный бизнес | G37: Бюдж | H37: =MATCH(D37,Данные!$D$1:$D$65536,0) -> 79 | I37: 564 | J37: 123 | K37: 14 | L37: =IF(K37 > 0,J37/K37,0) -> 8.785714286 | M37: =MIN($O37:DB37) -> 6 | N37: 26 | R37: 10 | U37: 10 | V37: 7 | Y37: 9 | AC37: 9 | AE37: 9 | AK37: 9 | AR37: 10 | BF37: 9 | BK37: 6 | BU37: 7 | BZ37: 8 | CQ37: 10 | CR37: 10
A38: 27 | B38: М171МБИИН074 | C38: Матвиенко Андрей Кириллович | D38: 1940815773 | E38: МБИ172 | F38: Бизнес-информатика | G38: Бюдж | H38: =MATCH(D38,Данные!$D$1:$D$65536,0) -> 96 | I38: 557 | J38: 115 | K38: 14 | L38: =IF(K38 > 0,J38/K38,0) -> 8.214285714 | M38: =MIN($O38:DB38) -> 6 | N38: 27 | R38: 7 | S38: 7 | U38: 10 | V38: 6 | AC38: 7 | AD38: 9 | AO38: 7 | AS38: 10 | BB38: 8 | BK38: 9 | BR38: 10 | CJ38: 8 | CV38: 8 | CW38: 9
A39: 28 - 29 | B39: М171МУБЕЗ004 | C39: Гультяева Полина Николаевна | D39: 1937371178 | E39: МИБ171 | F39: Управление информационной безопасностью | G39: Бюдж | H39: =MATCH(D39,Данные!$D$1:$D$65536,0) -> 84 | I39: 556 | J39: 121 | K39: 14 | L39: =IF(K39 > 0,J39/K39,0) -> 8.642857143 | M39: =MIN($O39:DB39) -> 6 | N39: 28 | R39: 10 | T39: 7 | U39: 10 | V39: 6 | X39: 8 | AC39: 8 | AD39: 7 | AF39: 10 | BG39: 10 | BK39: 9 | BS39: 9 | CM39: 8 | CN39: 9 | CS39: 10
B40: М171МСБДН033 | C40: Штройхофэр Кристофер | D40: 1959612809 | E40: МБД171 | F40: Системы больших данных | G40: Бюдж | H40: =MATCH(D40,Данные!$D$1:$D$65536,0) -> 9 | I40: 556 | J40: 127 | K40: 16 | L40: =IF(K40 > 0,J40/K40,0) -> 7.9375 | M40: =MIN($O40:DB40) -> 5 | N40: 29 | P40: 9 | Q40: 7 | V40: 7 | W40: 8 | Z40: 6 | AA40: 9 | AB40: 9 | AI40: 7 | AN40: 9 | BJ40: 6 | BP40: 8 | BX40: 10 | CF40: 7 | CI40: 5 | CT40: 10 | DB40: 10
A41: 30 | B41: М171МБИИН024 | C41: Григорьева Юлия Сергеевна | D41: 1937363811 | E41: МБИ171 | F41: Бизнес-информатика | G41: Бюдж | H41: =MATCH(D41,Данные!$D$1:$D$65536,0) -> 103 | I41: 555 | J41: 116 | K41: 14 | L41: =IF(K41 > 0,J41/K41,0) -> 8.285714286 | M41: =MIN($O41:DB41) -> 6 | N41: 30 | R41: 8 | S41: 8 | U41: 9 | V41: 6 | AC41: 6 | AJ41: 9 | AO41: 8 | AS41: 10 | AV41: 9 | BK41: 8 | BQ41: 9 | CD41: 8 | CU41: 10 | CV41: 8
A42: 31 - 32 | B42: М171МЭЛБЗ005 | C42: Горобец Валерия Валентиновна | D42: 1937372998 | E42: МЭБ171 | F42: Электронный бизнес | G42: Бюдж | H42: =MATCH(D42,Данные!$D$1:$D$65536,0) -> 177 | I42: 554 | J42: 112 | K42: 13 | L42: =IF(K42 > 0,J42/K42,0) -> 8.615384615 | M42: =MIN($O42:DB42) -> 6 | N42: 31 | U42: 8 | V42: 8 | Y42: 9 | AC42: 6 | AE42: 8 | AK42: 9 | AR42: 8 | BF42: 10 | BK42: 10 | BU42: 9 | BZ42: 10 | CO42: 7 | CR42: 10
B43: М171МСБДН016 | C43: Чувилина Анна Андреевна | D43: 1937366407 | E43: МБД171 | F43: Системы больших данных | G43: Бюдж | H43: =MATCH(D43,Данные!$D$1:$D$65536,0) -> 18 | I43: 554 | J43: 138 | K43: 17 | L43: =IF(K43 > 0,J43/K43,0) -> 8.117647059 | M43: =MIN($O43:DB43) -> 4 | N43: 32 | P43: 7 | Q43: 9 | V43: 9 | W43: 9 | AA43: 9 | AB43: 9 | AI43: 9 | AN43: 9 | AW43: 4 | AY43: 9 | BJ43: 8 | BP43: 9 | BV43: 8 | CA43: 9 | CI43: 8 | CK43: 8 | CP43: 5
A44: 33 | B44: М171МЭЛБЗ018 | C44: Осипова Мария Андреевна | D44: 1937372757 | E44: МЭБ171 | F44: Электронный бизнес | G44: Бюдж | H44: =MATCH(D44,Данные!$D$1:$D$65536,0) -> 86 | I44: 553 | J44: 115 | K44: 14 | L44: =IF(K44 > 0,J44/K44,0) -> 8.214285714 | M44: =MIN($O44:DB44) -> 6 | N44: 33 | R44: 10 | U44: 8 | V44: 6 | Y44: 7 | AC44: 9 | AE44: 9 | AK44: 8 | AR44: 9 | AW44: 7 | BF44: 6 | BK44: 10 | BU44: 9 | BZ44: 8 | CR44: 9
A45: 34 | B45: М171МСБДН013 | C45: Сысоев Марк Валерьевич | D45: 1937366436 | E45: МБД171 | F45: Системы больших данных | G45: Бюдж | H45: =MATCH(D45,Данные!$D$1:$D$65536,0) -> 24 | I45: 552 | J45: 140 | K45: 17 | L45: =IF(K45 > 0,J45/K45,0) -> 8.235294118 | M45: =MIN($O45:DB45) -> 6 | N45: 34 | P45: 8 | Q45: 8 | V45: 8 | W45: 8 | AA45: 7 | AB45: 9 | AI45: 9 | AN45: 10 | AW45: 7 | AY45: 8 | BJ45: 10 | BP45: 8 | BV45: 8 | CA45: 7 | CE45: 10 | CI45: 6 | CK45: 9
A46: 35 | B46: М171МБИИН086 | C46: Мельникова Анастасия Игоревна | D46: 1941989160 | E46: МБИ172 | F46: Бизнес-информатика | G46: Комм | H46: =MATCH(D46,Данные!$D$1:$D$65536,0) -> 99 | I46: 550 | J46: 115 | K46: 14 | L46: =IF(K46 > 0,J46/K46,0) -> 8.214285714 | M46: =MIN($O46:DB46) -> 6 | N46: 35 | R46: 8 | S46: 8 | U46: 8 | V46: 8 | AC46: 10 | AH46: 8 | AS46: 8 | AZ46: 8 | BB46: 8 | BK46: 9 | BT46: 10 | CU46: 7 | CV46: 6 | CW46: 9
A47: 36 | B47: М171МЭЛБЗ003 | C47: Бадамова Екатерина Дмитриевна | D47: 1937372729 | E47: МЭБ171 | F47: Электронный бизнес | G47: Бюдж | H47: =MATCH(D47,Данные!$D$1:$D$65536,0) -> 191 | I47: 549 | J47: 113 | K47: 13 | L47: =IF(K47 > 0,J47/K47,0) -> 8.692307692 | M47: =MIN($O47:DB47) -> 8 | N47: 36 | U47: 8 | V47: 8 | Y47: 8 | AC47: 9 | AE47: 9 | AK47: 8 | AQ47: 10 | AR47: 10 | BF47: 8 | BK47: 8 | BU47: 9 | BZ47: 8 | CR47: 10
A48: 37 | B48: М171МСБДН022 | C48: Иванов Никита Павлович | D48: 1940816150 | E48: МБД171 | F48: Системы больших данных | G48: Комм | H48: =MATCH(D48,Данные!$D$1:$D$65536,0) -> 423 | I48: 547 | J48: 137 | K48: 16 | L48: =IF(K48 > 0,J48/K48,0) -> 8.5625 | M48: =MIN($O48:DB48) -> 6 | N48: 37 | V48: 8 | W48: 9 | AA48: 9 | AB48: 9 | AI48: 8 | AN48: 8 | AW48: 8 | AY48: 9 | BJ48: 9 | BP48: 8 | BV48: 9 | CA48: 6 | CC48: 10 | CI48: 10 | CK48: 9 | CP48: 8
A49: 38 | B49: М171МЭЛБЗ008 | C49: Калинин Дмитрий Владимирович | D49: 1937372783 | E49: МЭБ171 | F49: Электронный бизнес | G49: Бюдж | H49: =MATCH(D49,Данные!$D$1:$D$65536,0) -> 87 | I49: 545 | J49: 115 | K49: 14 | L49: =IF(K49 > 0,J49/K49,0) -> 8.214285714 | M49: =MIN($O49:DB49) -> 6 | N49: 38 | R49: 10 | U49: 10 | V49: 7 | Y49: 8 | AC49: 8 | AE49: 8 | AK49: 7 | AR49: 8 | BF49: 8 | BK49: 8 | BU49: 9 | BZ49: 8 | CR49: 10 | CY49: 6
A50: 39 - 40 | B50: М171МБИИН030 | C50: Калашников Сергей Владимирович | D50: 1937364001 | E50: МБИ172 | F50: Бизнес-информатика | G50: Бюдж | H50: =MATCH(D50,Данные!$D$1:$D$65536,0) -> 266 | I50: 544 | J50: 107 | K50: 12 | L50: =IF(K50 > 0,J50/K50,0) -> 8.916666667 | M50: =MIN($O50:DB50) -> 7 | N50: 39 | U50: 10 | V50: 8 | AC50: 9 | AH50: 8 | AS50: 10 | AV50: 8 | AW50: 7 | BK50: 9 | BT50: 10 | CU50: 10 | CV50: 9 | CW50: 9
B51: М171МБИИН045 | C51: Медведева Мария Вячеславовна | D51: 1937364137 | E51: МБИ172 | F51: Бизнес-информатика | G51: Бюдж | H51: =MATCH(D51,Данные!$D$1:$D$65536,0) -> 60 | I51: 544 | J51: 115 | K51: 14 | L51: =IF(K51 > 0,J51/K51,0) -> 8.214285714 | M51: =MIN($O51:DB51) -> 5 | N51: 40 | R51: 9 | S51: 8 | U51: 9 | V51: 7 | AC51: 5 | AP51: 8 | AS51: 10 | BB51: 8 | BK51: 8 | BT51: 8 | CU51: 10 | CV51: 8 | CW51: 9 | CX51: 8
A52: 41 - 42 | B52: М171МЭЛБЗ002 | C52: Бабаджанян Армен Кароевич | D52: 1937372839 | E52: МЭБ171 | F52: Электронный бизнес | G52: Бюдж | H52: =MATCH(D52,Данные!$D$1:$D$65536,0) -> 182 | I52: 543 | J52: 111 | K52: 13 | L52: =IF(K52 > 0,J52/K52,0) -> 8.538461538 | M52: =MIN($O52:DB52) -> 7 | N52: 41 | U52: 10 | V52: 8 | Y52: 8 | AC52: 8 | AE52: 9 | AK52: 8 | AL52: 7 | AR52: 9 | BF52: 9 | BK52: 9 | BU52: 9 | BZ52: 9 | CR52: 8
B53: М171МУБЕЗ002 | C53: Бочарова Ксения Михайловна | D53: 1937370385 | E53: МИБ171 | F53: Управление информационной безопасностью | G53: Бюдж | H53: =MATCH(D53,Данные!$D$1:$D$65536,0) -> 74 | I53: 543 | J53: 117 | K53: 14 | L53: =IF(K53 > 0,J53/K53,0) -> 8.357142857 | M53: =MIN($O53:DB53) -> 5 | N53: 42 | R53: 10 | T53: 8 | U53: 9 | V53: 5 | X53: 8 | AC53: 7 | AF53: 6 | BG53: 9 | BK53: 10 | BS53: 10 | BY53: 9 | CM53: 8 | CN53: 8 | CS53: 10
A54: 43 | B54: М171МБИИН048 | C54: Новицкая Валерия Андреевна | D54: 1937363587 | E54: МБИ173 | F54: Бизнес-информатика | G54: Бюдж | H54: =MATCH(D54,Данные!$D$1:$D$65536,0) -> 232 | I54: 541 | J54: 106 | K54: 12 | L54: =IF(K54 > 0,J54/K54,0) -> 8.833333333 | M54: =MIN($O54:DB54) -> 6 | N54: 43 | U54: 9 | V54: 6 | AC54: 9 | AH54: 9 | AS54: 10 | BA54: 9 | BB54: 7 | BK54: 10 | BR54: 10 | CU54: 10 | CV54: 8 | CW54: 9
A55: 44 | B55: М171МЭЛБЗ021 | C55: Смирнов Константин Борисович | D55: 1937372893 | E55: МЭБ171 | F55: Электронный бизнес | G55: Бюдж | H55: =MATCH(D55,Данные!$D$1:$D$65536,0) -> 83 | I55: 540 | J55: 116 | K55: 14 | L55: =IF(K55 > 0,J55/K55,0) -> 8.285714286 | M55: =MIN($O55:DB55) -> 6 | N55: 44 | R55: 9 | U55: 9 | V55: 7 | Y55: 10 | AC55: 9 | AE55: 8 | AK55: 9 | AR55: 8 | BA55: 9 | BF55: 6 | BK55: 8 | BU55: 8 | BZ55: 8 | CR55: 8
A56: 45 | B56: М171МСБДН010 | C56: Пахолкова Анна Юрьевна | D56: 1937366259 | E56: МБД171 | F56: Системы больших данных | G56: Бюдж | H56: =MATCH(D56,Данные!$D$1:$D$65536,0) -> 348 | I56: 539 | J56: 134 | K56: 15 | L56: =IF(K56 > 0,J56/K56,0) -> 8.933333333 | M56: =MIN($O56:DB56) -> 6 | N56: 45 | V56: 10 | W56: 10 | AA56: 8 | AB56: 9 | AI56: 8 | AN56: 10 | AY56: 9 | BJ56: 10 | BP56: 8 | BV56: 9 | CB56: 10 | CI56: 10 | CK56: 10 | CP56: 6 | CZ56: 7
A57: 46 - 48 | B57: М171МБИИН016 | C57: Бутченко Антон Олегович | D57: 1937364220 | E57: МБИ171 | F57: Бизнес-информатика | G57: Бюдж | H57: =MATCH(D57,Данные!$D$1:$D$65536,0) -> 63 | I57: 538 | J57: 113 | K57: 14 | L57: =IF(K57 > 0,J57/K57,0) -> 8.071428571 | M57: =MIN($O57:DB57) -> 6 | N57: 46 | R57: 8 | S57: 8 | U57: 10 | V57: 7 | AC57: 6 | AH57: 6 | AS57: 10 | BB57: 8 | BK57: 9 | BT57: 9 | CU57: 10 | CV57: 7 | CW57: 7 | CY57: 8
B58: М171МСБДН025 | C58: Садыкова Сабина Бахтияровна | D58: 1940816117 | E58: МБД171 | F58: Системы больших данных | G58: Комм | H58: =MATCH(D58,Данные!$D$1:$D$65536,0) -> 23 | I58: 538 | J58: 135 | K58: 17 | L58: =IF(K58 > 0,J58/K58,0) -> 7.941176471 | M58: =MIN($O58:DB58) -> 6 | N58: 47 | P58: 7 | Q58: 8 | V58: 7 | W58: 9 | AA58: 8 | AB58: 8 | AI58: 8 | AN58: 8 | AW58: 6 | AY58: 9 | BJ58: 8 | BM58: 9 | BP58: 8 | CA58: 6 | CI58: 10 | CK58: 9 | CP58: 7
B59: М171МСБДН012 | C59: Рахимов Севастьян Эдуардович | D59: 1937366317 | E59: МБД171 | F59: Системы больших данных | G59: Бюдж | H59: =MATCH(D59,Данные!$D$1:$D$65536,0) -> 20 | I59: 538 | J59: 134 | K59: 17 | L59: =IF(K59 > 0,J59/K59,0) -> 7.882352941 | M59: =MIN($O59:DB59) -> 4 | N59: 48 | P59: 7 | Q59: 7 | V59: 9 | W59: 10 | AA59: 9 | AB59: 8 | AI59: 10 | AN59: 8 | AW59: 5 | AY59: 9 | BJ59: 8 | BP59: 8 | BV59: 9 | CA59: 6 | CE59: 9 | CI59: 8 | CP59: 4
A60: 49 - 50 | B60: М171МУБЕЗ010 | C60: Михеева Вероника Вячеславовна | D60: 1937370436 | E60: МИБ171 | F60: Управление информационной безопасностью | G60: Бюдж | H60: =MATCH(D60,Данные!$D$1:$D$65536,0) -> 77 | I60: 537 | J60: 119 | K60: 14 | L60: =IF(K60 > 0,J60/K60,0) -> 8.5 | M60: =MIN($O60:DB60) -> 6 | N60: 49 | R60: 9 | T60: 8 | U60: 8 | V60: 6 | X60: 10 | AC60: 6 | AD60: 10 | AF60: 10 | BG60: 10 | BK60: 8 | BS60: 8 | CM60: 8 | CN60: 8 | CS60: 10
B61: М171МСБДН029 | C61: Ержанова Тогжан | D61: 1942007946 | E61: МБД171 | F61: Системы больших данных | G61: Бюдж | H61: =MATCH(D61,Данные!$D$1:$D$65536,0) -> 7 | I61: 537 | J61: 134 | K61: 17 | L61: =IF(K61 > 0,J61/K61,0) -> 7.882352941 | M61: =MIN($O61:DB61) -> 5 | N61: 50 | P61: 8 | Q61: 7 | V61: 8 | W61: 9 | AA61: 9 | AB61: 9 | AG61: 9 | AI61: 9 | AN61: 8 | AY61: 8 | BJ61: 10 | BP61: 8 | BV61: 7 | CA61: 6 | CI61: 8 | CK61: 6 | CP61: 5
A62: 51 | B62: М171МСБДН011 | C62: Полушин Глеб Валерьевич | D62: 1937366380 | E62: МБД171 | F62: Системы больших данных | G62: Бюдж | H62: =MATCH(D62,Данные!$D$1:$D$65536,0) -> 342 | I62: 536 | J62: 131 | K62: 15 | L62: =IF(K62 > 0,J62/K62,0) -> 8.733333333 | M62: =MIN($O62:DB62) -> 8 | N62: 51 | V62: 8 | W62: 8 | AA62: 8 | AB62: 8 | AI62: 10 | AN62: 8 | AW62: 9 | AY62: 9 | BJ62: 9 | BM62: 10 | BP62: 9 | BV62: 8 | CA62: 9 | CI62: 10 | CK62: 8
A63: 52 | B63: М171МСБДН004 | C63: Дмитриев Виктор Андреевич | D63: 1937366244 | E63: МБД171 | F63: Системы больших данных | G63: Бюдж | H63: =MATCH(D63,Данные!$D$1:$D$65536,0) -> 347 | I63: 531 | J63: 132 | K63: 15 | L63: =IF(K63 > 0,J63/K63,0) -> 8.8 | M63: =MIN($O63:DB63) -> 6 | N63: 52 | V63: 10 | W63: 9 | AA63: 8 | AB63: 6 | AI63: 8 | AN63: 10 | AY63: 9 | BJ63: 10 | BP63: 8 | BV63: 9 | CB63: 10 | CI63: 10 | CK63: 10 | CP63: 7 | CZ63: 8
A64: 53 | B64: М171МБИИН055 | C64: Ригин Алексей Алексеевич | D64: 1937363758 | E64: МБИ173 | F64: Бизнес-информатика | G64: Бюдж | H64: =MATCH(D64,Данные!$D$1:$D$65536,0) -> 274 | I64: 530 | J64: 107 | K64: 12 | L64: =IF(K64 > 0,J64/K64,0) -> 8.916666667 | M64: =MIN($O64:DB64) -> 7 | N64: 53 | U64: 10 | V64: 8 | AC64: 9 | AH64: 9 | AS64: 10 | BB64: 7 | BE64: 9 | BK64: 10 | BT64: 8 | CU64: 10 | CV64: 8 | CW64: 9
A65: 54 - 55 | B65: М171МБИИН032 | C65: Карнаух Егор Сергеевич | D65: 1937364071 | E65: МБИ172 | F65: Бизнес-информатика | G65: Бюдж | H65: =MATCH(D65,Данные!$D$1:$D$65536,0) -> 249 | I65: 528 | J65: 105 | K65: 12 | L65: =IF(K65 > 0,J65/K65,0) -> 8.75 | M65: =MIN($O65:DB65) -> 7 | N65: 54 | U65: 10 | V65: 8 | AC65: 8 | AP65: 7 | BB65: 8 | BD65: 10 | BK65: 9 | BQ65: 9 | CD65: 9 | CJ65: 10 | CV65: 9 | CY65: 8
B66: М171МСБДН026 | C66: Семес Алексей Владимирович | D66: 1940751998 | E66: МБД171 | F66: Системы больших данных | G66: Комм | H66: =MATCH(D66,Данные!$D$1:$D$65536,0) -> 19 | I66: 528 | J66: 134 | K66: 17 | L66: =IF(K66 > 0,J66/K66,0) -> 7.882352941 | M66: =MIN($O66:DB66) -> 5 | N66: 55 | P66: 8 | Q66: 8 | V66: 9 | W66: 9 | AA66: 9 | AB66: 7 | AG66: 8 | AI66: 8 | AN66: 8 | AY66: 8 | BJ66: 8 | BP66: 7 | CA66: 6 | CE66: 10 | CI66: 8 | CK66: 8 | CP66: 5
A67: 56 | B67: М171МБИИН068 | C67: Черепнина Дарья Олеговна | D67: 1937363495 | E67: МБИ173 | F67: Бизнес-информатика | G67: Бюдж | H67: =MATCH(D67,Данные!$D$1:$D$65536,0) -> 50 | I67: 526 | J67: 111 | K67: 14 | L67: =IF(K67 > 0,J67/K67,0) -> 7.928571429 | M67: =MIN($O67:DB67) -> 4 | N67: 56 | R67: 10 | S67: 8 | U67: 10 | V67: 4 | AC67: 8 | AH67: 8 | AP67: 6 | BB67: 8 | BD67: 8 | BK67: 8 | BT67: 8 | CO67: 7 | CV67: 9 | CW67: 9
A68: 57 - 58 | B68: М171МБИИН041 | C68: Лиховцев Вадим Александрович | D68: 1937363838 | E68: МБИ172 | F68: Бизнес-информатика | G68: Бюдж | H68: =MATCH(D68,Данные!$D$1:$D$65536,0) -> 225 | I68: 525 | J68: 103 | K68: 12 | L68: =IF(K68 > 0,J68/K68,0) -> 8.583333333 | M68: =MIN($O68:DB68) -> 5 | N68: 57 | U68: 9 | V68: 5 | AC68: 7 | AH68: 8 | AO68: 9 | AS68: 10 | BB68: 9 | BK68: 8 | BQ68: 9 | CH68: 9 | CU68: 10 | CV68: 10
B69: М171МБИИН078 | C69: Овсянникова Ольга Андреевна | D69: 1940751185 | E69: МБИ173 | F69: Бизнес-информатика | G69: Комм | H69: =MATCH(D69,Данные!$D$1:$D$65536,0) -> 93 | I69: 525 | J69: 110 | K69: 14 | L69: =IF(K69 > 0,J69/K69,0) -> 7.857142857 | M69: =MIN($O69:DB69) -> 5 | N69: 58 | R69: 9 | S69: 8 | U69: 9 | V69: 7 | AC69: 8 | AH69: 7 | AS69: 10 | BB69: 5 | BK69: 8 | BT69: 9 | CU69: 10 | CV69: 6 | CW69: 9 | CY69: 5
A70: 59 | B70: М171МСБДН028 | C70: Ширяева Кристина Александровна | D70: 1940816171 | E70: МБД171 | F70: Системы больших данных | G70: Комм | H70: =MATCH(D70,Данные!$D$1:$D$65536,0) -> 452 | I70: 522 | J70: 130 | K70: 16 | L70: =IF(K70 > 0,J70/K70,0) -> 8.125 | M70: =MIN($O70:DB70) -> 6 | N70: 59 | V70: 7 | W70: 9 | AA70: 9 | AB70: 8 | AI70: 9 | AN70: 8 | AW70: 7 | AY70: 9 | BJ70: 6 | BP70: 8 | BV70: 9 | CA70: 6 | CC70: 10 | CI70: 10 | CK70: 8 | CP70: 7
A71: 60 | B71: М171МСБДН006 | C71: Иванова Анастасия Михайловна | D71: 1937366273 | E71: МБД171 | F71: Системы больших данных | G71: Бюдж | H71: =MATCH(D71,Данные!$D$1:$D$65536,0) -> 349 | I71: 521 | J71: 125 | K71: 15 | L71: =IF(K71 > 0,J71/K71,0) -> 8.333333333 | M71: =MIN($O71:DB71) -> 4 | N71: 60 | V71: 8 | W71: 9 | AA71: 9 | AB71: 9 | AI71: 8 | AN71: 10 | AY71: 8 | BJ71: 10 | BM71: 9 | BP71: 9 | BV71: 8 | CA71: 8 | CI71: 10 | CK71: 6 | CZ71: 4
A72: 61 | B72: М171МБИИН029 | C72: Захаров Алексей Александрович | D72: 1937363666 | E72: МБИ172 | F72: Бизнес-информатика | G72: Бюдж | H72: =MATCH(D72,Данные!$D$1:$D$65536,0) -> 267 | I72: 520 | J72: 104 | K72: 12 | L72: =IF(K72 > 0,J72/K72,0) -> 8.666666667 | M72: =MIN($O72:DB72) -> 7 | N72: 61 | U72: 9 | V72: 7 | AC72: 10 | AH72: 8 | AS72: 10 | AV72: 7 | AW72: 8 | BK72: 9 | BT72: 8 | CU72: 10 | CV72: 9 | CW72: 9
A73: 62 - 63 | B73: М171МБИИН065 | C73: Токарев Иван Максимович | D73: 1937363399 | E73: МБИ173 | F73: Бизнес-информатика | G73: Бюдж | H73: =MATCH(D73,Данные!$D$1:$D$65536,0) -> 243 | I73: 518 | J73: 103 | K73: 12 | L73: =IF(K73 > 0,J73/K73,0) -> 8.583333333 | M73: =MIN($O73:DB73) -> 6 | N73: 62 | U73: 9 | V73: 6 | AC73: 8 | AH73: 8 | AS73: 10 | BB73: 7 | BK73: 9 | BT73: 8 | CH73: 9 | CU73: 10 | CV73: 10 | CW73: 9
B74: М171МБИИН057 | C74: Салтыкова Екатерина Андреевна | D74: 1937363413 | E74: МБИ173 | F74: Бизнес-информатика | G74: Бюдж | H74: =MATCH(D74,Данные!$D$1:$D$65536,0) -> 56 | I74: 518 | J74: 112 | K74: 14 | L74: =IF(K74 > 0,J74/K74,0) -> 8 | M74: =MIN($O74:DB74) -> 5 | N74: 63 | R74: 10 | S74: 8 | U74: 10 | V74: 7 | AC74: 8 | AO74: 8 | AS74: 10 | AV74: 8 | AW74: 6 | BK74: 5 | BQ74: 7 | CD74: 7 | CU74: 10 | CV74: 8
A75: 64 | B75: М171МУБЕЗ014 | C75: Петрина Матвей Олегович | D75: 1937370498 | E75: МИБ171 | F75: Управление информационной безопасностью | G75: Бюдж | H75: =MATCH(D75,Данные!$D$1:$D$65536,0) -> 137 | I75: 517 | J75: 109 | K75: 13 | L75: =IF(K75 > 0,J75/K75,0) -> 8.384615385 | M75: =MIN($O75:DB75) -> 6 | N75: 64 | T75: 7 | U75: 8 | V75: 6 | X75: 9 | AC75: 9 | AF75: 8 | BG75: 10 | BK75: 8 | BS75: 9 | BY75: 8 | CM75: 8 | CN75: 9 | CS75: 10
A76: 65 | B76: М171МСБДН015 | C76: Ферягина Екатерина Андреевна | D76: 1937366302 | E76: МБД171 | F76: Системы больших данных | G76: Бюдж | H76: =MATCH(D76,Данные!$D$1:$D$65536,0) -> 351 | I76: 516 | J76: 125 | K76: 15 | L76: =IF(K76 > 0,J76/K76,0) -> 8.333333333 | M76: =MIN($O76:DB76) -> 5 | N76: 65 | V76: 8 | W76: 9 | AA76: 9 | AB76: 8 | AI76: 9 | AN76: 8 | AW76: 7 | AY76: 8 | BJ76: 8 | BM76: 10 | BP76: 9 | CA76: 9 | CI76: 10 | CK76: 8 | CP76: 5
A77: 66 | B77: М171МБИИН063 | C77: Сухова Ксения Игоревна | D77: 1937364177 | E77: МБИ173 | F77: Бизнес-информатика | G77: Бюдж | H77: =MATCH(D77,Данные!$D$1:$D$65536,0) -> 62 | I77: 514 | J77: 111 | K77: 14 | L77: =IF(K77 > 0,J77/K77,0) -> 7.928571429 | M77: =MIN($O77:DB77) -> 6 | N77: 66 | R77: 10 | S77: 8 | U77: 10 | V77: 6 | AC77: 7 | AD77: 8 | AH77: 8 | AP77: 7 | BB77: 7 | BK77: 7 | BR77: 7 | CD77: 8 | CU77: 10 | CV77: 8
A78: 67 | B78: М171МЭЛБЗ027 | C78: Кондращенко Ярослав Константинович | D78: 1940816486 | E78: МЭБ171 | F78: Электронный бизнес | G78: Комм | H78: =MATCH(D78,Данные!$D$1:$D$65536,0) -> 199 | I78: 510 | J78: 104 | K78: 13 | L78: =IF(K78 > 0,J78/K78,0) -> 8 | M78: =MIN($O78:DB78) -> 7 | N78: 67 | U78: 9 | V78: 8 | Y78: 7 | AC78: 7 | AE78: 7 | AK78: 8 | AR78: 8 | BF78: 8 | BK78: 8 | BU78: 9 | BY78: 8 | BZ78: 7 | CR78: 10
A79: 68 - 69 | B79: М171МБИИН046 | C79: Миллер Кирилл Александрович | D79: 1937364163 | E79: МБИ172 | F79: Бизнес-информатика | G79: Бюдж | H79: =MATCH(D79,Данные!$D$1:$D$65536,0) -> 254 | I79: 509 | J79: 101 | K79: 12 | L79: =IF(K79 > 0,J79/K79,0) -> 8.416666667 | M79: =MIN($O79:DB79) -> 6 | N79: 68 | U79: 9 | V79: 6 | AC79: 7 | AD79: 10 | AH79: 8 | AS79: 10 | BB79: 9 | BK79: 8 | BT79: 9 | CD79: 8 | CV79: 8 | CW79: 9
B80: М171МБИИН017 | C80: Вишняков Азим Азимович | D80: 1937364123 | E80: МБИ171 | F80: Бизнес-информатика | G80: Бюдж | H80: =MATCH(D80,Данные!$D$1:$D$65536,0) -> 59 | I80: 509 | J80: 108 | K80: 14 | L80: =IF(K80 > 0,J80/K80,0) -> 7.714285714 | M80: =MIN($O80:DB80) -> 4 | N80: 69 | R80: 9 | S80: 8 | U80: 8 | V80: 10 | AC80: 8 | AH80: 4 | AS80: 8 | BB80: 7 | BK80: 9 | BT80: 9 | CQ80: 7 | CU80: 7 | CV80: 7 | CW80: 7
A81: 70 | B81: М171МСБДН007 | C81: Ильяшенко Григорий Анатольевич | D81: 1937366203 | E81: МБД171 | F81: Системы больших данных | G81: Бюдж | H81: =MATCH(D81,Данные!$D$1:$D$65536,0) -> 360 | I81: 508 | J81: 125 | K81: 15 | L81: =IF(K81 > 0,J81/K81,0) -> 8.333333333 | M81: =MIN($O81:DB81) -> 6 | N81: 70 | V81: 10 | W81: 6 | AA81: 7 | AB81: 6 | AI81: 10 | AN81: 7 | AW81: 8 | AY81: 8 | BJ81: 9 | BP81: 8 | CA81: 10 | CE81: 10 | CI81: 10 | CK81: 8 | CP81: 8
A82: 71 | B82: М171МБИИН066 | C82: Улямаев Альберт Ирекович | D82: 1937363613 | E82: МБИ173 | F82: Бизнес-информатика | G82: Бюдж | H82: =MATCH(D82,Данные!$D$1:$D$65536,0) -> 234 | I82: 507 | J82: 101 | K82: 12 | L82: =IF(K82 > 0,J82/K82,0) -> 8.416666667 | M82: =MIN($O82:DB82) -> 7 | N82: 71 | U82: 9 | V82: 7 | AC82: 8 | AH82: 8 | AS82: 9 | BB82: 7 | BK82: 9 | BT82: 8 | CH82: 8 | CU82: 10 | CV82: 9 | CW82: 9
A83: 72 - 73 | B83: М171МБИИН011 | C83: Белова Евгения Александровна | D83: 1937363904 | E83: МБИ171 | F83: Бизнес-информатика | G83: Бюдж | H83: =MATCH(D83,Данные!$D$1:$D$65536,0) -> 61 | I83: 506 | J83: 109 | K83: 14 | L83: =IF(K83 > 0,J83/K83,0) -> 7.785714286 | M83: =MIN($O83:DB83) -> 6 | N83: 72 | R83: 8 | S83: 8 | U83: 10 | V83: 7 | AC83: 6 | AO83: 7 | AS83: 10 | AV83: 8 | BB83: 7 | BC83: 9 | BK83: 8 | BQ83: 7 | CD83: 6 | CV83: 8
B84: М171МСБДН036 | C84: Ислам Эмди Шафикул | D84: 1972663851 | E84: МБД171 | F84: Системы больших данных | G84: Комм | H84: =MATCH(D84,Данные!$D$1:$D$65536,0) -> 15 | I84: 506 | J84: 129 | K84: 17 | L84: =IF(K84 > 0,J84/K84,0) -> 7.588235294 | M84: =MIN($O84:DB84) -> 5 | N84: 73 | P84: 7 | Q84: 7 | V84: 8 | W84: 8 | AA84: 10 | AB84: 8 | AG84: 6 | AI84: 9 | AN84: 7 | AY84: 9 | BJ84: 5 | BP84: 7 | BV84: 10 | CA84: 7 | CI84: 7 | CK84: 9 | CP84: 5
A85: 74 | B85: М171МЭЛБЗ007 | C85: Джаббарова Лейла Мехман гызы | D85: 1937372743 | E85: МЭБ171 | F85: Электронный бизнес | G85: Бюдж | H85: =MATCH(D85,Данные!$D$1:$D$65536,0) -> 85 | I85: 504 | J85: 108 | K85: 14 | L85: =IF(K85 > 0,J85/K85,0) -> 7.714285714 | M85: =MIN($O85:DB85) -> 6 | N85: 74 | R85: 10 | U85: 9 | V85: 7 | Y85: 10 | AC85: 7 | AE85: 8 | AK85: 8 | AR85: 8 | AU85: 6 | BF85: 6 | BK85: 7 | BU85: 8 | BZ85: 8 | CR85: 6
A86: 75 - 76 | B86: М171МУБЕЗ012 | C86: Оленева Валерия Александровна | D86: 1937370536 | E86: МИБ171 | F86: Управление информационной безопасностью | G86: Бюдж | H86: =MATCH(D86,Данные!$D$1:$D$65536,0) -> 67 | I86: 503 | J86: 113 | K86: 14 | L86: =IF(K86 > 0,J86/K86,0) -> 8.071428571 | M86: =MIN($O86:DB86) -> 5 | N86: 75 | R86: 9 | T86: 10 | U86: 9 | V86: 5 | X86: 10 | AC86: 8 | AF86: 7 | AT86: 8 | BG86: 7 | BK86: 8 | BS86: 8 | CM86: 6 | CN86: 8 | CS86: 10
B87: М171МБИИН081 | C87: Щеголев Андрей Александрович | D87: 1940815759 | E87: МБИ173 | F87: Бизнес-информатика | G87: Бюдж | H87: =MATCH(D87,Данные!$D$1:$D$65536,0) -> 95 | I87: 503 | J87: 109 | K87: 14 | L87: =IF(K87 > 0,J87/K87,0) -> 7.785714286 | M87: =MIN($O87:DB87) -> 6 | N87: 76 | R87: 10 | S87: 8 | U87: 9 | V87: 8 | AC87: 6 | AD87: 8 | AO87: 7 | AP87: 7 | AV87: 7 | BD87: 8 | BK87: 6 | BQ87: 7 | CD87: 9 | CV87: 9
A88: 77 | B88: М171МБИИН062 | C88: Стогова Анастасия Германовна | D88: 1937363693 | E88: МБИ173 | F88: Бизнес-информатика | G88: Бюдж | H88: =MATCH(D88,Данные!$D$1:$D$65536,0) -> 269 | I88: 502 | J88: 101 | K88: 12 | L88: =IF(K88 > 0,J88/K88,0) -> 8.416666667 | M88: =MIN($O88:DB88) -> 6 | N88: 77 | U88: 10 | V88: 6 | AC88: 8 | AO88: 9 | BB88: 7 | BC88: 8 | BK88: 10 | BR88: 7 | CJ88: 9 | CU88: 10 | CV88: 8 | CW88: 9
A89: 78 | B89: М171МСБДН032 | C89: Фаур Назим Ахмад | D89: 1950215429 | E89: МБД171 | F89: Системы больших данных | G89: Комм | H89: =MATCH(D89,Данные!$D$1:$D$65536,0) -> 13 | I89: 500 | J89: 125 | K89: 17 | L89: =IF(K89 > 0,J89/K89,0) -> 7.352941176 | M89: =MIN($O89:DB89) -> 4 | N89: 78 | P89: 9 | Q89: 6 | V89: 7 | W89: 7 | AA89: 9 | AB89: 5 | AG89: 7 | AI89: 9 | AN89: 8 | AY89: 6 | BJ89: 9 | BO89: 10 | BP89: 6 | CA89: 6 | CI89: 10 | CK89: 7 | CP89: 4
A90: 79 | B90: М171МЭЛБЗ020 | C90: Семенкович Софья Алексеевна | D90: 1937372866 | E90: МЭБ171 | F90: Электронный бизнес | G90: Бюдж | H90: =MATCH(D90,Данные!$D$1:$D$65536,0) -> 184 | I90: 499 | J90: 101 | K90: 13 | L90: =IF(K90 > 0,J90/K90,0) -> 7.769230769 | M90: =MIN($O90:DB90) -> 6 | N90: 79 | U90: 9 | V90: 6 | Y90: 7 | AC90: 6 | AE90: 7 | AK90: 7 | AR90: 9 | BF90: 7 | BK90: 10 | BU90: 9 | BY90: 9 | BZ90: 6 | CR90: 9
A91: 80 - 81 | B91: М171МБИИН037 | C91: Коновалова Аделина Евгеньевна | D91: 1937363891 | E91: МБИ172 | F91: Бизнес-информатика | G91: Бюдж | H91: =MATCH(D91,Данные!$D$1:$D$65536,0) -> 258 | I91: 498 | J91: 99 | K91: 12 | L91: =IF(K91 > 0,J91/K91,0) -> 8.25 | M91: =MIN($O91:DB91) -> 6 | N91: 80 | U91: 10 | V91: 6 | AC91: 7 | AO91: 7 | AS91: 10 | BB91: 6 | BK91: 10 | BR91: 8 | CJ91: 9 | CU91: 10 | CV91: 8 | CX91: 8
B92: М171МБИИН013 | C92: Богданов Павел Владимирович | D92: 1937363522 | E92: МБИ171 | F92: Бизнес-информатика | G92: Бюдж | H92: =MATCH(D92,Данные!$D$1:$D$65536,0) -> 52 | I92: 498 | J92: 105 | K92: 14 | L92: =IF(K92 > 0,J92/K92,0) -> 7.5 | M92: =MIN($O92:DB92) -> 5 | N92: 81 | R92: 8 | S92: 8 | U92: 9 | V92: 6 | AC92: 9 | AO92: 7 | AS92: 9 | BB92: 5 | BD92: 8 | BK92: 8 | BQ92: 8 | CD92: 6 | CV92: 8 | CY92: 6
A93: 82 | B93: М171МСБДН027 | C93: Телышева Татьяна Романовна | D93: 1940816098 | E93: МБД171 | F93: Системы больших данных | G93: Комм | H93: =MATCH(D93,Данные!$D$1:$D$65536,0) -> 25 | I93: 496 | J93: 124 | K93: 17 | L93: =IF(K93 > 0,J93/K93,0) -> 7.294117647 | M93: =MIN($O93:DB93) -> 4 | N93: 82 | P93: 7 | Q93: 7 | V93: 9 | W93: 8 | AA93: 8 | AB93: 6 | AI93: 8 | AN93: 7 | AW93: 4 | AY93: 8 | BJ93: 8 | BM93: 9 | BP93: 8 | CA93: 6 | CI93: 8 | CK93: 9 | CP93: 4
A94: 83 | B94: М171МБИИН088 | C94: Морева Галина Сергеевна | D94: 1941989134 | E94: МБИ172 | F94: Бизнес-информатика | G94: Комм | H94: =MATCH(D94,Данные!$D$1:$D$65536,0) -> 204 | I94: 495 | J94: 98 | K94: 12 | L94: =IF(K94 > 0,J94/K94,0) -> 8.166666667 | M94: =MIN($O94:DB94) -> 6 | N94: 83 | U94: 8 | V94: 8 | AC94: 10 | AH94: 8 | AS94: 8 | AZ94: 9 | BB94: 9 | BK94: 9 | BT94: 10 | CU94: 7 | CV94: 6 | CW94: 6
A95: 84 | B95: М171МБИИН003 | C95: Андрюхина Дарья Сергеевна | D95: 1937363878 | E95: МБИ171 | F95: Бизнес-информатика | G95: Бюдж | H95: =MATCH(D95,Данные!$D$1:$D$65536,0) -> 257 | I95: 494 | J95: 99 | K95: 12 | L95: =IF(K95 > 0,J95/K95,0) -> 8.25 | M95: =MIN($O95:DB95) -> 6 | N95: 84 | U95: 9 | V95: 6 | AC95: 8 | AO95: 8 | AS95: 10 | BB95: 7 | BK95: 10 | BR95: 7 | CJ95: 8 | CU95: 10 | CV95: 8 | CX95: 8
A96: 85 - 86 | B96: М171МСБДН019 | C96: Яковлева Дарья Александровна | D96: 1937366289 | E96: МБД171 | F96: Системы больших данных | G96: Бюдж | H96: =MATCH(D96,Данные!$D$1:$D$65536,0) -> 350 | I96: 493 | J96: 121 | K96: 15 | L96: =IF(K96 > 0,J96/K96,0) -> 8.066666667 | M96: =MIN($O96:DB96) -> 6 | N96: 85 | V96: 9 | W96: 7 | AA96: 7 | AB96: 6 | AI96: 9 | AN96: 8 | AW96: 7 | AY96: 8 | BJ96: 10 | BP96: 7 | CA96: 10 | CE96: 10 | CI96: 8 | CK96: 9 | CP96: 6
B97: М171МЭЛБЗ006 | C97: Давыдова Ксения Валерьевна | D97: 1937373012 | E97: МЭБ171 | F97: Электронный бизнес | G97: Бюдж | H97: =MATCH(D97,Данные!$D$1:$D$65536,0) -> 178 | I97: 493 | J97: 103 | K97: 13 | L97: =IF(K97 > 0,J97/K97,0) -> 7.923076923 | M97: =MIN($O97:DB97) -> 7 | N97: 86 | U97: 9 | V97: 7 | Y97: 9 | AC97: 8 | AE97: 7 | AK97: 7 | AR97: 9 | BF97: 8 | BK97: 7 | BU97: 8 | BY97: 9 | BZ97: 7 | CR97: 8
A98: 87 | B98: М171МБИИН094 | C98: Вовк Иларион Анатольевич | D98: 1944939253 | E98: МБИ172 | F98: Бизнес-информатика | G98: Комм | H98: =MATCH(D98,Данные!$D$1:$D$65536,0) -> 216 | I98: 492 | J98: 97 | K98: 12 | L98: =IF(K98 > 0,J98/K98,0) -> 8.083333333 | M98: =MIN($O98:DB98) -> 5 | N98: 87 | U98: 7 | V98: 5 | AC98: 6 | AJ98: 9 | AS98: 9 | AV98: 7 | BB98: 8 | BK98: 10 | BR98: 7 | CU98: 10 | CV98: 10 | CW98: 9
A99: 88 - 89 | B99: М171МУБЕЗ017 | C99: Рудаков Андрей Дмитриевич | D99: 1937370552 | E99: МИБ171 | F99: Управление информационной безопасностью | G99: Бюдж | H99: =MATCH(D99,Данные!$D$1:$D$65536,0) -> 151 | I99: 490 | J99: 101 | K99: 13 | L99: =IF(K99 > 0,J99/K99,0) -> 7.769230769 | M99: =MIN($O99:DB99) -> 4 | N99: 88 | T99: 6 | U99: 7 | V99: 4 | X99: 7 | AC99: 8 | AF99: 10 | BG99: 8 | BK99: 10 | BS99: 10 | BY99: 9 | CM99: 6 | CN99: 6 | CS99: 10
B100: М171МЭЛБЗ024 | C100: Цуканов Иван Викторович | D100: 1937372945 | E100: МЭБ171 | F100: Электронный бизнес | G100: Бюдж | H100: =MATCH(D100,Данные!$D$1:$D$65536,0) -> 173 | I100: 490 | J100: 99 | K100: 13 | L100: =IF(K100 > 0,J100/K100,0) -> 7.615384615 | M100: =MIN($O100:DB100) -> 6 | N100: 89 | U100: 7 | V100: 7 | Y100: 8 | AC100: 6 | AE100: 8 | AK100: 8 | AR100: 9 | BF100: 8 | BK100: 9 | BU100: 8 | BZ100: 6 | CH100: 6 | CR100: 9
A101: 90 - 92 | B101: М171МУБЕЗ016 | C101: Пупышева Анна Андреевна | D101: 1937370565 | E101: МИБ171 | F101: Управление информационной безопасностью | G101: Бюдж | H101: =MATCH(D101,Данные!$D$1:$D$65536,0) -> 150 | I101: 488 | J101: 105 | K101: 13 | L101: =IF(K101 > 0,J101/K101,0) -> 8.076923077 | M101: =MIN($O101:DB101) -> 6 | N101: 90 | T101: 7 | U101: 8 | V101: 6 | X101: 9 | AC101: 8 | AD101: 8 | AF101: 10 | BG101: 7 | BK101: 8 | BS101: 8 | CM101: 8 | CN101: 8 | CS101: 10
B102: М171МЭЛБЗ010 | C102: Кирилловых Андрей Максимович | D102: 1937372770 | E102: МЭБ171 | F102: Электронный бизнес | G102: Бюдж | H102: =MATCH(D102,Данные!$D$1:$D$65536,0) -> 194 | I102: 488 | J102: 100 | K102: 13 | L102: =IF(K102 > 0,J102/K102,0) -> 7.692307692 | M102: =MIN($O102:DB102) -> 6 | N102: 91 | U102: 9 | V102: 7 | Y102: 8 | AC102: 7 | AE102: 8 | AK102: 8 | AR102: 8 | BF102: 6 | BH102: 6 | BK102: 7 | BU102: 8 | BZ102: 9 | CR102: 9
B103: М171МБИИН051 | C103: Полторак Анастасия Игоревна | D103: 1937364031 | E103: МБИ173 | F103: Бизнес-информатика | G103: Бюдж | H103: =MATCH(D103,Данные!$D$1:$D$65536,0) -> 64 | I103: 488 | J103: 103 | K103: 14 | L103: =IF(K103 > 0,J103/K103,0) -> 7.357142857 | M103: =MIN($O103:DB103) -> 5 | N103: 92 | R103: 8 | S103: 8 | U103: 9 | V103: 5 | AC103: 5 | AH103: 5 | AS103: 10 | BB103: 6 | BK103: 8 | BQ103: 7 | CO103: 7 | CU103: 10 | CV103: 9 | CW103: 6
A104: 93 | B104: М171МБИИН076 | C104: Монгуш Алдын-Ай Владимировна | D104: 1940815727 | E104: МБИ172 | F104: Бизнес-информатика | G104: Комм | H104: =MATCH(D104,Данные!$D$1:$D$65536,0) -> 94 | I104: 487 | J104: 103 | K104: 14 | L104: =IF(K104 > 0,J104/K104,0) -> 7.357142857 | M104: =MIN($O104:DB104) -> 5 | N104: 93 | R104: 6 | S104: 8 | U104: 9 | V104: 5 | AC104: 6 | AH104: 7 | AS104: 9 | AT104: 8 | BB104: 5 | BK104: 7 | BR104: 7 | CU104: 9 | CV104: 8 | CW104: 9
A105: 94 | B105: М171МЭЛБЗ001 | C105: Абросимова Анастасия Михайловна | D105: 1937372932 | E105: МЭБ171 | F105: Электронный бизнес | G105: Бюдж | H105: =MATCH(D105,Данные!$D$1:$D$65536,0) -> 189 | I105: 485 | J105: 101 | K105: 13 | L105: =IF(K105 > 0,J105/K105,0) -> 7.769230769 | M105: =MIN($O105:DB105) -> 7 | N105: 94 | U105: 8 | V105: 7 | Y105: 8 | AC105: 8 | AE105: 8 | AK105: 8 | AR105: 8 | BF105: 8 | BK105: 7 | BU105: 7 | BZ105: 7 | CH105: 8 | CR105: 9
A106: 95 - 96 | B106: М171МУБЕЗ003 | C106: Варламова Виктория Викторовна | D106: 1937371161 | E106: МИБ171 | F106: Управление информационной безопасностью | G106: Бюдж | H106: =MATCH(D106,Данные!$D$1:$D$65536,0) -> 72 | I106: 484 | J106: 106 | K106: 14 | L106: =IF(K106 > 0,J106/K106,0) -> 7.571428571 | M106: =MIN($O106:DB106) -> 5 | N106: 95 | R106: 8 | T106: 7 | U106: 8 | V106: 5 | X106: 8 | AC106: 5 | AF106: 10 | BG106: 8 | BK106: 8 | BN106: 8 | BS106: 8 | CM106: 7 | CN106: 6 | CS106: 10
B107: М171МЭЛБЗ017 | C107: Михайлов Егор Александрович | D107: 1937372919 | E107: МЭБ171 | F107: Электронный бизнес | G107: Бюдж | H107: =MATCH(D107,Данные!$D$1:$D$65536,0) -> 188 | I107: 484 | J107: 98 | K107: 13 | L107: =IF(K107 > 0,J107/K107,0) -> 7.538461538 | M107: =MIN($O107:DB107) -> 5 | N107: 96 | U107: 8 | V107: 6 | Y107: 8 | AC107: 7 | AE107: 8 | AK107: 7 | AR107: 9 | BF107: 8 | BK107: 8 | BN107: 5 | BU107: 8 | BZ107: 7 | CR107: 9
A108: 97 | B108: М171МБИИН052 | C108: Пронин Никита Вадимович | D108: 1937363798 | E108: МБИ173 | F108: Бизнес-информатика | G108: Бюдж | H108: =MATCH(D108,Данные!$D$1:$D$65536,0) -> 223 | I108: 482 | J108: 97 | K108: 12 | L108: =IF(K108 > 0,J108/K108,0) -> 8.083333333 | M108: =MIN($O108:DB108) -> 6 | N108: 97 | U108: 10 | V108: 6 | AC108: 8 | AO108: 8 | BB108: 8 | BK108: 10 | BR108: 7 | CJ108: 8 | CO108: 7 | CU108: 10 | CV108: 6 | CW108: 9
A109: 98 - 101 | B109: М171МСБДН008 | C109: Канищев Кирилл Валерьевич | D109: 1937366160 | E109: МБД171 | F109: Системы больших данных | G109: Бюдж | H109: =MATCH(D109,Данные!$D$1:$D$65536,0) -> 358 | I109: 480 | J109: 119 | K109: 15 | L109: =IF(K109 > 0,J109/K109,0) -> 7.933333333 | M109: =MIN($O109:DB109) -> 6 | N109: 98 | V109: 10 | W109: 7 | AA109: 7 | AB109: 9 | AI109: 8 | AN109: 8 | AY109: 6 | BJ109: 10 | BM109: 9 | BP109: 8 | BV109: 8 | CI109: 10 | CK109: 7 | CP109: 6 | CZ109: 6
B110: М171МЭЛБЗ013 | C110: Кяргин Антон Юрьевич | D110: 1937373039 | E110: МЭБ171 | F110: Электронный бизнес | G110: Бюдж | H110: =MATCH(D110,Данные!$D$1:$D$65536,0) -> 180 | I110: 480 | J110: 98 | K110: 13 | L110: =IF(K110 > 0,J110/K110,0) -> 7.538461538 | M110: =MIN($O110:DB110) -> 5 | N110: 99 | U110: 8 | V110: 6 | Y110: 8 | AC110: 7 | AE110: 10 | AK110: 8 | AR110: 9 | BF110: 6 | BK110: 8 | BU110: 7 | BZ110: 7 | CR110: 9 | CY110: 5
B111: М171МСБДН021 | C111: Арча Александр Михайлович | D111: 1940816134 | E111: МБД171 | F111: Системы больших данных | G111: Комм | H111: =MATCH(D111,Данные!$D$1:$D$65536,0) -> 21 | I111: 480 | J111: 123 | K111: 17 | L111: =IF(K111 > 0,J111/K111,0) -> 7.235294118 | M111: =MIN($O111:DB111) -> 4 | N111: 100 | P111: 8 | Q111: 9 | V111: 10 | W111: 8 | AA111: 9 | AB111: 7 | AG111: 8 | AI111: 9 | AN111: 7 | AY111: 6 | BJ111: 4 | BP111: 8 | CA111: 6 | CB111: 9 | CI111: 5 | CK111: 6 | CP111: 4
B112: М171МСБДН031 | C112: Сиахпутра Эдо | D112: 1950255571 | E112: МБД171 | F112: Системы больших данных | G112: Бюдж | H112: =MATCH(D112,Данные!$D$1:$D$65536,0) -> 12 | I112: 480 | J112: 119 | K112: 17 | L112: =IF(K112 > 0,J112/K112,0) -> 7 | M112: =MIN($O112:DB112) -> 2 | N112: 101 | P112: 7 | Q112: 6 | V112: 8 | W112: 7 | AA112: 9 | AB112: 6 | AI112: 10 | AN112: 8 | AW112: 2 | AY112: 7 | BJ112: 7 | BP112: 7 | BV112: 8 | CA112: 8 | CI112: 7 | CK112: 8 | CP112: 4
A113: 102 | B113: М171МБИИН009 | C113: Бегларян Амалия Мгеровна | D113: 1937363535 | E113: МБИ171 | F113: Бизнес-информатика | G113: Бюдж | H113: =MATCH(D113,Данные!$D$1:$D$65536,0) -> 228 | I113: 479 | J113: 96 | K113: 12 | L113: =IF(K113 > 0,J113/K113,0) -> 8 | M113: =MIN($O113:DB113) -> 5 | N113: 102 | U113: 10 | V113: 8 | AC113: 7 | AP113: 6 | AS113: 10 | AV113: 9 | BB113: 7 | BK113: 8 | BR113: 7 | CU113: 10 | CV113: 9 | CY113: 5
A114: 103 | B114: М171МБИИН096 | C114: Пак Александр Сергеевич | D114: 1945753603 | E114: МБИ173 | F114: Бизнес-информатика | G114: Комм | H114: =MATCH(D114,Данные!$D$1:$D$65536,0) -> 98 | I114: 477 | J114: 100 | K114: 14 | L114: =IF(K114 > 0,J114/K114,0) -> 7.142857143 | M114: =MIN($O114:DB114) -> 4 | N114: 103 | R114: 9 | S114: 8 | U114: 9 | V114: 4 | AC114: 6 | AH114: 6 | AS114: 9 | BB114: 6 | BK114: 6 | BN114: 5 | BT114: 8 | CU114: 10 | CV114: 7 | CW114: 7
A115: 104 - 105 | B115: М171МУБЕЗ018 | C115: Ряховский Сергей Алексеевич | D115: 1937370421 | E115: МИБ171 | F115: Управление информационной безопасностью | G115: Бюдж | H115: =MATCH(D115,Данные!$D$1:$D$65536,0) -> 76 | I115: 476 | J115: 107 | K115: 14 | L115: =IF(K115 > 0,J115/K115,0) -> 7.642857143 | M115: =MIN($O115:DB115) -> 5 | N115: 104 | R115: 9 | T115: 9 | U115: 8 | V115: 5 | X115: 8 | AC115: 8 | AF115: 7 | AM115: 7 | BG115: 7 | BK115: 7 | BS115: 7 | CM115: 8 | CN115: 7 | CS115: 10
B116: М171МУБЕЗ006 | C116: Жучков Константин Сергеевич | D116: 1937370401 | E116: МИБ171 | F116: Управление информационной безопасностью | G116: Бюдж | H116: =MATCH(D116,Данные!$D$1:$D$65536,0) -> 75 | I116: 476 | J116: 102 | K116: 14 | L116: =IF(K116 > 0,J116/K116,0) -> 7.285714286 | M116: =MIN($O116:DB116) -> 4 | N116: 105 | R116: 6 | T116: 8 | U116: 6 | V116: 6 | X116: 8 | AC116: 7 | AF116: 7 | BG116: 8 | BK116: 8 | BS116: 8 | CM116: 8 | CN116: 8 | CO116: 4 | CS116: 10
A117: 106 - 107 | B117: М171МБИИН060 | C117: Сиднев Игорь Дмитриевич | D117: 1937363561 | E117: МБИ173 | F117: Бизнес-информатика | G117: Бюдж | H117: =MATCH(D117,Данные!$D$1:$D$65536,0) -> 230 | I117: 474 | J117: 94 | K117: 12 | L117: =IF(K117 > 0,J117/K117,0) -> 7.833333333 | M117: =MIN($O117:DB117) -> 5 | N117: 106 | U117: 10 | V117: 5 | AC117: 7 | AH117: 7 | AS117: 8 | BB117: 8 | BK117: 10 | BR117: 7 | CU117: 10 | CV117: 8 | CW117: 8 | CZ117: 6
B118: М171МУБЕЗ008 | C118: Козлов Никита Вячеславович | D118: 1937370580 | E118: МИБ171 | F118: Управление информационной безопасностью | G118: Бюдж | H118: =MATCH(D118,Данные!$D$1:$D$65536,0) -> 68 | I118: 474 | J118: 101 | K118: 14 | L118: =IF(K118 > 0,J118/K118,0) -> 7.214285714 | M118: =MIN($O118:DB118) -> 5 | N118: 107 | R118: 6 | T118: 10 | U118: 7 | V118: 7 | X118: 7 | AC118: 6 | AF118: 6 | AW118: 5 | BG118: 8 | BK118: 10 | BS118: 10 | CM118: 8 | CN118: 6 | CS118: 5
A119: 108 - 109 | B119: М171МБИИН072 | C119: Кривенцов Феликс Константинович | D119: 1940815800 | E119: МБИ172 | F119: Бизнес-информатика | G119: Бюдж | H119: =MATCH(D119,Данные!$D$1:$D$65536,0) -> 205 | I119: 473 | J119: 95 | K119: 12 | L119: =IF(K119 > 0,J119/K119,0) -> 7.916666667 | M119: =MIN($O119:DB119) -> 6 | N119: 108 | U119: 9 | V119: 8 | AC119: 6 | AD119: 7 | AH119: 8 | BB119: 7 | BD119: 8 | BK119: 9 | BR119: 7 | CU119: 9 | CV119: 8 | CW119: 9
B120: М171МСБДН035 | C120: - Маниканта Рукмангада | D120: 1970446330 | E120: МБД171 | F120: Системы больших данных | G120: Бюдж | H120: =MATCH(D120,Данные!$D$1:$D$65536,0) -> 17 | I120: 473 | J120: 119 | K120: 17 | L120: =IF(K120 > 0,J120/K120,0) -> 7 | M120: =MIN($O120:DB120) -> 4 | N120: 109 | P120: 7 | Q120: 9 | V120: 8 | W120: 8 | AA120: 9 | AB120: 4 | AI120: 7 | AN120: 8 | AX120: 6 | AY120: 6 | BJ120: 6 | BP120: 7 | BV120: 7 | CA120: 6 | CI120: 8 | CK120: 9 | CP120: 4
A121: 110 | B121: М171МЭЛБЗ009 | C121: Ким Дин Хо | D121: 1937373052 | E121: МЭБ171 | F121: Электронный бизнес | G121: Бюдж | H121: =MATCH(D121,Данные!$D$1:$D$65536,0) -> 181 | I121: 472 | J121: 96 | K121: 13 | L121: =IF(K121 > 0,J121/K121,0) -> 7.384615385 | M121: =MIN($O121:DB121) -> 6 | N121: 110 | U121: 7 | V121: 7 | Y121: 7 | AC121: 7 | AE121: 6 | AK121: 7 | AR121: 9 | BF121: 6 | BK121: 8 | BU121: 8 | BZ121: 7 | CG121: 7 | CR121: 10
A122: 111 - 112 | B122: М161МБИИН048 | C122: Майборода Кирилл Алексеевич | D122: 2162833425 | E122: МБИ173 | F122: Бизнес-информатика | G122: Бюдж | H122: =MATCH(D122,Данные!$D$1:$D$65536,0) -> 215 | I122: 471 | J122: 89 | K122: 12 | L122: =IF(K122 > 0,J122/K122,0) -> 7.416666667 | M122: =MIN($O122:DB122) -> 4 | N122: 111 | U122: 6 | V122: 4 | AC122: 6 | AH122: 6 | AS122: 10 | AZ122: 7 | BB122: 8 | BK122: 10 | BT122: 10 | CU122: 10 | CV122: 6 | CW122: 6
B123: М171МБИИН073 | C123: Масалимов Тимур Ринатович | D123: 1940815828 | E123: МБИ172 | F123: Бизнес-информатика | G123: Комм | H123: =MATCH(D123,Данные!$D$1:$D$65536,0) -> 91 | I123: 471 | J123: 100 | K123: 14 | L123: =IF(K123 > 0,J123/K123,0) -> 7.142857143 | M123: =MIN($O123:DB123) -> 5 | N123: 112 | R123: 7 | S123: 8 | U123: 8 | V123: 7 | AC123: 6 | AO123: 5 | AP123: 5 | BK123: 6 | BQ123: 8 | CD123: 8 | CU123: 10 | CV123: 7 | CW123: 7 | CY123: 8
A124: 113 | B124: М171МБИИН004 | C124: Антонова Анастасия Романовна | D124: 1937363745 | E124: МБИ171 | F124: Бизнес-информатика | G124: Бюдж | H124: =MATCH(D124,Данные!$D$1:$D$65536,0) -> 273 | I124: 470 | J124: 94 | K124: 12 | L124: =IF(K124 > 0,J124/K124,0) -> 7.833333333 | M124: =MIN($O124:DB124) -> 5 | N124: 113 | U124: 9 | V124: 7 | AC124: 8 | AO124: 7 | AS124: 10 | BB124: 5 | BC124: 8 | BD124: 8 | BK124: 8 | BQ124: 8 | CJ124: 8 | CV124: 8
A125: 114 | B125: М171МБИИН056 | C125: Рудь Роман Сергеевич | D125: 1937363680 | E125: МБИ173 | F125: Бизнес-информатика | G125: Бюдж | H125: =MATCH(D125,Данные!$D$1:$D$65536,0) -> 268 | I125: 468 | J125: 96 | K125: 12 | L125: =IF(K125 > 0,J125/K125,0) -> 8 | M125: =MIN($O125:DB125) -> 5 | N125: 114 | U125: 10 | V125: 7 | AC125: 7 | AO125: 9 | BB125: 7 | BC125: 9 | BK125: 5 | BR125: 7 | CJ125: 9 | CU125: 10 | CV125: 7 | CW125: 9
A126: 115 - 116 | B126: М171МБИИН053 | C126: Пронин Никита Павлович | D126: 1937363469 | E126: МБИ173 | F126: Бизнес-информатика | G126: Бюдж | H126: =MATCH(D126,Данные!$D$1:$D$65536,0) -> 246 | I126: 467 | J126: 92 | K126: 12 | L126: =IF(K126 > 0,J126/K126,0) -> 7.666666667 | M126: =MIN($O126:DB126) -> 5 | N126: 115 | U126: 7 | V126: 7 | AC126: 7 | AS126: 10 | BB126: 7 | BD126: 8 | BK126: 9 | BR126: 7 | CG126: 5 | CU126: 10 | CV126: 8 | CW126: 7
B127: М171МСБДН014 | C127: Трегубова Инесса Александровна | D127: 1937366175 | E127: МБД171 | F127: Системы больших данных | G127: Бюдж | H127: =MATCH(D127,Данные!$D$1:$D$65536,0) -> 11 | I127: 467 | J127: 117 | K127: 17 | L127: =IF(K127 > 0,J127/K127,0) -> 6.882352941 | M127: =MIN($O127:DB127) -> 4 | N127: 116 | P127: 7 | Q127: 6 | V127: 9 | W127: 6 | AA127: 7 | AB127: 5 | AI127: 7 | AN127: 6 | AW127: 4 | AY127: 7 | BJ127: 8 | BP127: 8 | CA127: 8 | CE127: 10 | CI127: 8 | CK127: 7 | CP127: 4
A128: 117 - 119 | B128: М171МБИИН012 | C128: Богданов Кирилл Алексеевич | D128: 1937363732 | E128: МБИ171 | F128: Бизнес-информатика | G128: Бюдж | H128: =MATCH(D128,Данные!$D$1:$D$65536,0) -> 272 | I128: 463 | J128: 93 | K128: 12 | L128: =IF(K128 > 0,J128/K128,0) -> 7.75 | M128: =MIN($O128:DB128) -> 6 | N128: 117 | U128: 10 | V128: 6 | AC128: 9 | AP128: 6 | AS128: 10 | BB128: 7 | BK128: 10 | BR128: 7 | CD128: 6 | CU128: 10 | CV128: 6 | CY128: 6
B129: М171МБИИН008 | C129: Бардакова Мария Вячеславовна | D129: 1937363441 | E129: МБИ171 | F129: Бизнес-информатика | G129: Бюдж | H129: =MATCH(D129,Данные!$D$1:$D$65536,0) -> 245 | I129: 463 | J129: 92 | K129: 12 | L129: =IF(K129 > 0,J129/K129,0) -> 7.666666667 | M129: =MIN($O129:DB129) -> 6 | N129: 118 | U129: 8 | V129: 6 | AC129: 6 | AH129: 8 | AS129: 10 | BB129: 7 | BK129: 7 | BT129: 8 | CQ129: 8 | CU129: 9 | CV129: 6 | CW129: 9
B130: М171МЭЛБЗ028 | C130: Цандере Юлия | D130: 1945760044 | E130: МЭБ171 | F130: Электронный бизнес | G130: Комм | H130: =MATCH(D130,Данные!$D$1:$D$65536,0) -> 218 | I130: 463 | J130: 94 | K130: 13 | L130: =IF(K130 > 0,J130/K130,0) -> 7.230769231 | M130: =MIN($O130:DB130) -> 4 | N130: 119 | U130: 8 | V130: 5 | Y130: 8 | AC130: 7 | AE130: 8 | AK130: 8 | AQ130: 7 | AR130: 8 | BF130: 4 | BK130: 8 | BU130: 8 | BZ130: 7 | CR130: 8
A131: 120 | B131: М171МБИИН069 | C131: Чубаров Алексей Глебович | D131: 1937364016 | E131: МБИ173 | F131: Бизнес-информатика | G131: Бюдж | H131: =MATCH(D131,Данные!$D$1:$D$65536,0) -> 279 | I131: 461 | J131: 92 | K131: 12 | L131: =IF(K131 > 0,J131/K131,0) -> 7.666666667 | M131: =MIN($O131:DB131) -> 5 | N131: 120 | U131: 9 | V131: 6 | AC131: 5 | AH131: 8 | AO131: 8 | AQ131: 8 | BK131: 10 | BR131: 7 | CD131: 6 | CJ131: 8 | CU131: 10 | CV131: 7
A132: 121 - 123 | B132: М171МБИИН070 | C132: Юдин Андрей Анатольевич | D132: 1937363359 | E132: МБИ173 | F132: Бизнес-информатика | G132: Бюдж | H132: =MATCH(D132,Данные!$D$1:$D$65536,0) -> 240 | I132: 460 | J132: 91 | K132: 12 | L132: =IF(K132 > 0,J132/K132,0) -> 7.583333333 | M132: =MIN($O132:DB132) -> 6 | N132: 121 | U132: 7 | V132: 6 | AC132: 8 | AH132: 8 | AS132: 8 | BA132: 7 | BB132: 7 | BK132: 7 | BT132: 8 | CU132: 10 | CV132: 6 | CW132: 9
B133: М171МЭЛБЗ015 | C133: Лучкин Андрей Владимирович | D133: 1937372880 | E133: МЭБ171 | F133: Электронный бизнес | G133: Бюдж | H133: =MATCH(D133,Данные!$D$1:$D$65536,0) -> 185 | I133: 460 | J133: 97 | K133: 13 | L133: =IF(K133 > 0,J133/K133,0) -> 7.461538462 | M133: =MIN($O133:DB133) -> 4 | N133: 122 | U133: 10 | V133: 6 | Y133: 10 | AC133: 7 | AE133: 10 | AK133: 8 | AR133: 8 | BF133: 4 | BK133: 6 | BU133: 6 | BZ133: 8 | CO133: 5 | CR133: 9
B134: М171МБИИН091 | C134: Сарычев Роман Владимирович | D134: 1941989095 | E134: МБИ173 | F134: Бизнес-информатика | G134: Комм | H134: =MATCH(D134,Данные!$D$1:$D$65536,0) -> 88 | I134: 460 | J134: 96 | K134: 14 | L134: =IF(K134 > 0,J134/K134,0) -> 6.857142857 | M134: =MIN($O134:DB134) -> 4 | N134: 123 | R134: 5 | S134: 8 | U134: 7 | V134: 10 | AC134: 9 | AH134: 5 | AS134: 8 | BB134: 6 | BH134: 4 | BK134: 8 | BT134: 9 | CU134: 7 | CV134: 4 | CW134: 6
A135: 124 | B135: М171МБИИН040 | C135: Лебедева Надежда Юрьевна | D135: 1937363970 | E135: МБИ172 | F135: Бизнес-информатика | G135: Бюдж | H135: =MATCH(D135,Данные!$D$1:$D$65536,0) -> 264 | I135: 459 | J135: 91 | K135: 12 | L135: =IF(K135 > 0,J135/K135,0) -> 7.583333333 | M135: =MIN($O135:DB135) -> 5 | N135: 124 | U135: 7 | V135: 6 | AC135: 7 | AH135: 7 | AS135: 10 | BA135: 8 | BB135: 6 | BK135: 5 | BT135: 8 | CU135: 10 | CV135: 8 | CW135: 9
A136: 125 - 126 | B136: М171МУБЕЗ009 | C136: Коровин Кирилл Сергеевич | D136: 1937370452 | E136: МИБ171 | F136: Управление информационной безопасностью | G136: Бюдж | H136: =MATCH(D136,Данные!$D$1:$D$65536,0) -> 139 | I136: 456 | J136: 96 | K136: 13 | L136: =IF(K136 > 0,J136/K136,0) -> 7.384615385 | M136: =MIN($O136:DB136) -> 4 | N136: 125 | T136: 9 | U136: 8 | V136: 6 | X136: 9 | AC136: 7 | AF136: 6 | BG136: 5 | BK136: 10 | BS136: 10 | BY136: 6 | CM136: 4 | CN136: 8 | CS136: 8
B137: М171МЭЛБЗ012 | C137: Куратова Александра Евгеньевна | D137: 1937372811 | E137: МЭБ171 | F137: Электронный бизнес | G137: Бюдж | H137: =MATCH(D137,Данные!$D$1:$D$65536,0) -> 197 | I137: 456 | J137: 92 | K137: 13 | L137: =IF(K137 > 0,J137/K137,0) -> 7.076923077 | M137: =MIN($O137:DB137) -> 6 | N137: 126 | U137: 7 | V137: 6 | Y137: 7 | AC137: 8 | AE137: 7 | AK137: 8 | AR137: 8 | BF137: 6 | BK137: 8 | BN137: 6 | BU137: 8 | BZ137: 7 | CR137: 6
A138: 127 - 128 | B138: М171МБИИН028 | C138: Ершова Александра Романовна | D138: 1937363957 | E138: МБИ172 | F138: Бизнес-информатика | G138: Бюдж | H138: =MATCH(D138,Данные!$D$1:$D$65536,0) -> 263 | I138: 455 | J138: 92 | K138: 12 | L138: =IF(K138 > 0,J138/K138,0) -> 7.666666667 | M138: =MIN($O138:DB138) -> 5 | N138: 127 | U138: 10 | V138: 7 | AC138: 8 | AH138: 6 | AS138: 10 | BB138: 5 | BK138: 8 | BQ138: 7 | CO138: 7 | CU138: 10 | CV138: 8 | CW138: 6
B139: М171МЭЛБЗ019 | C139: Рубцова Екатерина Андреевна | D139: 1937372972 | E139: МЭБ171 | F139: Электронный бизнес | G139: Бюдж | H139: =MATCH(D139,Данные!$D$1:$D$65536,0) -> 175 | I139: 455 | J139: 93 | K139: 13 | L139: =IF(K139 > 0,J139/K139,0) -> 7.153846154 | M139: =MIN($O139:DB139) -> 5 | N139: 128 | U139: 8 | V139: 6 | Y139: 7 | AC139: 7 | AE139: 8 | AK139: 8 | AM139: 5 | AR139: 9 | BF139: 6 | BK139: 6 | BU139: 7 | BZ139: 8 | CR139: 8
A140: 129 | B140: М171МБИИН023 | C140: Герасимов Станислав Александрович | D140: 1937364058 | E140: МБИ171 | F140: Бизнес-информатика | G140: Бюдж | H140: =MATCH(D140,Данные!$D$1:$D$65536,0) -> 57 | I140: 454 | J140: 96 | K140: 14 | L140: =IF(K140 > 0,J140/K140,0) -> 6.857142857 | M140: =MIN($O140:DB140) -> 4 | N140: 129 | R140: 7 | S140: 8 | U140: 8 | V140: 5 | AC140: 6 | AH140: 5 | AS140: 10 | BB140: 7 | BK140: 7 | BQ140: 6 | CU140: 10 | CV140: 7 | CW140: 6 | CY140: 4
A141: 130 | B141: М171МУБЕЗ011 | C141: Никитин Андрей Олегович | D141: 1937371125 | E141: МИБ171 | F141: Управление информационной безопасностью | G141: Бюдж | H141: =MATCH(D141,Данные!$D$1:$D$65536,0) -> 70 | I141: 453 | J141: 98 | K141: 14 | L141: =IF(K141 > 0,J141/K141,0) -> 7 | M141: =MIN($O141:DB141) -> 4 | N141: 130 | R141: 8 | T141: 8 | U141: 7 | V141: 4 | X141: 8 | AC141: 8 | AF141: 10 | BG141: 5 | BK141: 9 | BS141: 9 | CM141: 6 | CN141: 6 | CS141: 6 | DA141: 4
A142: 131 | B142: М171МЭЛБЗ004 | C142: Гимашев Линар Русланович | D142: 1937372796 | E142: МЭБ171 | F142: Электронный бизнес | G142: Бюдж | H142: =MATCH(D142,Данные!$D$1:$D$65536,0) -> 196 | I142: 452 | J142: 93 | K142: 13 | L142: =IF(K142 > 0,J142/K142,0) -> 7.153846154 | M142: =MIN($O142:DB142) -> 5 | N142: 131 | U142: 9 | V142: 5 | Y142: 8 | AC142: 6 | AE142: 7 | AK142: 8 | AR142: 8 | BF142: 7 | BH142: 6 | BK142: 6 | BU142: 7 | BZ142: 7 | CR142: 9
A143: 132 | B143: М171МБИИН042 | C143: Лобач Петр Сергеевич | D143: 1937363865 | E143: МБИ172 | F143: Бизнес-информатика | G143: Бюдж | H143: =MATCH(D143,Данные!$D$1:$D$65536,0) -> 256 | I143: 449 | J143: 90 | K143: 12 | L143: =IF(K143 > 0,J143/K143,0) -> 7.5 | M143: =MIN($O143:DB143) -> 5 | N143: 132 | U143: 10 | V143: 6 | AC143: 6 | AP143: 5 | AS143: 10 | AV143: 6 | BB143: 7 | BK143: 10 | BR143: 7 | CU143: 10 | CV143: 6 | CY143: 7
A144: 133 | B144: М171МБИИН085 | C144: Гареев Эмиль Хамидович | D144: 1942008650 | E144: МБИ171 | F144: Бизнес-информатика | G144: Бюдж | H144: =MATCH(D144,Данные!$D$1:$D$65536,0) -> 156 | I144: 448 | J144: 90 | K144: 12 | L144: =IF(K144 > 0,J144/K144,0) -> 7.5 | M144: =MIN($O144:DB144) -> 4 | N144: 133 | U144: 10 | V144: 7 | AC144: 5 | AH144: 8 | AZ144: 9 | BB144: 6 | BK144: 8 | BT144: 8 | CD144: 4 | CU144: 10 | CV144: 7 | CW144: 8
A145: 134 - 135 | B145: М171МБИИН027 | C145: Дунец Владислав Олегович | D145: 1937363785 | E145: МБИ172 | F145: Бизнес-информатика | G145: Бюдж | H145: =MATCH(D145,Данные!$D$1:$D$65536,0) -> 275 | I145: 447 | J145: 90 | K145: 12 | L145: =IF(K145 > 0,J145/K145,0) -> 7.5 | M145: =MIN($O145:DB145) -> 4 | N145: 134 | U145: 10 | V145: 6 | AC145: 6 | AP145: 6 | AS145: 10 | BB145: 7 | BK145: 9 | BR145: 7 | BY145: 8 | CD145: 4 | CU145: 10 | CV145: 7
B146: М171МЭЛБЗ016 | C146: Минеева Анастасия Сергеевна | D146: 1937372826 | E146: МЭБ171 | F146: Электронный бизнес | G146: Бюдж | H146: =MATCH(D146,Данные!$D$1:$D$65536,0) -> 81 | I146: 447 | J146: 93 | K146: 14 | L146: =IF(K146 > 0,J146/K146,0) -> 6.642857143 | M146: =MIN($O146:DB146) -> 5 | N146: 135 | R146: 6 | U146: 8 | V146: 5 | Y146: 7 | AC146: 6 | AE146: 7 | AK146: 8 | AR146: 7 | BF146: 5 | BK146: 7 | BU146: 7 | BZ146: 6 | CG146: 5 | CR146: 9
A147: 136 | B147: М171МБИИН025 | C147: Давтян Артем Сергеевич | D147: 1937363626 | E147: МБИ171 | F147: Бизнес-информатика | G147: Бюдж | H147: =MATCH(D147,Данные!$D$1:$D$65536,0) -> 235 | I147: 442 | J147: 88 | K147: 12 | L147: =IF(K147 > 0,J147/K147,0) -> 7.333333333 | M147: =MIN($O147:DB147) -> 6 | N147: 136 | U147: 9 | V147: 7 | AC147: 6 | AP147: 6 | AS147: 10 | AV147: 7 | BB147: 6 | BK147: 8 | BR147: 7 | CD147: 7 | CV147: 9 | CY147: 6
A148: 137 | B148: М171МБИИН022 | C148: Гареев Артем Фаридович | D148: 1937364084 | E148: МБИ171 | F148: Бизнес-информатика | G148: Бюдж | H148: =MATCH(D148,Данные!$D$1:$D$65536,0) -> 250 | I148: 438 | J148: 87 | K148: 12 | L148: =IF(K148 > 0,J148/K148,0) -> 7.25 | M148: =MIN($O148:DB148) -> 5 | N148: 137 | U148: 8 | V148: 6 | AC148: 7 | AO148: 6 | BB148: 7 | BK148: 10 | BR148: 7 | CJ148: 6 | CL148: 6 | CU148: 10 | CV148: 5 | CW148: 9
A149: 138 - 139 | B149: М171МБИИН054 | C149: Пьянов Родион Альбертович | D149: 1937363345 | E149: МБИ173 | F149: Бизнес-информатика | G149: Бюдж | H149: =MATCH(D149,Данные!$D$1:$D$65536,0) -> 239 | I149: 434 | J149: 87 | K149: 12 | L149: =IF(K149 > 0,J149/K149,0) -> 7.25 | M149: =MIN($O149:DB149) -> 4 | N149: 138 | U149: 9 | V149: 7 | AC149: 8 | AH149: 4 | AS149: 10 | BD149: 9 | BK149: 8 | BQ149: 7 | CD149: 7 | CV149: 8 | CW149: 4 | CY149: 6
B150: М171МБИИН080 | C150: Шумилин Дмитрий Станиславович | D150: 1940815743 | E150: МБИ173 | F150: Бизнес-информатика | G150: Комм | H150: =MATCH(D150,Данные!$D$1:$D$65536,0) -> 212 | I150: 434 | J150: 87 | K150: 12 | L150: =IF(K150 > 0,J150/K150,0) -> 7.25 | M150: =MIN($O150:DB150) -> 6 | N150: 139 | U150: 9 | V150: 7 | AC150: 6 | AH150: 7 | AP150: 6 | BB150: 7 | BD150: 7 | BK150: 9 | BT150: 8 | BY150: 9 | CD150: 6 | CV150: 6
A151: 140 | B151: М171МСБДН030 | C151: Скачок Андрей | D151: 1946791924 | E151: МБД171 | F151: Системы больших данных | G151: Комм | H151: =MATCH(D151,Данные!$D$1:$D$65536,0) -> 436 | I151: 432 | J151: 108 | K151: 15 | L151: =IF(K151 > 0,J151/K151,0) -> 7.2 | M151: =MIN($O151:DB151) -> 4 | N151: 140 | V151: 9 | W151: 6 | AA151: 8 | AB151: 6 | AG151: 9 | AI151: 8 | AN151: 7 | BJ151: 6 | BM151: 9 | BP151: 8 | BV151: 7 | CA151: 6 | CI151: 8 | CK151: 7 | CP151: 4
A152: 141 - 142 | B152: М171МБИИН006 | C152: Бабанов Павел Александрович | D152: 1937363930 | E152: МБИ171 | F152: Бизнес-информатика | G152: Бюдж | H152: =MATCH(D152,Данные!$D$1:$D$65536,0) -> 261 | I152: 430 | J152: 86 | K152: 12 | L152: =IF(K152 > 0,J152/K152,0) -> 7.166666667 | M152: =MIN($O152:DB152) -> 6 | N152: 141 | U152: 9 | V152: 6 | AC152: 7 | AO152: 7 | AV152: 7 | BB152: 6 | BD152: 8 | BK152: 7 | BQ152: 7 | CD152: 6 | CV152: 9 | CY152: 7
B153: М171МБИИН007 | C153: Бадаева Мария Мингияновна | D153: 1937363851 | E153: МБИ171 | F153: Бизнес-информатика | G153: Бюдж | H153: =MATCH(D153,Данные!$D$1:$D$65536,0) -> 255 | I153: 430 | J153: 84 | K153: 12 | L153: =IF(K153 > 0,J153/K153,0) -> 7 | M153: =MIN($O153:DB153) -> 4 | N153: 142 | U153: 7 | V153: 5 | AC153: 5 | AH153: 6 | AL153: 8 | AS153: 10 | BB153: 7 | BK153: 7 | BT153: 8 | CJ153: 4 | CV153: 8 | CW153: 9
A154: 143 | B154: М171МЭЛБЗ011 | C154: Китьян Акмаль Алексеевич | D154: 1937372906 | E154: МЭБ171 | F154: Электронный бизнес | G154: Бюдж | H154: =MATCH(D154,Данные!$D$1:$D$65536,0) -> 187 | I154: 429 | J154: 88 | K154: 13 | L154: =IF(K154 > 0,J154/K154,0) -> 6.769230769 | M154: =MIN($O154:DB154) -> 5 | N154: 143 | U154: 9 | V154: 6 | Y154: 8 | AC154: 7 | AE154: 6 | AK154: 8 | AM154: 6 | AR154: 5 | BF154: 5 | BK154: 6 | BU154: 8 | BZ154: 8 | CR154: 6
A155: 144 | B155: М171МБИИН079 | C155: Шпилевская Наталья Викторовна | D155: 1940815815 | E155: МБИ173 | F155: Бизнес-информатика | G155: Комм | H155: =MATCH(D155,Данные!$D$1:$D$65536,0) -> 206 | I155: 428 | J155: 86 | K155: 12 | L155: =IF(K155 > 0,J155/K155,0) -> 7.166666667 | M155: =MIN($O155:DB155) -> 4 | N155: 144 | U155: 10 | V155: 8 | AC155: 6 | AD155: 8 | AO155: 5 | AP155: 4 | AV155: 4 | BK155: 8 | BQ155: 8 | CD155: 8 | CV155: 8 | CW155: 9
A156: 145 | B156: М171МБИИН049 | C156: Паймакова Татьяна Сергеевна | D156: 1937363574 | E156: МБИ173 | F156: Бизнес-информатика | G156: Бюдж | H156: =MATCH(D156,Данные!$D$1:$D$65536,0) -> 231 | I156: 423 | J156: 85 | K156: 12 | L156: =IF(K156 > 0,J156/K156,0) -> 7.083333333 | M156: =MIN($O156:DB156) -> 4 | N156: 145 | U156: 8 | V156: 6 | AC156: 7 | AH156: 5 | AS156: 10 | BK156: 8 | BL156: 7 | BR156: 7 | CJ156: 7 | CU156: 10 | CV156: 4 | CW156: 6
A157: 146 - 147 | B157: М171МУБЕЗ001 | C157: Белоус Илия Григорьевич | D157: 1937371143 | E157: МИБ171 | F157: Управление информационной безопасностью | G157: Бюдж | H157: =MATCH(D157,Данные!$D$1:$D$65536,0) -> 71 | I157: 421 | J157: 94 | K157: 14 | L157: =IF(K157 > 0,J157/K157,0) -> 6.714285714 | M157: =MIN($O157:DB157) -> 4 | N157: 146 | R157: 6 | T157: 8 | U157: 6 | V157: 5 | X157: 8 | AC157: 5 | AD157: 8 | AF157: 8 | BG157: 4 | BK157: 7 | BS157: 7 | CM157: 6 | CN157: 6 | CS157: 10
B158: М171МЭЛБЗ014 | C158: Лунин Никита Константинович | D158: 1937372959 | E158: МЭБ171 | F158: Электронный бизнес | G158: Бюдж | H158: =MATCH(D158,Данные!$D$1:$D$65536,0) -> 174 | I158: 421 | J158: 86 | K158: 13 | L158: =IF(K158 > 0,J158/K158,0) -> 6.615384615 | M158: =MIN($O158:DB158) -> 4 | N158: 147 | U158: 8 | V158: 6 | Y158: 8 | AC158: 7 | AE158: 7 | AK158: 8 | AM158: 6 | AR158: 5 | BF158: 4 | BK158: 6 | BU158: 8 | BZ158: 7 | CR158: 6
A159: 148 | B159: М171МБИИН020 | C159: Гайнутдинов Наиль Анварович | D159: 1937363482 | E159: МБИ171 | F159: Бизнес-информатика | G159: Бюдж | H159: =MATCH(D159,Данные!$D$1:$D$65536,0) -> 247 | I159: 417 | J159: 83 | K159: 12 | L159: =IF(K159 > 0,J159/K159,0) -> 6.916666667 | M159: =MIN($O159:DB159) -> 5 | N159: 148 | U159: 7 | V159: 6 | AC159: 7 | AD159: 5 | AH159: 6 | AS159: 10 | BB159: 6 | BK159: 7 | BT159: 6 | CU159: 8 | CV159: 8 | CW159: 7
A160: 149 | B160: М171МБИИН059 | C160: Семенова Элина Михайловна | D160: 1937364192 | E160: МБИ173 | F160: Бизнес-информатика | G160: Бюдж | H160: =MATCH(D160,Данные!$D$1:$D$65536,0) -> 277 | I160: 415 | J160: 81 | K160: 12 | L160: =IF(K160 > 0,J160/K160,0) -> 6.75 | M160: =MIN($O160:DB160) -> 4 | N160: 149 | U160: 7 | V160: 8 | AC160: 4 | AO160: 8 | AV160: 4 | BB160: 6 | BK160: 8 | BQ160: 8 | CJ160: 8 | CV160: 6 | CW160: 9 | CZ160: 5
A161: 150 | B161: М171МБИИН035 | C161: Колесникова Анна Сергеевна | D161: 1937363509 | E161: МБИ172 | F161: Бизнес-информатика | G161: Бюдж | H161: =MATCH(D161,Данные!$D$1:$D$65536,0) -> 226 | I161: 414 | J161: 82 | K161: 12 | L161: =IF(K161 > 0,J161/K161,0) -> 6.833333333 | M161: =MIN($O161:DB161) -> 5 | N161: 150 | U161: 8 | V161: 5 | AC161: 7 | AH161: 6 | AS161: 8 | AV161: 7 | BB161: 6 | BK161: 7 | BR161: 7 | BW161: 6 | CU161: 8 | CV161: 7
A162: 151 | B162: М171МБИИН010 | C162: Белов Григорий Игоревич | D162: 1937363719 | E162: МБИ171 | F162: Бизнес-информатика | G162: Бюдж | H162: =MATCH(D162,Данные!$D$1:$D$65536,0) -> 271 | I162: 409 | J162: 83 | K162: 12 | L162: =IF(K162 > 0,J162/K162,0) -> 6.916666667 | M162: =MIN($O162:DB162) -> 4 | N162: 151 | U162: 8 | V162: 7 | AC162: 7 | AH162: 5 | AS162: 10 | BK162: 6 | BL162: 7 | BR162: 7 | CJ162: 6 | CU162: 10 | CV162: 4 | CW162: 6
A163: 152 | B163: М171МБИИН033 | C163: Китайкина Мария Алексеевна | D163: 1937363986 | E163: МБИ172 | F163: Бизнес-информатика | G163: Бюдж | H163: =MATCH(D163,Данные!$D$1:$D$65536,0) -> 265 | I163: 408 | J163: 81 | K163: 12 | L163: =IF(K163 > 0,J163/K163,0) -> 6.75 | M163: =MIN($O163:DB163) -> 4 | N163: 152 | U163: 9 | V163: 7 | AC163: 6 | AO163: 9 | AP163: 6 | BD163: 9 | BK163: 8 | BL163: 4 | BQ163: 7 | CD163: 4 | CJ163: 6 | CV163: 6
A164: 153 | B164: М171МБИИН005 | C164: Антонова Софья Глебовна | D164: 1937363943 | E164: МБИ171 | F164: Бизнес-информатика | G164: Бюдж | H164: =MATCH(D164,Данные!$D$1:$D$65536,0) -> 262 | I164: 400 | J164: 79 | K164: 12 | L164: =IF(K164 > 0,J164/K164,0) -> 6.583333333 | M164: =MIN($O164:DB164) -> 4 | N164: 153 | U164: 8 | V164: 5 | AC164: 8 | AO164: 7 | AP164: 4 | BD164: 9 | BK164: 8 | BL164: 5 | BQ164: 7 | CD164: 7 | CJ164: 5 | CV164: 6
A165: 154 | B165: М171МБИИН014 | C165: Большаков Егор Максимович | D165: 1937363706 | E165: МБИ171 | F165: Бизнес-информатика | G165: Бюдж | H165: =MATCH(D165,Данные!$D$1:$D$65536,0) -> 270 | I165: 394 | J165: 82 | K165: 12 | L165: =IF(K165 > 0,J165/K165,0) -> 6.833333333 | M165: =MIN($O165:DB165) -> 4 | N165: 154 | U165: 8 | V165: 5 | AC165: 5 | AS165: 9 | BB165: 7 | BD165: 6 | BK165: 6 | BQ165: 5 | BY165: 10 | CD165: 7 | CU165: 10 | CV165: 4
A166: 155 | B166: М171МБИИН071 | C166: Дворяшин Дмитрий Александрович | D166: 1940815842 | E166: МБИ171 | F166: Бизнес-информатика | G166: Комм | H166: =MATCH(D166,Данные!$D$1:$D$65536,0) -> 208 | I166: 389 | J166: 79 | K166: 12 | L166: =IF(K166 > 0,J166/K166,0) -> 6.583333333 | M166: =MIN($O166:DB166) -> 5 | N166: 155 | U166: 7 | V166: 6 | AC166: 6 | AH166: 6 | AS166: 10 | AV166: 6 | BB166: 5 | BK166: 6 | BQ166: 6 | CD166: 7 | CV166: 6 | CY166: 8
A167: 156 | B167: М171МБИИН044 | C167: Мартынов Александр Дмитриевич | D167: 1937363917 | E167: МБИ172 | F167: Бизнес-информатика | G167: Бюдж | H167: =MATCH(D167,Данные!$D$1:$D$65536,0) -> 260 | I167: 387 | J167: 76 | K167: 12 | L167: =IF(K167 > 0,J167/K167,0) -> 6.333333333 | M167: =MIN($O167:DB167) -> 4 | N167: 156 | U167: 7 | V167: 4 | AC167: 7 | AH167: 5 | AS167: 9 | BB167: 6 | BI167: 4 | BK167: 9 | BT167: 6 | CU167: 9 | CV167: 5 | CW167: 5
A168: 157 | B168: М161МЖУРД016 | C168: Леонов Антон Александрович | D168: 2097188263 | E168: МБД171 | F168: Системы больших данных | G168: Бюдж | H168: =MATCH(D168,Данные!$D$1:$D$65536,0) -> 3 | I168: 385 | J168: 92 | K168: 12 | L168: =IF(K168 > 0,J168/K168,0) -> 7.666666667 | M168: =MIN($O168:DB168) -> 6 | N168: 157 | O168: 6 | W168: 7 | AI168: 9 | AN168: 8 | BJ168: 8 | BP168: 7 | BV168: 7 | CA168: 8 | CE168: 10 | CI168: 8 | CK168: 8 | CP168: 6
A169: 158 | B169: М171МБИИН031 | C169: Карасев Михаил Николаевич | D169: 1937363372 | E169: МБИ172 | F169: Бизнес-информатика | G169: Бюдж | H169: =MATCH(D169,Данные!$D$1:$D$65536,0) -> 241 | I169: 384 | J169: 75 | K169: 12 | L169: =IF(K169 > 0,J169/K169,0) -> 6.25 | M169: =MIN($O169:DB169) -> 4 | N169: 158 | U169: 8 | V169: 4 | AC169: 6 | AH169: 4 | AS169: 9 | BB169: 7 | BI169: 4 | BK169: 8 | BR169: 7 | CU169: 9 | CV169: 4 | CW169: 5
A170: 159 | B170: М171МБИИН015 | C170: Бондарь Сергей Борисович | D170: 1937364044 | E170: МБИ171 | F170: Бизнес-информатика | G170: Бюдж | H170: =MATCH(D170,Данные!$D$1:$D$65536,0) -> 65 | I170: 379 | J170: 81 | K170: 14 | L170: =IF(K170 > 0,J170/K170,0) -> 5.785714286 | M170: =MIN($O170:DB170) -> 4 | N170: 159 | R170: 7 | S170: 6 | U170: 6 | V170: 4 | AC170: 4 | AH170: 6 | AP170: 4 | AZ170: 5 | BB170: 5 | BK170: 10 | BQ170: 4 | CU170: 10 | CV170: 4 | CW170: 6
A171: 160 | B171: М171МБИИН087 | C171: Мингазов Аскар Альбертович | D171: 1941989147 | E171: МБИ172 | F171: Бизнес-информатика | G171: Комм | H171: =MATCH(D171,Данные!$D$1:$D$65536,0) -> 220 | I171: 373 | J171: 74 | K171: 12 | L171: =IF(K171 > 0,J171/K171,0) -> 6.166666667 | M171: =MIN($O171:DB171) -> 4 | N171: 160 | U171: 7 | V171: 5 | AC171: 5 | AD171: 4 | AH171: 6 | AS171: 9 | BB171: 8 | BK171: 5 | BT171: 6 | CU171: 9 | CV171: 5 | CW171: 5
A172: 161 | B172: М171МБИИН092 | C172: Феофанов Лев Андреевич | D172: 1941989079 | E172: МБИ173 | F172: Бизнес-информатика | G172: Комм | H172: =MATCH(D172,Данные!$D$1:$D$65536,0) -> 200 | I172: 365 | J172: 71 | K172: 12 | L172: =IF(K172 > 0,J172/K172,0) -> 5.916666667 | M172: =MIN($O172:DB172) -> 4 | N172: 161 | U172: 7 | V172: 4 | AC172: 5 | AH172: 4 | AS172: 9 | BK172: 8 | BR172: 7 | CD172: 5 | CU172: 9 | CV172: 4 | CW172: 4 | CZ172: 5
A173: 162 | B173: М171МБИИН021 | C173: Галков Алексей Александрович | D173: 1937363548 | E173: МБИ171 | F173: Бизнес-информатика | G173: Бюдж | H173: =MATCH(D173,Данные!$D$1:$D$65536,0) -> 229 | I173: 363 | J173: 74 | K173: 12 | L173: =IF(K173 > 0,J173/K173,0) -> 6.166666667 | M173: =MIN($O173:DB173) -> 4 | N173: 162 | U173: 8 | V173: 6 | AC173: 6 | AH173: 4 | AS173: 9 | BD173: 9 | BK173: 6 | BQ173: 5 | CD173: 6 | CV173: 6 | CW173: 4 | CY173: 5
A174: 163 | B174: М171МБИИН019 | C174: Волков Даниил Андреевич | D174: 1937363639 | E174: МБИ171 | F174: Бизнес-информатика | G174: Бюдж | H174: =MATCH(D174,Данные!$D$1:$D$65536,0) -> 236 | I174: 351 | J174: 74 | K174: 12 | L174: =IF(K174 > 0,J174/K174,0) -> 6.166666667 | M174: =MIN($O174:DB174) -> 4 | N174: 163 | U174: 8 | V174: 4 | AC174: 6 | AS174: 8 | BB174: 5 | BD174: 6 | BK174: 5 | BQ174: 4 | BY174: 9 | CD174: 5 | CU174: 10 | CV174: 4
A175: 164 | B175: М171МБИИН097 | C175: Варданян Карен Оганесович | D175: 1947090330 | E175: МБИ172 | F175: Бизнес-информатика | G175: Бюдж | H175: =MATCH(D175,Данные!$D$1:$D$65536,0) -> 219 | I175: 350 | J175: 72 | K175: 12 | L175: =IF(K175 > 0,J175/K175,0) -> 6 | M175: =MIN($O175:DB175) -> 4 | N175: 164 | U175: 7 | V175: 7 | AC175: 7 | AH175: 4 | BB175: 5 | BK175: 6 | BT175: 5 | CD175: 6 | CU175: 10 | CV175: 4 | CW175: 6 | CY175: 5
A176: 165 | B176: М171МБИИН095 | C176: Ким Анатолий | D176: 1944935723 | E176: МБИ173 | F176: Бизнес-информатика | G176: Комм | H176: =MATCH(D176,Данные!$D$1:$D$65536,0) -> 158 | I176: 346 | J176: 68 | K176: 12 | L176: =IF(K176 > 0,J176/K176,0) -> 5.666666667 | M176: =MIN($O176:DB176) -> 4 | N176: 165 | U176: 7 | V176: 4 | AC176: 6 | AH176: 7 | AS176: 7 | AV176: 4 | BA176: 5 | BB176: 5 | BD176: 7 | BK176: 5 | BR176: 7 | CV176: 4
A177: 166 | B177: М171МУБЕЗ021 | C177: Кабыкен Даулет | D177: 1942008109 | E177: МИБ171 | F177: Управление информационной безопасностью | G177: Бюдж | H177: =MATCH(D177,Данные!$D$1:$D$65536,0) -> 101 | I177: 343 | J177: 78 | K177: 14 | L177: =IF(K177 > 0,J177/K177,0) -> 5.571428571 | M177: =MIN($O177:DB177) -> 4 | N177: 166 | R177: 5 | T177: 7 | U177: 6 | V177: 7 | X177: 6 | AC177: 4 | AF177: 4 | BG177: 6 | BK177: 6 | BS177: 6 | BY177: 9 | CM177: 4 | CN177: 4 | CS177: 4
A178: 167 | B178: М171МУБЕЗ022 | C178: Нурматов Асхат | D178: 1942008132 | E178: МИБ171 | F178: Управление информационной безопасностью | G178: Бюдж | H178: =MATCH(D178,Данные!$D$1:$D$65536,0) -> 102 | I178: 333 | J178: 74 | K178: 14 | L178: =IF(K178 > 0,J178/K178,0) -> 5.285714286 | M178: =MIN($O178:DB178) -> 4 | N178: 167 | R178: 5 | T178: 6 | U178: 6 | V178: 4 | X178: 6 | AC178: 4 | AF178: 5 | BG178: 6 | BK178: 6 | BS178: 6 | BY178: 8 | CM178: 4 | CN178: 4 | CS178: 4
A179: 168 | B179: М171МБИИН001 | C179: Агарков Ярослав Алексеевич | D179: 1937363653 | F179: Бизнес-информатика | G179: Бюдж | H179: =MATCH(D179,Данные!$D$1:$D$65536,0) -> 237 | I179: 95 | J179: 25 | K179: 4 | L179: =IF(K179 > 0,J179/K179,0) -> 6.25 | M179: =MIN($O179:DB179) -> 5 | N179: 168 | U179: 7 | V179: 5 | AC179: 6 | AH179: н/я | AS179: 7 | BB179: н/я | BC179: н/я | BK179: н/я | BQ179: н/я | CD179: н/я | CU179: н/я | CV179: н/я

Sheet Данные (hidden)
A1: ID | B1: Оценка из 10 баллов | C1: Группа | D1: Студент | E1: Фамилия | F1: Имя | G1: Отчество | H1: Номер студенческого билета | I1: Строка учебного плана | J1: Кумулятивных кредитов за испытание | K1: Вид испытания | L1: Календарный период по плану | M1: Неявка | N1: В кумулятивный рейтинг | O1: Оценка зачет/назачет | P1: Является бюджетным | Q1: Учебный план | R1: Вид записи РУП | S1: Вид дисциплины по ИУП | T1: Номер Row
A2: 1 | B2: 2 | C2: 3 | D2: 4 | E2: 5 | F2: 6 | G2: 7 | H2: 8 | I2: 9 | J2: 10 | K2: 11 | L2: 12 | M2: 13 | N2: 14 | O2: 15 | P2: 16 | Q2: 17 | R2: 18 | S2: 19 | T2: 20
A3: 2101189725 | B3: 6 | C3: МБД171 | D3: 2097188263 | E3: Леонов Антон Александрович | F3: М161МЖУРД016 | G3: Анализ социальных сетей | H3: 3 | I3: Экзамен | J3: 2016/2017 учебный год 4 модуль | L3: 18 | M3: 1 | N3: 1 | P3: 5028 | Q3: ikPassed | R3: Системы больших данных | S3: =MATCH(D3,Отчет!$D$1:$D$65536,0) -> 168
A4: 1937458307 | B4: 9 | C4: МБД171 | D4: 1937366231 | E4: Дякин Николай Валерьевич | F4: М171МСБДН005 | G4: Анализ данных | H4: 3 | I4: Экзамен | J4: 2017/2018 учебный год 1 модуль | L4: 27 | M4: 1 | N4: 1 | O4: 1722525802 | P4: 2098 | R4: Системы больших данных | S4: =MATCH(D4,Отчет!$D$1:$D$65536,0) -> 21
A5: 1940930713 | B5: 10 | C5: МБД171 | D5: 1940816199 | E5: Обаляева Екатерина Ильинична | F5: М171МСБДН023 | G5: Анализ данных | H5: 3 | I5: Экзамен | J5: 2017/2018 учебный год 1 модуль | L5: 30 | M5: 1 | N5: 0 | O5: 1722525802 | P5: 2098 | R5: Системы больших данных | S5: =MATCH(D5,Отчет!$D$1:$D$65536,0) -> 36
A6: 1937460622 | B6: 7 | C6: МБД171 | D6: 1937366394 | E6: Шубина Виктория Ильинична | F6: М171МСБДН018 | G6: Анализ данных | H6: 3 | I6: Экзамен | J6: 2017/2018 учебный год 1 модуль | L6: 21 | M6: 1 | N6: 1 | O6: 1722525802 | P6: 2098 | R6: Системы больших данных | S6: =MATCH(D6,Отчет!$D$1:$D$65536,0) -> 32
A7: 1942061160 | B7: 8 | C7: МБД171 | D7: 1942007946 | E7: Ержанова Тогжан | F7: М171МСБДН029 | G7: Анализ данных | H7: 3 | I7: Экзамен | J7: 2017/2018 учебный год 1 модуль | L7: 24 | M7: 1 | N7: 1 | O7: 1722525802 | P7: 2098 | R7: Системы больших данных | S7: =MATCH(D7,Отчет!$D$1:$D$65536,0) -> 61
A8: 1937455568 | B8: 10 | C8: МБД171 | D8: 1937366216 | E8: Архипенко Анастасия Дмитриевна | F8: М171МСБДН001 | G8: Анализ данных | H8: 3 | I8: Экзамен | J8: 2017/2018 учебный год 1 модуль | L8: 30 | M8: 1 | N8: 1 | O8: 1722525802 | P8: 2098 | R8: Системы больших данных | S8: =MATCH(D8,Отчет!$D$1:$D$65536,0) -> 16
A9: 1959820458 | B9: 9 | C9: МБД171 | D9: 1959612809 | E9: Штройхофэр Кристофер | F9: М171МСБДН033 | G9: Анализ данных | H9: 3 | I9: Экзамен | J9: 2017/2018 учебный год 1 модуль | L9: 27 | M9: 1 | N9: 1 | O9: 1722525802 | P9: 2098 | R9: Системы больших данных | S9: =MATCH(D9,Отчет!$D$1:$D$65536,0) -> 40
A10: 1937455931 | B10: 7 | C10: МБД171 | D10: 1937366422 | E10: Вилкова Елена Александровна | F10: М171МСБДН002 | G10: Анализ данных | H10: 3 | I10: Экзамен | J10: 2017/2018 учебный год 1 модуль | L10: 21 | M10: 1 | N10: 1 | O10: 1722525802 | P10: 2098 | R10: Системы больших данных | S10: =MATCH(D10,Отчет!$D$1:$D$65536,0) -> 12
A11: 1937459476 | B11: 7 | C11: МБД171 | D11: 1937366175 | E11: Трегубова Инесса Александровна | F11: М171МСБДН014 | G11: Анализ данных | H11: 3 | I11: Экзамен | J11: 2017/2018 учебный год 1 модуль | L11: 21 | M11: 1 | N11: 1 | O11: 1722525802 | P11: 2098 | R11: Системы больших данных | S11: =MATCH(D11,Отчет!$D$1:$D$65536,0) -> 127
A12: 1950549219 | B12: 7 | C12: МБД171 | D12: 1950255571 | E12: Сиахпутра Эдо | F12: М171МСБДН031 | G12: Анализ данных | H12: 3 | I12: Экзамен | J12: 2017/2018 учебный год 1 модуль | L12: 21 | M12: 1 | N12: 1 | O12: 1722525802 | P12: 2098 | R12: Системы больших данных | S12: =MATCH(D12,Отчет!$D$1:$D$65536,0) -> 112
A13: 1950552564 | B13: 9 | C13: МБД171 | D13: 1950215429 | E13: Фаур Назим Ахмад | F13: М171МСБДН032 | G13: Анализ данных | H13: 3 | I13: Экзамен | J13: 2017/2018 учебный год 1 модуль | L13: 27 | M13: 1 | N13: 0 | O13: 1722525802 | P13: 2098 | R13: Системы больших данных | S13: =MATCH(D13,Отчет!$D$1:$D$65536,0) -> 89
A14: 1937460373 | B14: 8 | C14: МБД171 | D14: 1937366348 | E14: Шеин Александр Владимирович | F14: М171МСБДН017 | G14: Анализ данных | H14: 3 | I14: Экзамен | J14: 2017/2018 учебный год 1 модуль | L14: 24 | M14: 1 | N14: 1 | O14: 1722525802 | P14: 2098 | R14: Системы больших данных | S14: =MATCH(D14,Отчет!$D$1:$D$65536,0) -> 17
A15: 1978923736 | B15: 7 | C15: МБД171 | D15: 1972663851 | E15: Ислам Эмди Шафикул | F15: М171МСБДН036 | G15: Анализ данных | H15: 3 | I15: Экзамен | J15: 2017/2018 учебный год 1 модуль | L15: 21 | M15: 1 | N15: 0 | O15: 1722525802 | P15: 2098 | R15: Системы больших данных | S15: =MATCH(D15,Отчет!$D$1:$D$65536,0) -> 84
A16: 1937458665 | B16: 7 | C16: МБД171 | D16: 1937366334 | E16: Кулаков Александр Сергеевич | F16: М171МСБДН009 | G16: Анализ данных | H16: 3 | I16: Экзамен | J16: 2017/2018 учебный год 1 модуль | L16: 21 | M16: 1 | N16: 1 | O16: 1722525802 | P16: 2098 | R16: Системы больших данных | S16: =MATCH(D16,Отчет!$D$1:$D$65536,0) -> 19
A17: 1978923045 | B17: 7 | C17: МБД171 | D17: 1970446330 | E17: - Маниканта Рукмангада | F17: М171МСБДН035 | G17: Анализ данных | H17: 3 | I17: Экзамен | J17: 2017/2018 учебный год 1 модуль | L17: 21 | M17: 1 | N17: 1 | O17: 1722525802 | P17: 2098 | R17: Системы больших данных | S17: =MATCH(D17,Отчет!$D$1:$D$65536,0) -> 120
A18: 1937460023 | B18: 7 | C18: МБД171 | D18: 1937366407 | E18: Чувилина Анна Андреевна | F18: М171МСБДН016 | G18: Анализ данных | H18: 3 | I18: Экзамен | J18: 2017/2018 учебный год 1 модуль | L18: 21 | M18: 1 | N18: 1 | O18: 1722525802 | P18: 2098 | R18: Системы больших данных | S18: =MATCH(D18,Отчет!$D$1:$D$65536,0) -> 43
A19: 1940933169 | B19: 8 | C19: МБД171 | D19: 1940751998 | E19: Семес Алексей Владимирович | F19: М171МСБДН026 | G19: Анализ данных | H19: 3 | I19: Экзамен | J19: 2017/2018 учебный год 1 модуль | L19: 24 | M19: 1 | N19: 0 | O19: 1722525802 | P19: 2098 | R19: Системы больших данных | S19: =MATCH(D19,Отчет!$D$1:$D$65536,0) -> 66
A20: 1937458940 | B20: 7 | C20: МБД171 | D20: 1937366317 | E20: Рахимов Севастьян Эдуардович | F20: М171МСБДН012 | G20: Анализ данных | H20: 3 | I20: Экзамен | J20: 2017/2018 учебный год 1 модуль | L20: 21 | M20: 1 | N20: 1 | O20: 1722525802 | P20: 2098 | R20: Системы больших данных | S20: =MATCH(D20,Отчет!$D$1:$D$65536,0) -> 59
A21: 1940930340 | B21: 8 | C21: МБД171 | D21: 1940816134 | E21: Арча Александр Михайлович | F21: М171МСБДН021 | G21: Анализ данных | H21: 3 | I21: Экзамен | J21: 2017/2018 учебный год 1 модуль | L21: 24 | M21: 1 | N21: 0 | O21: 1722525802 | P21: 2098 | R21: Системы больших данных | S21: =MATCH(D21,Отчет!$D$1:$D$65536,0) -> 111
A22: 1937457635 | B22: 10 | C22: МБД171 | D22: 1937366366 | E22: Гатина Эльмира Ринатовна | F22: М171МСБДН003 | G22: Анализ данных | H22: 3 | I22: Экзамен | J22: 2017/2018 учебный год 1 модуль | L22: 30 | M22: 1 | N22: 1 | O22: 1722525802 | P22: 2098 | R22: Системы больших данных | S22: =MATCH(D22,Отчет!$D$1:$D$65536,0) -> 34
A23: 1940931905 | B23: 7 | C23: МБД171 | D23: 1940816117 | E23: Садыкова Сабина Бахтияровна | F23: М171МСБДН025 | G23: Анализ данных | H23: 3 | I23: Экзамен | J23: 2017/2018 учебный год 1 модуль | L23: 21 | M23: 1 | N23: 0 | O23: 1722525802 | P23: 2098 | R23: Системы больших данных | S23: =MATCH(D23,Отчет!$D$1:$D$65536,0) -> 58
A24: 1937459097 | B24: 8 | C24: МБД171 | D24: 1937366436 | E24: Сысоев Марк Валерьевич | F24: М171МСБДН013 | G24: Анализ данных | H24: 3 | I24: Экзамен | J24: 2017/2018 учебный год 1 модуль | L24: 24 | M24: 1 | N24: 1 | O24: 1722525802 | P24: 2098 | R24: Системы больших данных | S24: =MATCH(D24,Отчет!$D$1:$D$65536,0) -> 45
A25: 1940933649 | B25: 7 | C25: МБД171 | D25: 1940816098 | E25: Телышева Татьяна Романовна | F25: М171МСБДН027 | G25: Анализ данных | H25: 3 | I25: Экзамен | J25: 2017/2018 учебный год 1 модуль | L25: 21 | M25: 1 | N25: 0 | O25: 1722525802 | P25: 2098 | R25: Системы больших данных | S25: =MATCH(D25,Отчет!$D$1:$D$65536,0) -> 93
A26: 1940931226 | B26: 7 | C26: МБД171 | D26: 1940816185 | E26: Прохоренков Дмитрий Викторович | F26: М171МСБДН024 | G26: Анализ данных | H26: 3 | I26: Экзамен | J26: 2017/2018 учебный год 1 модуль | L26: 21 | M26: 1 | N26: 0 | O26: 1722525802 | P26: 2098 | R26: Системы больших данных | S26: =MATCH(D26,Отчет!$D$1:$D$65536,0) -> 13
A27: 1940930546 | B27: 9 | C27: МБД171 | D27: 1940816199 | E27: Обаляева Екатерина Ильинична | F27: М171МСБДН023 | G27: Архитектура предприятия | H27: 3 | I27: Экзамен | J27: 2017/2018 учебный год 1 модуль | L27: 27 | M27: 1 | N27: 0 | O27: 1722525802 | P27: 2098 | R27: Системы больших данных | S27: =MATCH(D27,Отчет!$D$1:$D$65536,0) -> 36
A28: 1940930888 | B28: 9 | C28: МБД171 | D28: 1940816185 | E28: Прохоренков Дмитрий Викторович | F28: М171МСБДН024 | G28: Архитектура предприятия | H28: 3 | I28: Экзамен | J28: 2017/2018 учебный год 1 модуль | L28: 27 | M28: 1 | N28: 0 | O28: 1722525802 | P28: 2098 | R28: Системы больших данных | S28: =MATCH(D28,Отчет!$D$1:$D$65536,0) -> 13
A29: 1942060754 | B29: 7 | C29: МБД171 | D29: 1942007946 | E29: Ержанова Тогжан | F29: М171МСБДН029 | G29: Архитектура предприятия | H29: 3 | I29: Экзамен | J29: 2017/2018 учебный год 1 модуль | L29: 21 | M29: 1 | N29: 1 | O29: 1722525802 | P29: 2098 | R29: Системы больших данных | S29: =MATCH(D29,Отчет!$D$1:$D$65536,0) -> 61
A30: 1959820424 | B30: 7 | C30: МБД171 | D30: 1959612809 | E30: Штройхофэр Кристофер | F30: М171МСБДН033 | G30: Архитектура предприятия | H30: 3 | I30: Экзамен | J30: 2017/2018 учебный год 1 модуль | L30: 21 | M30: 1 | N30: 1 | O30: 1722525802 | P30: 2098 | R30: Системы больших данных | S30: =MATCH(D30,Отчет!$D$1:$D$65536,0) -> 40
A31: 1950549124 | B31: 6 | C31: МБД171 | D31: 1950255571 | E31: Сиахпутра Эдо | F31: М171МСБДН031 | G31: Архитектура предприятия | H31: 3 | I31: Экзамен | J31: 2017/2018 учебный год 1 модуль | L31: 18 | M31: 1 | N31: 1 | O31: 1722525802 | P31: 2098 | R31: Системы больших данных | S31: =MATCH(D31,Отчет!$D$1:$D$65536,0) -> 112
A32: 1950551341 | B32: 6 | C32: МБД171 | D32: 1950215429 | E32: Фаур Назим Ахмад | F32: М171МСБДН032 | G32: Архитектура предприятия | H32: 3 | I32: Экзамен | J32: 2017/2018 учебный год 1 модуль | L32: 18 | M32: 1 | N32: 0 | O32: 1722525802 | P32: 2098 | R32: Системы больших данных | S32: =MATCH(D32,Отчет!$D$1:$D$65536,0) -> 89
A33: 1978923502 | B33: 7 | C33: МБД171 | D33: 1972663851 | E33: Ислам Эмди Шафикул | F33: М171МСБДН036 | G33: Архитектура предприятия | H33: 3 | I33: Экзамен | J33: 2017/2018 учебный год 1 модуль | L33: 21 | M33: 1 | N33: 0 | O33: 1722525802 | P33: 2098 | R33: Системы больших данных | S33: =MATCH(D33,Отчет!$D$1:$D$65536,0) -> 84
A34: 1978922680 | B34: 9 | C34: МБД171 | D34: 1970446330 | E34: - Маниканта Рукмангада | F34: М171МСБДН035 | G34: Архитектура предприятия | H34: 3 | I34: Экзамен | J34: 2017/2018 учебный год 1 модуль | L34: 27 | M34: 1 | N34: 1 | O34: 1722525802 | P34: 2098 | R34: Системы больших данных | S34: =MATCH(D34,Отчет!$D$1:$D$65536,0) -> 120
A35: 1940932771 | B35: 8 | C35: МБД171 | D35: 1940751998 | E35: Семес Алексей Владимирович | F35: М171МСБДН026 | G35: Архитектура предприятия | H35: 3 | I35: Экзамен | J35: 2017/2018 учебный год 1 модуль | L35: 24 | M35: 1 | N35: 0 | O35: 1722525802 | P35: 2098 | R35: Системы больших данных | S35: =MATCH(D35,Отчет!$D$1:$D$65536,0) -> 66
A36: 1940930209 | B36: 9 | C36: МБД171 | D36: 1940816134 | E36: Арча Александр Михайлович | F36: М171МСБДН021 | G36: Архитектура предприятия | H36: 3 | I36: Экзамен | J36: 2017/2018 учебный год 1 модуль | L36: 27 | M36: 1 | N36: 0 | O36: 1722525802 | P36: 2098 | R36: Системы больших данных | S36: =MATCH(D36,Отчет!$D$1:$D$65536,0) -> 111
A37: 1940931389 | B37: 8 | C37: МБД171 | D37: 1940816117 | E37: Садыкова Сабина Бахтияровна | F37: М171МСБДН025 | G37: Архитектура предприятия | H37: 3 | I37: Экзамен | J37: 2017/2018 учебный год 1 модуль | L37: 24 | M37: 1 | N37: 0 | O37: 1722525802 | P37: 2098 | R37: Системы больших данных | S37: =MATCH(D37,Отчет!$D$1:$D$65536,0) -> 58
A38: 1937458165 | B38: 8 | C38: МБД171 | D38: 1937366231 | E38: Дякин Николай Валерьевич | F38: М171МСБДН005 | G38: Архитектура предприятия | H38: 3 | I38: Экзамен | J38: 2017/2018 учебный год 1 модуль | L38: 24 | M38: 1 | N38: 1 | O38: 1722525802 | P38: 2098 | R38: Системы больших данных | S38: =MATCH(D38,Отчет!$D$1:$D$65536,0) -> 21
A39: 1937455396 | B39: 9 | C39: МБД171 | D39: 1937366216 | E39: Архипенко Анастасия Дмитриевна | F39: М171МСБДН001 | G39: Архитектура предприятия | H39: 3 | I39: Экзамен | J39: 2017/2018 учебный год 1 модуль | L39: 27 | M39: 1 | N39: 1 | O39: 1722525802 | P39: 2098 | R39: Системы больших данных | S39: =MATCH(D39,Отчет!$D$1:$D$65536,0) -> 16
A40: 1937459238 | B40: 6 | C40: МБД171 | D40: 1937366175 | E40: Трегубова Инесса Александровна | F40: М171МСБДН014 | G40: Архитектура предприятия | H40: 3 | I40: Экзамен | J40: 2017/2018 учебный год 1 модуль | L40: 18 | M40: 1 | N40: 1 | O40: 1722525802 | P40: 2098 | R40: Системы больших данных | S40: =MATCH(D40,Отчет!$D$1:$D$65536,0) -> 127
A41: 1937458508 | B41: 7 | C41: МБД171 | D41: 1937366334 | E41: Кулаков Александр Сергеевич | F41: М171МСБДН009 | G41: Архитектура предприятия | H41: 3 | I41: Экзамен | J41: 2017/2018 учебный год 1 модуль | L41: 21 | M41: 1 | N41: 1 | O41: 1722525802 | P41: 2098 | R41: Системы больших данных | S41: =MATCH(D41,Отчет!$D$1:$D$65536,0) -> 19
A42: 1937458776 | B42: 7 | C42: МБД171 | D42: 1937366317 | E42: Рахимов Севастьян Эдуардович | F42: М171МСБДН012 | G42: Архитектура предприятия | H42: 3 | I42: Экзамен | J42: 2017/2018 учебный год 1 модуль | L42: 21 | M42: 1 | N42: 1 | O42: 1722525802 | P42: 2098 | R42: Системы больших данных | S42: =MATCH(D42,Отчет!$D$1:$D$65536,0) -> 59
A43: 1937458984 | B43: 8 | C43: МБД171 | D43: 1937366436 | E43: Сысоев Марк Валерьевич | F43: М171МСБДН013 | G43: Архитектура предприятия | H43: 3 | I43: Экзамен | J43: 2017/2018 учебный год 1 модуль | L43: 24 | M43: 1 | N43: 1 | O43: 1722525802 | P43: 2098 | R43: Системы больших данных | S43: =MATCH(D43,Отчет!$D$1:$D$65536,0) -> 45
A44: 1937455829 | B44: 9 | C44: МБД171 | D44: 1937366422 | E44: Вилкова Елена Александровна | F44: М171МСБДН002 | G44: Архитектура предприятия | H44: 3 | I44: Экзамен | J44: 2017/2018 учебный год 1 модуль | L44: 27 | M44: 1 | N44: 1 | O44: 1722525802 | P44: 2098 | R44: Системы больших данных | S44: =MATCH(D44,Отчет!$D$1:$D$65536,0) -> 12
A45: 1937459645 | B45: 9 | C45: МБД171 | D45: 1937366407 | E45: Чувилина Анна Андреевна | F45: М171МСБДН016 | G45: Архитектура предприятия | H45: 3 | I45: Экзамен | J45: 2017/2018 учебный год 1 модуль | L45: 27 | M45: 1 | N45: 1 | O45: 1722525802 | P45: 2098 | R45: Системы больших данных | S45: =MATCH(D45,Отчет!$D$1:$D$65536,0) -> 43
A46: 1937460501 | B46: 7 | C46: МБД171 | D46: 1937366394 | E46: Шубина Виктория Ильинична | F46: М171МСБДН018 | G46: Архитектура предприятия | H46: 3 | I46: Экзамен | J46: 2017/2018 учебный год 1 модуль | L46: 21 | M46: 1 | N46: 1 | O46: 1722525802 | P46: 2098 | R46: Системы больших данных | S46: =MATCH(D46,Отчет!$D$1:$D$65536,0) -> 32
A47: 1937457507 | B47: 8 | C47: МБД171 | D47: 1937366366 | E47: Гатина Эльмира Ринатовна | F47: М171МСБДН003 | G47: Архитектура предприятия | H47: 3 | I47: Экзамен | J47: 2017/2018 учебный год 1 модуль | L47: 24 | M47: 1 | N47: 1 | O47: 1722525802 | P47: 2098 | R47: Системы больших данных | S47: =MATCH(D47,Отчет!$D$1:$D$65536,0) -> 34
A48: 1937460165 | B48: 7 | C48: МБД171 | D48: 1937366348 | E48: Шеин Александр Владимирович | F48: М171МСБДН017 | G48: Архитектура предприятия | H48: 3 | I48: Экзамен | J48: 2017/2018 учебный год 1 модуль | L48: 21 | M48: 1 | N48: 1 | O48: 1722525802 | P48: 2098 | R48: Системы больших данных | S48: =MATCH(D48,Отчет!$D$1:$D$65536,0) -> 17
A49: 1940933292 | B49: 7 | C49: МБД171 | D49: 1940816098 | E49: Телышева Татьяна Романовна | F49: М171МСБДН027 | G49: Архитектура предприятия | H49: 3 | I49: Экзамен | J49: 2017/2018 учебный год 1 модуль | L49: 21 | M49: 1 | N49: 0 | O49: 1722525802 | P49: 2098 | R49: Системы больших данных | S49: =MATCH(D49,Отчет!$D$1:$D$65536,0) -> 93
A50: 1937473936 | B50: 10 | C50: МБИ173 | D50: 1937363495 | E50: Черепнина Дарья Олеговна | F50: М171МБИИН068 | G50: Методология и инструментарий для моделирования бизнес-процессов | H50: 3 | I50: Экзамен | J50: 2017/2018 учебный год 1 модуль | L50: 30 | M50: 1 | N50: 1 | O50: 1722551595 | P50: 2098 | R50: Бизнес-информатика | S50: =MATCH(D50,Отчет!$D$1:$D$65536,0) -> 67
A51: 1945325554 | B51: 9 | C51: МБИ171 | D51: 1944931265 | E51: Бытка Дарья | F51: М171МБИИН093 | G51: Методология и инструментарий для моделирования бизнес-процессов | H51: 3 | I51: Экзамен | J51: 2017/2018 учебный год 1 модуль | L51: 27 | M51: 1 | N51: 1 | O51: 1722551595 | P51: 2098 | R51: Бизнес-информатика | S51: =MATCH(D51,Отчет!$D$1:$D$65536,0) -> 22
A52: 1937466942 | B52: 8 | C52: МБИ171 | D52: 1937363522 | E52: Богданов Павел Владимирович | F52: М171МБИИН013 | G52: Методология и инструментарий для моделирования бизнес-процессов | H52: 3 | I52: Экзамен | J52: 2017/2018 учебный год 1 модуль | L52: 24 | M52: 1 | N52: 1 | O52: 1722551595 | P52: 2098 | R52: Бизнес-информатика | S52: =MATCH(D52,Отчет!$D$1:$D$65536,0) -> 92
A53: 1937471550 | B53: 10 | C53: МБИ172 | D53: 1937363600 | E53: Конова Марина Валерьевна | F53: М171МБИИН036 | G53: Методология и инструментарий для моделирования бизнес-процессов | H53: 3 | I53: Экзамен | J53: 2017/2018 учебный год 1 модуль | L53: 30 | M53: 1 | N53: 1 | O53: 1722551595 | P53: 2098 | R53: Бизнес-информатика | S53: =MATCH(D53,Отчет!$D$1:$D$65536,0) -> 23
A54: 1937468543 | B54: 8 | C54: МБИ171 | D54: 1937363332 | E54: Войнов Евгений Вадимович | F54: М171МБИИН018 | G54: Методология и инструментарий для моделирования бизнес-процессов | H54: 3 | I54: Экзамен | J54: 2017/2018 учебный год 1 модуль | L54: 24 | M54: 1 | N54: 1 | O54: 1722551595 | P54: 2098 | R54: Бизнес-информатика | S54: =MATCH(D54,Отчет!$D$1:$D$65536,0) -> 35
A55: 1937472950 | B55: 10 | C55: МБИ173 | D55: 1937363386 | E55: Сафохин Андрей Дмитриевич | F55: М171МБИИН058 | G55: Методология и инструментарий для моделирования бизнес-процессов | H55: 3 | I55: Экзамен | J55: 2017/2018 учебный год 1 модуль | L55: 30 | M55: 1 | N55: 1 | O55: 1722551595 | P55: 2098 | R55: Бизнес-информатика | S55: =MATCH(D55,Отчет!$D$1:$D$65536,0) -> 26
A56: 1937472485 | B56: 10 | C56: МБИ173 | D56: 1937363413 | E56: Салтыкова Екатерина Андреевна | F56: М171МБИИН057 | G56: Методология и инструментарий для моделирования бизнес-процессов | H56: 3 | I56: Экзамен | J56: 2017/2018 учебный год 1 модуль | L56: 30 | M56: 1 | N56: 1 | O56: 1722551595 | P56: 2098 | R56: Бизнес-информатика | S56: =MATCH(D56,Отчет!$D$1:$D$65536,0) -> 74
A57: 1937468991 | B57: 7 | C57: МБИ171 | D57: 1937364058 | E57: Герасимов Станислав Александрович | F57: М171МБИИН023 | G57: Методология и инструментарий для моделирования бизнес-процессов | H57: 3 | I57: Экзамен | J57: 2017/2018 учебный год 1 модуль | L57: 21 | M57: 1 | N57: 1 | O57: 1722551595 | P57: 2098 | R57: Бизнес-информатика | S57: =MATCH(D57,Отчет!$D$1:$D$65536,0) -> 140
A58: 1937470193 | B58: 10 | C58: МБИ172 | D58: 1937364110 | E58: Клименко Екатерина Андреевна | F58: М171МБИИН034 | G58: Методология и инструментарий для моделирования бизнес-процессов | H58: 3 | I58: Экзамен | J58: 2017/2018 учебный год 1 модуль | L58: 30 | M58: 1 | N58: 1 | O58: 1722551595 | P58: 2098 | R58: Бизнес-информатика | S58: =MATCH(D58,Отчет!$D$1:$D$65536,0) -> 28
A59: 1937468052 | B59: 9 | C59: МБИ171 | D59: 1937364123 | E59: Вишняков Азим Азимович | F59: М171МБИИН017 | G59: Методология и инструментарий для моделирования бизнес-процессов | H59: 3 | I59: Экзамен | J59: 2017/2018 учебный год 1 модуль | L59: 27 | M59: 1 | N59: 1 | O59: 1722551595 | P59: 2098 | R59: Бизнес-информатика | S59: =MATCH(D59,Отчет!$D$1:$D$65536,0) -> 80
A60: 1937471740 | B60: 9 | C60: МБИ172 | D60: 1937364137 | E60: Медведева Мария Вячеславовна | F60: М171МБИИН045 | G60: Методология и инструментарий для моделирования бизнес-процессов | H60: 3 | I60: Экзамен | J60: 2017/2018 учебный год 1 модуль | L60: 27 | M60: 1 | N60: 1 | O60: 1722551595 | P60: 2098 | R60: Бизнес-информатика | S60: =MATCH(D60,Отчет!$D$1:$D$65536,0) -> 51
A61: 1937462752 | B61: 8 | C61: МБИ171 | D61: 1937363904 | E61: Белова Евгения Александровна | F61: М171МБИИН011 | G61: Методология и инструментарий для моделирования бизнес-процессов | H61: 3 | I61: Экзамен | J61: 2017/2018 учебный год 1 модуль | L61: 24 | M61: 1 | N61: 1 | O61: 1722551595 | P61: 2098 | R61: Бизнес-информатика | S61: =MATCH(D61,Отчет!$D$1:$D$65536,0) -> 83
A62: 1937473404 | B62: 10 | C62: МБИ173 | D62: 1937364177 | E62: Сухова Ксения Игоревна | F62: М171МБИИН063 | G62: Методология и инструментарий для моделирования бизнес-процессов | H62: 3 | I62: Экзамен | J62: 2017/2018 учебный год 1 модуль | L62: 30 | M62: 1 | N62: 1 | O62: 1722551595 | P62: 2098 | R62: Бизнес-информатика | S62: =MATCH(D62,Отчет!$D$1:$D$65536,0) -> 77
A63: 1937467757 | B63: 8 | C63: МБИ171 | D63: 1937364220 | E63: Бутченко Антон Олегович | F63: М171МБИИН016 | G63: Методология и инструментарий для моделирования бизнес-процессов | H63: 3 | I63: Экзамен | J63: 2017/2018 учебный год 1 модуль | L63: 24 | M63: 1 | N63: 1 | O63: 1722551595 | P63: 2098 | R63: Бизнес-информатика | S63: =MATCH(D63,Отчет!$D$1:$D$65536,0) -> 57
A64: 1937472099 | B64: 8 | C64: МБИ173 | D64: 1937364031 | E64: Полторак Анастасия Игоревна | F64: М171МБИИН051 | G64: Методология и инструментарий для моделирования бизнес-процессов | H64: 3 | I64: Экзамен | J64: 2017/2018 учебный год 1 модуль | L64: 24 | M64: 1 | N64: 1 | O64: 1722551595 | P64: 2098 | R64: Бизнес-информатика | S64: =MATCH(D64,Отчет!$D$1:$D$65536,0) -> 103
A65: 1937467337 | B65: 7 | C65: МБИ171 | D65: 1937364044 | E65: Бондарь Сергей Борисович | F65: М171МБИИН015 | G65: Методология и инструментарий для моделирования бизнес-процессов | H65: 3 | I65: Экзамен | J65: 2017/2018 учебный год 1 модуль | L65: 21 | M65: 1 | N65: 1 | O65: 1722551595 | P65: 2098 | R65: Бизнес-информатика | S65: =MATCH(D65,Отчет!$D$1:$D$65536,0) -> 170
A66: 1937452124 | B66: 10 | C66: МИБ171 | D66: 1937370517 | E66: Осадчая Алина Дмитриевна | F66: М171МУБЕЗ013 | G66: Методология и инструментарий для моделирования бизнес-процессов | H66: 3 | I66: Экзамен | J66: 2017/2018 учебный год 1 модуль | L66: 30 | M66: 1 | N66: 1 | O66: 1722514289 | P66: 2098 | R66: Управление информационной безопасностью | S66: =MATCH(D66,Отчет!$D$1:$D$65536,0) -> 25
A67: 1942182783 | B67: 9 | C67: МИБ171 | D67: 1937370536 | E67: Оленева Валерия Александровна | F67: М171МУБЕЗ012 | G67: Методология и инструментарий для моделирования бизнес-процессов | H67: 3 | I67: Экзамен | J67: 2017/2018 учебный год 1 модуль | L67: 27 | M67: 1 | N67: 1 | O67: 1722514289 | P67: 2098 | R67: Управление информационной безопасностью | S67: =MATCH(D67,Отчет!$D$1:$D$65536,0) -> 86
A68: 1937451605 | B68: 6 | C68: МИБ171 | D68: 1937370580 | E68: Козлов Никита Вячеславович | F68: М171МУБЕЗ008 | G68: Методология и инструментарий для моделирования бизнес-процессов | H68: 3 | I68: Экзамен | J68: 2017/2018 учебный год 1 модуль | L68: 18 | M68: 1 | N68: 1 | O68: 1722514289 | P68: 2098 | R68: Управление информационной безопасностью | S68: =MATCH(D68,Отчет!$D$1:$D$65536,0) -> 118
A69: 1937452504 | B69: 9 | C69: МИБ171 | D69: 1937370596 | E69: Смирнов Данил Вадимович | F69: М171МУБЕЗ020 | G69: Методология и инструментарий для моделирования бизнес-процессов | H69: 3 | I69: Экзамен | J69: 2017/2018 учебный год 1 модуль | L69: 27 | M69: 1 | N69: 1 | O69: 1722514289 | P69: 2098 | R69: Управление информационной безопасностью | S69: =MATCH(D69,Отчет!$D$1:$D$65536,0) -> 33
A70: 1937452046 | B70: 8 | C70: МИБ171 | D70: 1937371125 | E70: Никитин Андрей Олегович | F70: М171МУБЕЗ011 | G70: Методология и инструментарий для моделирования бизнес-процессов | H70: 3 | I70: Экзамен | J70: 2017/2018 учебный год 1 модуль | L70: 24 | M70: 1 | N70: 1 | O70: 1722514289 | P70: 2098 | R70: Управление информационной безопасностью | S70: =MATCH(D70,Отчет!$D$1:$D$65536,0) -> 141
A71: 1937442029 | B71: 6 | C71: МИБ171 | D71: 1937371143 | E71: Белоус Илия Григорьевич | F71: М171МУБЕЗ001 | G71: Методология и инструментарий для моделирования бизнес-процессов | H71: 3 | I71: Экзамен | J71: 2017/2018 учебный год 1 модуль | L71: 18 | M71: 1 | N71: 1 | O71: 1722514289 | P71: 2098 | R71: Управление информационной безопасностью | S71: =MATCH(D71,Отчет!$D$1:$D$65536,0) -> 157
A72: 1937448649 | B72: 8 | C72: МИБ171 | D72: 1937371161 | E72: Варламова Виктория Викторовна | F72: М171МУБЕЗ003 | G72: Методология и инструментарий для моделирования бизнес-процессов | H72: 3 | I72: Экзамен | J72: 2017/2018 учебный год 1 модуль | L72: 24 | M72: 1 | N72: 1 | O72: 1722514289 | P72: 2098 | R72: Управление информационной безопасностью | S72: =MATCH(D72,Отчет!$D$1:$D$65536,0) -> 106
A73: 1937451275 | B73: 9 | C73: МИБ171 | D73: 1937370369 | E73: Иванов Владислав Сергеевич | F73: М171МУБЕЗ007 | G73: Методология и инструментарий для моделирования бизнес-процессов | H73: 3 | I73: Экзамен | J73: 2017/2018 учебный год 1 модуль | L73: 27 | M73: 1 | N73: 1 | O73: 1722514289 | P73: 2098 | R73: Управление информационной безопасностью | S73: =MATCH(D73,Отчет!$D$1:$D$65536,0) -> 20
A74: 1937447015 | B74: 10 | C74: МИБ171 | D74: 1937370385 | E74: Бочарова Ксения Михайловна | F74: М171МУБЕЗ002 | G74: Методология и инструментарий для моделирования бизнес-процессов | H74: 3 | I74: Экзамен | J74: 2017/2018 учебный год 1 модуль | L74: 30 | M74: 1 | N74: 1 | O74: 1722514289 | P74: 2098 | R74: Управление информационной безопасностью | S74: =MATCH(D74,Отчет!$D$1:$D$65536,0) -> 53
A75: 1937450877 | B75: 6 | C75: МИБ171 | D75: 1937370401 | E75: Жучков Константин Сергеевич | F75: М171МУБЕЗ006 | G75: Методология и инструментарий для моделирования бизнес-процессов | H75: 3 | I75: Экзамен | J75: 2017/2018 учебный год 1 модуль | L75: 18 | M75: 1 | N75: 1 | O75: 1722514289 | P75: 2098 | R75: Управление информационной безопасностью | S75: =MATCH(D75,Отчет!$D$1:$D$65536,0) -> 116
A76: 1937452329 | B76: 9 | C76: МИБ171 | D76: 1937370421 | E76: Ряховский Сергей Алексеевич | F76: М171МУБЕЗ018 | G76: Методология и инструментарий для моделирования бизнес-процессов | H76: 3 | I76: Экзамен | J76: 2017/2018 учебный год 1 модуль | L76: 27 | M76: 1 | N76: 1 | O76: 1722514289 | P76: 2098 | R76: Управление информационной безопасностью | S76: =MATCH(D76,Отчет!$D$1:$D$65536,0) -> 115
A77: 1937451851 | B77: 9 | C77: МИБ171 | D77: 1937370436 | E77: Михеева Вероника Вячеславовна | F77: М171МУБЕЗ010 | G77: Методология и инструментарий для моделирования бизнес-процессов | H77: 3 | I77: Экзамен | J77: 2017/2018 учебный год 1 модуль | L77: 27 | M77: 1 | N77: 1 | O77: 1722514289 | P77: 2098 | R77: Управление информационной безопасностью | S77: =MATCH(D77,Отчет!$D$1:$D$65536,0) -> 60
A78: 1937450719 | B78: 9 | C78: МИБ171 | D78: 1937370480 | E78: Дарбишева Патимат Гаджимурадовна | F78: М171МУБЕЗ005 | G78: Методология и инструментарий для моделирования бизнес-процессов | H78: 3 | I78: Экзамен | J78: 2017/2018 учебный год 1 модуль | L78: 27 | M78: 1 | N78: 1 | O78: 1722514289 | P78: 2098 | R78: Управление информационной безопасностью | S78: =MATCH(D78,Отчет!$D$1:$D$65536,0) -> 30
A79: 1937454774 | B79: 10 | C79: МЭБ171 | D79: 1937372985 | E79: Фахрова Дина Вадимовна | F79: М171МЭЛБЗ023 | G79: Методология и инструментарий для моделирования бизнес-процессов | H79: 3 | I79: Экзамен | J79: 2017/2018 учебный год 1 модуль | L79: 30 | M79: 1 | N79: 1 | O79: 1722506105 | P79: 2098 | R79: Электронный бизнес | S79: =MATCH(D79,Отчет!$D$1:$D$65536,0) -> 37
A80: 1937454719 | B80: 10 | C80: МЭБ171 | D80: 1937373025 | E80: Суряднов Дмитрий Юрьевич | F80: М171МЭЛБЗ022 | G80: Методология и инструментарий для моделирования бизнес-процессов | H80: 3 | I80: Экзамен | J80: 2017/2018 учебный год 1 модуль | L80: 30 | M80: 1 | N80: 1 | O80: 1722506105 | P80: 2098 | R80: Электронный бизнес | S80: =MATCH(D80,Отчет!$D$1:$D$65536,0) -> 27
A81: 1937453736 | B81: 6 | C81: МЭБ171 | D81: 1937372826 | E81: Минеева Анастасия Сергеевна | F81: М171МЭЛБЗ016 | G81: Методология и инструментарий для моделирования бизнес-процессов | H81: 3 | I81: Экзамен | J81: 2017/2018 учебный год 1 модуль | L81: 18 | M81: 1 | N81: 1 | O81: 1722506105 | P81: 2098 | R81: Электронный бизнес | S81: =MATCH(D81,Отчет!$D$1:$D$65536,0) -> 146
A82: 1937454887 | B82: 10 | C82: МЭБ171 | D82: 1937372852 | E82: Юлдашева Камилла Адилевна | F82: М171МЭЛБЗ025 | G82: Методология и инструментарий для моделирования бизнес-процессов | H82: 3 | I82: Экзамен | J82: 2017/2018 учебный год 1 модуль | L82: 30 | M82: 1 | N82: 1 | O82: 1722506105 | P82: 2098 | R82: Электронный бизнес | S82: =MATCH(D82,Отчет!$D$1:$D$65536,0) -> 24
A83: 1937454619 | B83: 9 | C83: МЭБ171 | D83: 1937372893 | E83: Смирнов Константин Борисович | F83: М171МЭЛБЗ021 | G83: Методология и инструментарий для моделирования бизнес-процессов | H83: 3 | I83: Экзамен | J83: 2017/2018 учебный год 1 модуль | L83: 27 | M83: 1 | N83: 1 | O83: 1722506105 | P83: 2098 | R83: Электронный бизнес | S83: =MATCH(D83,Отчет!$D$1:$D$65536,0) -> 55
A84: 1937449970 | B84: 10 | C84: МИБ171 | D84: 1937371178 | E84: Гультяева Полина Николаевна | F84: М171МУБЕЗ004 | G84: Методология и инструментарий для моделирования бизнес-процессов | H84: 3 | I84: Экзамен | J84: 2017/2018 учебный год 1 модуль | L84: 30 | M84: 1 | N84: 1 | O84: 1722514289 | P84: 2098 | R84: Управление информационной безопасностью | S84: =MATCH(D84,Отчет!$D$1:$D$65536,0) -> 39
A85: 1937453020 | B85: 10 | C85: МЭБ171 | D85: 1937372743 | E85: Джаббарова Лейла Мехман гызы | F85: М171МЭЛБЗ007 | G85: Методология и инструментарий для моделирования бизнес-процессов | H85: 3 | I85: Экзамен | J85: 2017/2018 учебный год 1 модуль | L85: 30 | M85: 1 | N85: 1 | O85: 1722506105 | P85: 2098 | R85: Электронный бизнес | S85: =MATCH(D85,Отчет!$D$1:$D$65536,0) -> 85
A86: 1937454349 | B86: 10 | C86: МЭБ171 | D86: 1937372757 | E86: Осипова Мария Андреевна | F86: М171МЭЛБЗ018 | G86: Методология и инструментарий для моделирования бизнес-процессов | H86: 3 | I86: Экзамен | J86: 2017/2018 учебный год 1 модуль | L86: 30 | M86: 1 | N86: 1 | O86: 1722506105 | P86: 2098 | R86: Электронный бизнес | S86: =MATCH(D86,Отчет!$D$1:$D$65536,0) -> 44
A87: 1937453313 | B87: 10 | C87: МЭБ171 | D87: 1937372783 | E87: Калинин Дмитрий Владимирович | F87: М171МЭЛБЗ008 | G87: Методология и инструментарий для моделирования бизнес-процессов | H87: 3 | I87: Экзамен | J87: 2017/2018 учебный год 1 модуль | L87: 30 | M87: 1 | N87: 1 | O87: 1722506105 | P87: 2098 | R87: Электронный бизнес | S87: =MATCH(D87,Отчет!$D$1:$D$65536,0) -> 49
A88: 1952079090 | B88: 5 | C88: МБИ173 | D88: 1941989095 | E88: Сарычев Роман Владимирович | F88: М171МБИИН091 | G88: Методология и инструментарий для моделирования бизнес-процессов | H88: 3 | I88: Экзамен | J88: 2017/2018 учебный год 1 модуль | L88: 15 | M88: 1 | N88: 0 | O88: 1722551595 | P88: 2098 | R88: Бизнес-информатика | S88: =MATCH(D88,Отчет!$D$1:$D$65536,0) -> 134
A89: 1952077521 | B89: 10 | C89: МБИ173 | D89: 1941989108 | E89: Рябов Дмитрий Валерьевич | F89: М171МБИИН090 | G89: Методология и инструментарий для моделирования бизнес-процессов | H89: 3 | I89: Экзамен | J89: 2017/2018 учебный год 1 модуль | L89: 30 | M89: 1 | N89: 1 | O89: 1722551595 | P89: 2098 | R89: Бизнес-информатика | S89: =MATCH(D89,Отчет!$D$1:$D$65536,0) -> 14
A90: 1959232935 | B90: 10 | C90: МБИ172 | D90: 1941989121 | E90: Павлова Татьяна Михайловна | F90: М171МБИИН089 | G90: Методология и инструментарий для моделирования бизнес-процессов | H90: 3 | I90: Экзамен | J90: 2017/2018 учебный год 1 модуль | L90: 30 | M90: 1 | N90: 0 | O90: 1722551595 | P90: 2098 | R90: Бизнес-информатика | S90: =MATCH(D90,Отчет!$D$1:$D$65536,0) -> 15
A91: 1940909402 | B91: 7 | C91: МБИ172 | D91: 1940815828 | E91: Масалимов Тимур Ринатович | F91: М171МБИИН073 | G91: Методология и инструментарий для моделирования бизнес-процессов | H91: 3 | I91: Экзамен | J91: 2017/2018 учебный год 1 модуль | L91: 21 | M91: 1 | N91: 0 | O91: 1722551595 | P91: 2098 | R91: Бизнес-информатика | S91: =MATCH(D91,Отчет!$D$1:$D$65536,0) -> 123
A92: 1940910403 | B92: 9 | C92: МБИ172 | D92: 1940750974 | E92: Мирской Александр Леонидович | F92: М171МБИИН075 | G92: Методология и инструментарий для моделирования бизнес-процессов | H92: 3 | I92: Экзамен | J92: 2017/2018 учебный год 1 модуль | L92: 27 | M92: 1 | N92: 0 | O92: 1722551595 | P92: 2098 | R92: Бизнес-информатика | S92: =MATCH(D92,Отчет!$D$1:$D$65536,0) -> 29
A93: 1940912161 | B93: 9 | C93: МБИ173 | D93: 1940751185 | E93: Овсянникова Ольга Андреевна | F93: М171МБИИН078 | G93: Методология и инструментарий для моделирования бизнес-процессов | H93: 3 | I93: Экзамен | J93: 2017/2018 учебный год 1 модуль | L93: 27 | M93: 1 | N93: 0 | O93: 1722551595 | P93: 2098 | R93: Бизнес-информатика | S93: =MATCH(D93,Отчет!$D$1:$D$65536,0) -> 69
A94: 1940911384 | B94: 6 | C94: МБИ172 | D94: 1940815727 | E94: Монгуш Алдын-Ай Владимировна | F94: М171МБИИН076 | G94: Методология и инструментарий для моделирования бизнес-процессов | H94: 3 | I94: Экзамен | J94: 2017/2018 учебный год 1 модуль | L94: 18 | M94: 1 | N94: 0 | O94: 1722551595 | P94: 2098 | R94: Бизнес-информатика | S94: =MATCH(D94,Отчет!$D$1:$D$65536,0) -> 104
A95: 1942184467 | B95: 10 | C95: МБИ173 | D95: 1940815759 | E95: Щеголев Андрей Александрович | F95: М171МБИИН081 | G95: Методология и инструментарий для моделирования бизнес-процессов | H95: 3 | I95: Экзамен | J95: 2017/2018 учебный год 1 модуль | L95: 30 | M95: 1 | N95: 1 | O95: 1722551595 | P95: 2098 | R95: Бизнес-информатика | S95: =MATCH(D95,Отчет!$D$1:$D$65536,0) -> 87
A96: 1940909614 | B96: 7 | C96: МБИ172 | D96: 1940815773 | E96: Матвиенко Андрей Кириллович | F96: М171МБИИН074 | G96: Методология и инструментарий для моделирования бизнес-процессов | H96: 3 | I96: Экзамен | J96: 2017/2018 учебный год 1 модуль | L96: 21 | M96: 1 | N96: 1 | O96: 1722551595 | P96: 2098 | R96: Бизнес-информатика | S96: =MATCH(D96,Отчет!$D$1:$D$65536,0) -> 38
A97: 1940911709 | B97: 9 | C97: МБИ172 | D97: 1940815787 | E97: Музыка Наталия Константиновна | F97: М171МБИИН077 | G97: Методология и инструментарий для моделирования бизнес-процессов | H97: 3 | I97: Экзамен | J97: 2017/2018 учебный год 1 модуль | L97: 27 | M97: 1 | N97: 1 | O97: 1722551595 | P97: 2098 | R97: Бизнес-информатика | S97: =MATCH(D97,Отчет!$D$1:$D$65536,0) -> 31
A98: 1946037039 | B98: 9 | C98: МБИ173 | D98: 1945753603 | E98: Пак Александр Сергеевич | F98: М171МБИИН096 | G98: Методология и инструментарий для моделирования бизнес-процессов | H98: 3 | I98: Экзамен | J98: 2017/2018 учебный год 1 модуль | L98: 27 | M98: 1 | N98: 0 | O98: 1722551595 | P98: 2098 | R98: Бизнес-информатика | S98: =MATCH(D98,Отчет!$D$1:$D$65536,0) -> 114
A99: 1985386577 | B99: 8 | C99: МБИ172 | D99: 1941989160 | E99: Мельникова Анастасия Игоревна | F99: М171МБИИН086 | G99: Методология и инструментарий для моделирования бизнес-процессов | H99: 3 | I99: Экзамен | J99: 2017/2018 учебный год 1 модуль | L99: 24 | M99: 1 | N99: 0 | O99: 1722551595 | P99: 2098 | R99: Бизнес-информатика | S99: =MATCH(D99,Отчет!$D$1:$D$65536,0) -> 46
A100: 1947315888 | B100: 10 | C100: МБИ171 | D100: 1941989199 | E100: Бородко Вера Николаевна | F100: М171МБИИН082 | G100: Методология и инструментарий для моделирования бизнес-процессов | H100: 3 | I100: Экзамен | J100: 2017/2018 учебный год 1 модуль | L100: 30 | M100: 1 | N100: 0 | O100: 1722551595 | P100: 2098 | R100: Бизнес-информатика | S100: =MATCH(D100,Отчет!$D$1:$D$65536,0) -> 18
A101: 1942064028 | B101: 5 | C101: МИБ171 | D101: 1942008109 | E101: Кабыкен Даулет | F101: М171МУБЕЗ021 | G101: Методология и инструментарий для моделирования бизнес-процессов | H101: 3 | I101: Экзамен | J101: 2017/2018 учебный год 1 модуль | L101: 15 | M101: 1 | N101: 1 | O101: 1722514289 | P101: 2098 | R101: Управление информационной безопасностью | S101: =MATCH(D101,Отчет!$D$1:$D$65536,0) -> 177
A102: 1942064484 | B102: 5 | C102: МИБ171 | D102: 1942008132 | E102: Нурматов Асхат | F102: М171МУБЕЗ022 | G102: Методология и инструментарий для моделирования бизнес-процессов | H102: 3 | I102: Экзамен | J102: 2017/2018 учебный год 1 модуль | L102: 15 | M102: 1 | N102: 1 | O102: 1722514289 | P102: 2098 | R102: Управление информационной безопасностью | S102: =MATCH(D102,Отчет!$D$1:$D$65536,0) -> 178
A103: 1937469248 | B103: 8 | C103: МБИ171 | D103: 1937363811 | E103: Григорьева Юлия Сергеевна | F103: М171МБИИН024 | G103: Методология и инструментарий для моделирования бизнес-процессов | H103: 3 | I103: Экзамен | J103: 2017/2018 учебный год 1 модуль | L103: 24 | M103: 1 | N103: 1 | O103: 1722551595 | P103: 2098 | R103: Бизнес-информатика | S103: =MATCH(D103,Отчет!$D$1:$D$65536,0) -> 41
A104: 1937467122 | B104: 8 | C104: МБИ171 | D104: 1937363522 | E104: Богданов Павел Владимирович | F104: М171МБИИН013 | G104: Проектирование информационных систем | H104: 3 | I104: Экзамен | J104: 2017/2018 учебный год 1 модуль | L104: 24 | M104: 1 | N104: 1 | O104: 1722551595 | P104: 2098 | R104: Бизнес-информатика | S104: =MATCH(D104,Отчет!$D$1:$D$65536,0) -> 92
A105: 1937473546 | B105: 8 | C105: МБИ173 | D105: 1937364177 | E105: Сухова Ксения Игоревна | F105: М171МБИИН063 | G105: Проектирование информационных систем | H105: 3 | I105: Экзамен | J105: 2017/2018 учебный год 1 модуль | L105: 24 | M105: 1 | N105: 1 | O105: 1722551595 | P105: 2098 | R105: Бизнес-информатика | S105: =MATCH(D105,Отчет!$D$1:$D$65536,0) -> 77
A106: 1947316051 | B106: 10 | C106: МБИ171 | D106: 1941989199 | E106: Бородко Вера Николаевна | F106: М171МБИИН082 | G106: Проектирование информационных систем | H106: 3 | I106: Экзамен | J106: 2017/2018 учебный год 1 модуль | L106: 30 | M106: 1 | N106: 0 | O106: 1722551595 | P106: 2098 | R106: Бизнес-информатика | S106: =MATCH(D106,Отчет!$D$1:$D$65536,0) -> 18
A107: 1985386844 | B107: 8 | C107: МБИ172 | D107: 1941989160 | E107: Мельникова Анастасия Игоревна | F107: М171МБИИН086 | G107: Проектирование информационных систем | H107: 3 | I107: Экзамен | J107: 2017/2018 учебный год 1 модуль | L107: 24 | M107: 1 | N107: 0 | O107: 1722551595 | P107: 2098 | R107: Бизнес-информатика | S107: =MATCH(D107,Отчет!$D$1:$D$65536,0) -> 46
A108: 1946037124 | B108: 8 | C108: МБИ173 | D108: 1945753603 | E108: Пак Александр Сергеевич | F108: М171МБИИН096 | G108: Проектирование информационных систем | H108: 3 | I108: Экзамен | J108: 2017/2018 учебный год 1 модуль | L108: 24 | M108: 1 | N108: 0 | O108: 1722551595 | P108: 2098 | R108: Бизнес-информатика | S108: =MATCH(D108,Отчет!$D$1:$D$65536,0) -> 114
A109: 1940909945 | B109: 7 | C109: МБИ172 | D109: 1940815773 | E109: Матвиенко Андрей Кириллович | F109: М171МБИИН074 | G109: Проектирование информационных систем | H109: 3 | I109: Экзамен | J109: 2017/2018 учебный год 1 модуль | L109: 21 | M109: 1 | N109: 1 | O109: 1722551595 | P109: 2098 | R109: Бизнес-информатика | S109: =MATCH(D109,Отчет!$D$1:$D$65536,0) -> 38
A110: 1942184502 | B110: 8 | C110: МБИ173 | D110: 1940815759 | E110: Щеголев Андрей Александрович | F110: М171МБИИН081 | G110: Проектирование информационных систем | H110: 3 | I110: Экзамен | J110: 2017/2018 учебный год 1 модуль | L110: 24 | M110: 1 | N110: 1 | O110: 1722551595 | P110: 2098 | R110: Бизнес-информатика | S110: =MATCH(D110,Отчет!$D$1:$D$65536,0) -> 87
A111: 1940911556 | B111: 8 | C111: МБИ172 | D111: 1940815727 | E111: Монгуш Алдын-Ай Владимировна | F111: М171МБИИН076 | G111: Проектирование информационных систем | H111: 3 | I111: Экзамен | J111: 2017/2018 учебный год 1 модуль | L111: 24 | M111: 1 | N111: 0 | O111: 1722551595 | P111: 2098 | R111: Бизнес-информатика | S111: =MATCH(D111,Отчет!$D$1:$D$65536,0) -> 104
A112: 1940912218 | B112: 8 | C112: МБИ173 | D112: 1940751185 | E112: Овсянникова Ольга Андреевна | F112: М171МБИИН078 | G112: Проектирование информационных систем | H112: 3 | I112: Экзамен | J112: 2017/2018 учебный год 1 модуль | L112: 24 | M112: 1 | N112: 0 | O112: 1722551595 | P112: 2098 | R112: Бизнес-информатика | S112: =MATCH(D112,Отчет!$D$1:$D$65536,0) -> 69
A113: 1940910980 | B113: 8 | C113: МБИ172 | D113: 1940750974 | E113: Мирской Александр Леонидович | F113: М171МБИИН075 | G113: Проектирование информационных систем | H113: 3 | I113: Экзамен | J113: 2017/2018 учебный год 1 модуль | L113: 24 | M113: 1 | N113: 0 | O113: 1722551595 | P113: 2098 | R113: Бизнес-информатика | S113: =MATCH(D113,Отчет!$D$1:$D$65536,0) -> 29
A114: 1940909526 | B114: 8 | C114: МБИ172 | D114: 1940815828 | E114: Масалимов Тимур Ринатович | F114: М171МБИИН073 | G114: Проектирование информационных систем | H114: 3 | I114: Экзамен | J114: 2017/2018 учебный год 1 модуль | L114: 24 | M114: 1 | N114: 0 | O114: 1722551595 | P114: 2098 | R114: Бизнес-информатика | S114: =MATCH(D114,Отчет!$D$1:$D$65536,0) -> 123
A115: 1959232978 | B115: 9 | C115: МБИ172 | D115: 1941989121 | E115: Павлова Татьяна Михайловна | F115: М171МБИИН089 | G115: Проектирование информационных систем | H115: 3 | I115: Экзамен | J115: 2017/2018 учебный год 1 модуль | L115: 27 | M115: 1 | N115: 0 | O115: 1722551595 | P115: 2098 | R115: Бизнес-информатика | S115: =MATCH(D115,Отчет!$D$1:$D$65536,0) -> 15
A116: 1952077864 | B116: 8 | C116: МБИ173 | D116: 1941989108 | E116: Рябов Дмитрий Валерьевич | F116: М171МБИИН090 | G116: Проектирование информационных систем | H116: 3 | I116: Экзамен | J116: 2017/2018 учебный год 1 модуль | L116: 24 | M116: 1 | N116: 1 | O116: 1722551595 | P116: 2098 | R116: Бизнес-информатика | S116: =MATCH(D116,Отчет!$D$1:$D$65536,0) -> 14
A117: 1952079599 | B117: 8 | C117: МБИ173 | D117: 1941989095 | E117: Сарычев Роман Владимирович | F117: М171МБИИН091 | G117: Проектирование информационных систем | H117: 3 | I117: Экзамен | J117: 2017/2018 учебный год 1 модуль | L117: 24 | M117: 1 | N117: 0 | O117: 1722551595 | P117: 2098 | R117: Бизнес-информатика | S117: =MATCH(D117,Отчет!$D$1:$D$65536,0) -> 134
A118: 1940911993 | B118: 8 | C118: МБИ172 | D118: 1940815787 | E118: Музыка Наталия Константиновна | F118: М171МБИИН077 | G118: Проектирование информационных систем | H118: 3 | I118: Экзамен | J118: 2017/2018 учебный год 1 модуль | L118: 24 | M118: 1 | N118: 1 | O118: 1722551595 | P118: 2098 | R118: Бизнес-информатика | S118: =MATCH(D118,Отчет!$D$1:$D$65536,0) -> 31
A119: 1937474175 | B119: 8 | C119: МБИ173 | D119: 1937363495 | E119: Черепнина Дарья Олеговна | F119: М171МБИИН068 | G119: Проектирование информационных систем | H119: 3 | I119: Экзамен | J119: 2017/2018 учебный год 1 модуль | L119: 24 | M119: 1 | N119: 1 | O119: 1722551595 | P119: 2098 | R119: Бизнес-информатика | S119: =MATCH(D119,Отчет!$D$1:$D$65536,0) -> 67
A120: 1937467378 | B120: 6 | C120: МБИ171 | D120: 1937364044 | E120: Бондарь Сергей Борисович | F120: М171МБИИН015 | G120: Проектирование информационных систем | H120: 3 | I120: Экзамен | J120: 2017/2018 учебный год 1 модуль | L120: 18 | M120: 1 | N120: 1 | O120: 1722551595 | P120: 2098 | R120: Бизнес-информатика | S120: =MATCH(D120,Отчет!$D$1:$D$65536,0) -> 170
A121: 1937472281 | B121: 8 | C121: МБИ173 | D121: 1937364031 | E121: Полторак Анастасия Игоревна | F121: М171МБИИН051 | G121: Проектирование информационных систем | H121: 3 | I121: Экзамен | J121: 2017/2018 учебный год 1 модуль | L121: 24 | M121: 1 | N121: 1 | O121: 1722551595 | P121: 2098 | R121: Бизнес-информатика | S121: =MATCH(D121,Отчет!$D$1:$D$65536,0) -> 103
A122: 1937467883 | B122: 8 | C122: МБИ171 | D122: 1937364220 | E122: Бутченко Антон Олегович | F122: М171МБИИН016 | G122: Проектирование информационных систем | H122: 3 | I122: Экзамен | J122: 2017/2018 учебный год 1 модуль | L122: 24 | M122: 1 | N122: 1 | O122: 1722551595 | P122: 2098 | R122: Бизнес-информатика | S122: =MATCH(D122,Отчет!$D$1:$D$65536,0) -> 57
A123: 1937471606 | B123: 8 | C123: МБИ172 | D123: 1937363600 | E123: Конова Марина Валерьевна | F123: М171МБИИН036 | G123: Проектирование информационных систем | H123: 3 | I123: Экзамен | J123: 2017/2018 учебный год 1 модуль | L123: 24 | M123: 1 | N123: 1 | O123: 1722551595 | P123: 2098 | R123: Бизнес-информатика | S123: =MATCH(D123,Отчет!$D$1:$D$65536,0) -> 23
A124: 1937468786 | B124: 8 | C124: МБИ171 | D124: 1937363332 | E124: Войнов Евгений Вадимович | F124: М171МБИИН018 | G124: Проектирование информационных систем | H124: 3 | I124: Экзамен | J124: 2017/2018 учебный год 1 модуль | L124: 24 | M124: 1 | N124: 1 | O124: 1722551595 | P124: 2098 | R124: Бизнес-информатика | S124: =MATCH(D124,Отчет!$D$1:$D$65536,0) -> 35
A125: 1937473069 | B125: 8 | C125: МБИ173 | D125: 1937363386 | E125: Сафохин Андрей Дмитриевич | F125: М171МБИИН058 | G125: Проектирование информационных систем | H125: 3 | I125: Экзамен | J125: 2017/2018 учебный год 1 модуль | L125: 24 | M125: 1 | N125: 1 | O125: 1722551595 | P125: 2098 | R125: Бизнес-информатика | S125: =MATCH(D125,Отчет!$D$1:$D$65536,0) -> 26
A126: 1937472672 | B126: 8 | C126: МБИ173 | D126: 1937363413 | E126: Салтыкова Екатерина Андреевна | F126: М171МБИИН057 | G126: Проектирование информационных систем | H126: 3 | I126: Экзамен | J126: 2017/2018 учебный год 1 модуль | L126: 24 | M126: 1 | N126: 1 | O126: 1722551595 | P126: 2098 | R126: Бизнес-информатика | S126: =MATCH(D126,Отчет!$D$1:$D$65536,0) -> 74
A127: 1937469150 | B127: 8 | C127: МБИ171 | D127: 1937364058 | E127: Герасимов Станислав Александрович | F127: М171МБИИН023 | G127: Проектирование информационных систем | H127: 3 | I127: Экзамен | J127: 2017/2018 учебный год 1 модуль | L127: 24 | M127: 1 | N127: 1 | O127: 1722551595 | P127: 2098 | R127: Бизнес-информатика | S127: =MATCH(D127,Отчет!$D$1:$D$65536,0) -> 140
A128: 1945325581 | B128: 10 | C128: МБИ171 | D128: 1944931265 | E128: Бытка Дарья | F128: М171МБИИН093 | G128: Проектирование информационных систем | H128: 3 | I128: Экзамен | J128: 2017/2018 учебный год 1 модуль | L128: 30 | M128: 1 | N128: 1 | O128: 1722551595 | P128: 2098 | R128: Бизнес-информатика | S128: =MATCH(D128,Отчет!$D$1:$D$65536,0) -> 22
A129: 1937470321 | B129: 8 | C129: МБИ172 | D129: 1937364110 | E129: Клименко Екатерина Андреевна | F129: М171МБИИН034 | G129: Проектирование информационных систем | H129: 3 | I129: Экзамен | J129: 2017/2018 учебный год 1 модуль | L129: 24 | M129: 1 | N129: 1 | O129: 1722551595 | P129: 2098 | R129: Бизнес-информатика | S129: =MATCH(D129,Отчет!$D$1:$D$65536,0) -> 28
A130: 1937468195 | B130: 8 | C130: МБИ171 | D130: 1937364123 | E130: Вишняков Азим Азимович | F130: М171МБИИН017 | G130: Проектирование информационных систем | H130: 3 | I130: Экзамен | J130: 2017/2018 учебный год 1 модуль | L130: 24 | M130: 1 | N130: 1 | O130: 1722551595 | P130: 2098 | R130: Бизнес-информатика | S130: =MATCH(D130,Отчет!$D$1:$D$65536,0) -> 80
A131: 1937471925 | B131: 8 | C131: МБИ172 | D131: 1937364137 | E131: Медведева Мария Вячеславовна | F131: М171МБИИН045 | G131: Проектирование информационных систем | H131: 3 | I131: Экзамен | J131: 2017/2018 учебный год 1 модуль | L131: 24 | M131: 1 | N131: 1 | O131: 1722551595 | P131: 2098 | R131: Бизнес-информатика | S131: =MATCH(D131,Отчет!$D$1:$D$65536,0) -> 51
A132: 1937462943 | B132: 8 | C132: МБИ171 | D132: 1937363904 | E132: Белова Евгения Александровна | F132: М171МБИИН011 | G132: Проектирование информационных систем | H132: 3 | I132: Экзамен | J132: 2017/2018 учебный год 1 модуль | L132: 24 | M132: 1 | N132: 1 | O132: 1722551595 | P132: 2098 | R132: Бизнес-информатика | S132: =MATCH(D132,Отчет!$D$1:$D$65536,0) -> 83
A133: 1937469329 | B133: 8 | C133: МБИ171 | D133: 1937363811 | E133: Григорьева Юлия Сергеевна | F133: М171МБИИН024 | G133: Проектирование информационных систем | H133: 3 | I133: Экзамен | J133: 2017/2018 учебный год 1 модуль | L133: 24 | M133: 1 | N133: 1 | O133: 1722551595 | P133: 2098 | R133: Бизнес-информатика | S133: =MATCH(D133,Отчет!$D$1:$D$65536,0) -> 41
A134: 1942063425 | B134: 6 | C134: МИБ171 | D134: 1942008132 | E134: Нурматов Асхат | F134: М171МУБЕЗ022 | G134: Процессы и инструменты управления проектами | H134: 2 | I134: Экзамен | J134: 2017/2018 учебный год 1 модуль | L134: 12 | M134: 1 | N134: 1 | O134: 1722514289 | P134: 2098 | R134: Управление информационной безопасностью | S134: =MATCH(D134,Отчет!$D$1:$D$65536,0) -> 178
A135: 1942063393 | B135: 7 | C135: МИБ171 | D135: 1942008109 | E135: Кабыкен Даулет | F135: М171МУБЕЗ021 | G135: Процессы и инструменты управления проектами | H135: 2 | I135: Экзамен | J135: 2017/2018 учебный год 1 модуль | L135: 14 | M135: 1 | N135: 1 | O135: 1722514289 | P135: 2098 | R135: Управление информационной безопасностью | S135: =MATCH(D135,Отчет!$D$1:$D$65536,0) -> 177
A136: 1937431949 | B136: 10 | C136: МИБ171 | D136: 1937370517 | E136: Осадчая Алина Дмитриевна | F136: М171МУБЕЗ013 | G136: Процессы и инструменты управления проектами | H136: 2 | I136: Экзамен | J136: 2017/2018 учебный год 1 модуль | L136: 20 | M136: 1 | N136: 1 | O136: 1722514289 | P136: 2098 | R136: Управление информационной безопасностью | S136: =MATCH(D136,Отчет!$D$1:$D$65536,0) -> 25
A137: 1937431988 | B137: 7 | C137: МИБ171 | D137: 1937370498 | E137: Петрина Матвей Олегович | F137: М171МУБЕЗ014 | G137: Процессы и инструменты управления проектами | H137: 2 | I137: Экзамен | J137: 2017/2018 учебный год 1 модуль | L137: 14 | M137: 1 | N137: 1 | O137: 1722514289 | P137: 2098 | R137: Управление информационной безопасностью | S137: =MATCH(D137,Отчет!$D$1:$D$65536,0) -> 75
A138: 1937431590 | B138: 9 | C138: МИБ171 | D138: 1937370480 | E138: Дарбишева Патимат Гаджимурадовна | F138: М171МУБЕЗ005 | G138: Процессы и инструменты управления проектами | H138: 2 | I138: Экзамен | J138: 2017/2018 учебный год 1 модуль | L138: 18 | M138: 1 | N138: 1 | O138: 1722514289 | P138: 2098 | R138: Управление информационной безопасностью | S138: =MATCH(D138,Отчет!$D$1:$D$65536,0) -> 30
A139: 1937431775 | B139: 9 | C139: МИБ171 | D139: 1937370452 | E139: Коровин Кирилл Сергеевич | F139: М171МУБЕЗ009 | G139: Процессы и инструменты управления проектами | H139: 2 | I139: Экзамен | J139: 2017/2018 учебный год 1 модуль | L139: 18 | M139: 1 | N139: 1 | O139: 1722514289 | P139: 2098 | R139: Управление информационной безопасностью | S139: =MATCH(D139,Отчет!$D$1:$D$65536,0) -> 136
A140: 1937431821 | B140: 8 | C140: МИБ171 | D140: 1937370436 | E140: Михеева Вероника Вячеславовна | F140: М171МУБЕЗ010 | G140: Процессы и инструменты управления проектами | H140: 2 | I140: Экзамен | J140: 2017/2018 учебный год 1 модуль | L140: 16 | M140: 1 | N140: 1 | O140: 1722514289 | P140: 2098 | R140: Управление информационной безопасностью | S140: =MATCH(D140,Отчет!$D$1:$D$65536,0) -> 60
A141: 1937432295 | B141: 9 | C141: МИБ171 | D141: 1937370421 | E141: Ряховский Сергей Алексеевич | F141: М171МУБЕЗ018 | G141: Процессы и инструменты управления проектами | H141: 2 | I141: Экзамен | J141: 2017/2018 учебный год 1 модуль | L141: 18 | M141: 1 | N141: 1 | O141: 1722514289 | P141: 2098 | R141: Управление информационной безопасностью | S141: =MATCH(D141,Отчет!$D$1:$D$65536,0) -> 115
A142: 1937431631 | B142: 8 | C142: МИБ171 | D142: 1937370401 | E142: Жучков Константин Сергеевич | F142: М171МУБЕЗ006 | G142: Процессы и инструменты управления проектами | H142: 2 | I142: Экзамен | J142: 2017/2018 учебный год 1 модуль | L142: 16 | M142: 1 | N142: 1 | O142: 1722514289 | P142: 2098 | R142: Управление информационной безопасностью | S142: =MATCH(D142,Отчет!$D$1:$D$65536,0) -> 116
A143: 1937431458 | B143: 8 | C143: МИБ171 | D143: 1937370385 | E143: Бочарова Ксения Михайловна | F143: М171МУБЕЗ002 | G143: Процессы и инструменты управления проектами | H143: 2 | I143: Экзамен | J143: 2017/2018 учебный год 1 модуль | L143: 16 | M143: 1 | N143: 1 | O143: 1722514289 | P143: 2098 | R143: Управление информационной безопасностью | S143: =MATCH(D143,Отчет!$D$1:$D$65536,0) -> 53
A144: 1937431687 | B144: 8 | C144: МИБ171 | D144: 1937370369 | E144: Иванов Владислав Сергеевич | F144: М171МУБЕЗ007 | G144: Процессы и инструменты управления проектами | H144: 2 | I144: Экзамен | J144: 2017/2018 учебный год 1 модуль | L144: 16 | M144: 1 | N144: 1 | O144: 1722514289 | P144: 2098 | R144: Управление информационной безопасностью | S144: =MATCH(D144,Отчет!$D$1:$D$65536,0) -> 20
A145: 1937431521 | B145: 7 | C145: МИБ171 | D145: 1937371161 | E145: Варламова Виктория Викторовна | F145: М171МУБЕЗ003 | G145: Процессы и инструменты управления проектами | H145: 2 | I145: Экзамен | J145: 2017/2018 учебный год 1 модуль | L145: 14 | M145: 1 | N145: 1 | O145: 1722514289 | P145: 2098 | R145: Управление информационной безопасностью | S145: =MATCH(D145,Отчет!$D$1:$D$65536,0) -> 106
A146: 1937431395 | B146: 8 | C146: МИБ171 | D146: 1937371143 | E146: Белоус Илия Григорьевич | F146: М171МУБЕЗ001 | G146: Процессы и инструменты управления проектами | H146: 2 | I146: Экзамен | J146: 2017/2018 учебный год 1 модуль | L146: 16 | M146: 1 | N146: 1 | O146: 1722514289 | P146: 2098 | R146: Управление информационной безопасностью | S146: =MATCH(D146,Отчет!$D$1:$D$65536,0) -> 157
A147: 1937431867 | B147: 8 | C147: МИБ171 | D147: 1937371125 | E147: Никитин Андрей Олегович | F147: М171МУБЕЗ011 | G147: Процессы и инструменты управления проектами | H147: 2 | I147: Экзамен | J147: 2017/2018 учебный год 1 модуль | L147: 16 | M147: 1 | N147: 1 | O147: 1722514289 | P147: 2098 | R147: Управление информационной безопасностью | S147: =MATCH(D147,Отчет!$D$1:$D$65536,0) -> 141
A148: 1937432406 | B148: 8 | C148: МИБ171 | D148: 1937370596 | E148: Смирнов Данил Вадимович | F148: М171МУБЕЗ020 | G148: Процессы и инструменты управления проектами | H148: 2 | I148: Экзамен | J148: 2017/2018 учебный год 1 модуль | L148: 16 | M148: 1 | N148: 1 | O148: 1722514289 | P148: 2098 | R148: Управление информационной безопасностью | S148: =MATCH(D148,Отчет!$D$1:$D$65536,0) -> 33
A149: 1937431729 | B149: 10 | C149: МИБ171 | D149: 1937370580 | E149: Козлов Никита Вячеславович | F149: М171МУБЕЗ008 | G149: Процессы и инструменты управления проектами | H149: 2 | I149: Экзамен | J149: 2017/2018 учебный год 1 модуль | L149: 20 | M149: 1 | N149: 1 | O149: 1722514289 | P149: 2098 | R149: Управление информационной безопасностью | S149: =MATCH(D149,Отчет!$D$1:$D$65536,0) -> 118
A150: 1937432066 | B150: 7 | C150: МИБ171 | D150: 1937370565 | E150: Пупышева Анна Андреевна | F150: М171МУБЕЗ016 | G150: Процессы и инструменты управления проектами | H150: 2 | I150: Экзамен | J150: 2017/2018 учебный год 1 модуль | L150: 14 | M150: 1 | N150: 1 | O150: 1722514289 | P150: 2098 | R150: Управление информационной безопасностью | S150: =MATCH(D150,Отчет!$D$1:$D$65536,0) -> 101
A151: 1937432109 | B151: 6 | C151: МИБ171 | D151: 1937370552 | E151: Рудаков Андрей Дмитриевич | F151: М171МУБЕЗ017 | G151: Процессы и инструменты управления проектами | H151: 2 | I151: Экзамен | J151: 2017/2018 учебный год 1 модуль | L151: 12 | M151: 1 | N151: 1 | O151: 1722514289 | P151: 2098 | R151: Управление информационной безопасностью | S151: =MATCH(D151,Отчет!$D$1:$D$65536,0) -> 99
A152: 1937431910 | B152: 10 | C152: МИБ171 | D152: 1937370536 | E152: Оленева Валерия Александровна | F152: М171МУБЕЗ012 | G152: Процессы и инструменты управления проектами | H152: 2 | I152: Экзамен | J152: 2017/2018 учебный год 1 модуль | L152: 20 | M152: 1 | N152: 1 | O152: 1722514289 | P152: 2098 | R152: Управление информационной безопасностью | S152: =MATCH(D152,Отчет!$D$1:$D$65536,0) -> 86
A153: 1937431555 | B153: 7 | C153: МИБ171 | D153: 1937371178 | E153: Гультяева Полина Николаевна | F153: М171МУБЕЗ004 | G153: Процессы и инструменты управления проектами | H153: 2 | I153: Экзамен | J153: 2017/2018 учебный год 1 модуль | L153: 14 | M153: 1 | N153: 1 | O153: 1722514289 | P153: 2098 | R153: Управление информационной безопасностью | S153: =MATCH(D153,Отчет!$D$1:$D$65536,0) -> 39
A154: 1942063409 | B154: 6 | C154: МИБ171 | D154: 1942008109 | E154: Кабыкен Даулет | F154: М171МУБЕЗ021 | G154: Системный анализ и проектирование | H154: 3 | I154: Экзамен | J154: 2017/2018 учебный год 1 модуль | L154: 18 | M154: 1 | N154: 1 | O154: 1722514289 | P154: 2098 | R154: Управление информационной безопасностью | S154: =MATCH(D154,Отчет!$D$1:$D$65536,0) -> 177
A155: 1942063441 | B155: 6 | C155: МИБ171 | D155: 1942008132 | E155: Нурматов Асхат | F155: М171МУБЕЗ022 | G155: Системный анализ и проектирование | H155: 3 | I155: Экзамен | J155: 2017/2018 учебный год 1 модуль | L155: 18 | M155: 1 | N155: 1 | O155: 1722514289 | P155: 2098 | R155: Управление информационной безопасностью | S155: =MATCH(D155,Отчет!$D$1:$D$65536,0) -> 178
A156: 1942059828 | B156: 10 | C156: МБИ171 | D156: 1942008650 | E156: Гареев Эмиль Хамидович | F156: М171МБИИН085 | G156: Системный анализ и проектирование | H156: 3 | I156: Экзамен | J156: 2017/2018 учебный год 1 модуль | L156: 30 | M156: 1 | N156: 1 | O156: 1722551595 | P156: 2098 | R156: Бизнес-информатика | S156: =MATCH(D156,Отчет!$D$1:$D$65536,0) -> 144
A157: 1945325274 | B157: 10 | C157: МБИ171 | D157: 1944931265 | E157: Бытка Дарья | F157: М171МБИИН093 | G157: Системный анализ и проектирование | H157: 3 | I157: Экзамен | J157: 2017/2018 учебный год 1 модуль | L157: 30 | M157: 1 | N157: 1 | O157: 1722551595 | P157: 2098 | R157: Бизнес-информатика | S157: =MATCH(D157,Отчет!$D$1:$D$65536,0) -> 22
A158: 1945325328 | B158: 7 | C158: МБИ173 | D158: 1944935723 | E158: Ким Анатолий | F158: М171МБИИН095 | G158: Системный анализ и проектирование | H158: 3 | I158: Экзамен | J158: 2017/2018 учебный год 1 модуль | L158: 21 | M158: 1 | N158: 0 | O158: 1722551595 | P158: 2098 | R158: Бизнес-информатика | S158: =MATCH(D158,Отчет!$D$1:$D$65536,0) -> 176
A159: 1937432430 | B159: 10 | C159: МИБ171 | D159: 1937370596 | E159: Смирнов Данил Вадимович | F159: М171МУБЕЗ020 | G159: Системный анализ и проектирование | H159: 3 | I159: Экзамен | J159: 2017/2018 учебный год 1 модуль | L159: 30 | M159: 1 | N159: 1 | O159: 1722514289 | P159: 2098 | R159: Управление информационной безопасностью | S159: =MATCH(D159,Отчет!$D$1:$D$65536,0) -> 33
A160: 1937431889 | B160: 7 | C160: МИБ171 | D160: 1937371125 | E160: Никитин Андрей Олегович | F160: М171МУБЕЗ011 | G160: Системный анализ и проектирование | H160: 3 | I160: Экзамен | J160: 2017/2018 учебный год 1 модуль | L160: 21 | M160: 1 | N160: 1 | O160: 1722514289 | P160: 2098 | R160: Управление информационной безопасностью | S160: =MATCH(D160,Отчет!$D$1:$D$65536,0) -> 141
A161: 1937431424 | B161: 6 | C161: МИБ171 | D161: 1937371143 | E161: Белоус Илия Григорьевич | F161: М171МУБЕЗ001 | G161: Системный анализ и проектирование | H161: 3 | I161: Экзамен | J161: 2017/2018 учебный год 1 модуль | L161: 18 | M161: 1 | N161: 1 | O161: 1722514289 | P161: 2098 | R161: Управление информационной безопасностью | S161: =MATCH(D161,Отчет!$D$1:$D$65536,0) -> 157
A162: 1937431538 | B162: 8 | C162: МИБ171 | D162: 1937371161 | E162: Варламова Виктория Викторовна | F162: М171МУБЕЗ003 | G162: Системный анализ и проектирование | H162: 3 | I162: Экзамен | J162: 2017/2018 учебный год 1 модуль | L162: 24 | M162: 1 | N162: 1 | O162: 1722514289 | P162: 2098 | R162: Управление информационной безопасностью | S162: =MATCH(D162,Отчет!$D$1:$D$65536,0) -> 106
A163: 1937431709 | B163: 10 | C163: МИБ171 | D163: 1937370369 | E163: Иванов Владислав Сергеевич | F163: М171МУБЕЗ007 | G163: Системный анализ и проектирование | H163: 3 | I163: Экзамен | J163: 2017/2018 учебный год 1 модуль | L163: 30 | M163: 1 | N163: 1 | O163: 1722514289 | P163: 2098 | R163: Управление информационной безопасностью | S163: =MATCH(D163,Отчет!$D$1:$D$65536,0) -> 20
A164: 1937431495 | B164: 9 | C164: МИБ171 | D164: 1937370385 | E164: Бочарова Ксения Михайловна | F164: М171МУБЕЗ002 | G164: Системный анализ и проектирование | H164: 3 | I164: Экзамен | J164: 2017/2018 учебный год 1 модуль | L164: 27 | M164: 1 | N164: 1 | O164: 1722514289 | P164: 2098 | R164: Управление информационной безопасностью | S164: =MATCH(D164,Отчет!$D$1:$D$65536,0) -> 53
A165: 1937431666 | B165: 6 | C165: МИБ171 | D165: 1937370401 | E165: Жучков Константин Сергеевич | F165: М171МУБЕЗ006 | G165: Системный анализ и проектирование | H165: 3 | I165: Экзамен | J165: 2017/2018 учебный год 1 модуль | L165: 18 | M165: 1 | N165: 1 | O165: 1722514289 | P165: 2098 | R165: Управление информационной безопасностью | S165: =MATCH(D165,Отчет!$D$1:$D$65536,0) -> 116
A166: 1937432322 | B166: 8 | C166: МИБ171 | D166: 1937370421 | E166: Ряховский Сергей Алексеевич | F166: М171МУБЕЗ018 | G166: Системный анализ и проектирование | H166: 3 | I166: Экзамен | J166: 2017/2018 учебный год 1 модуль | L166: 24 | M166: 1 | N166: 1 | O166: 1722514289 | P166: 2098 | R166: Управление информационной безопасностью | S166: =MATCH(D166,Отчет!$D$1:$D$65536,0) -> 115
A167: 1937431847 | B167: 8 | C167: МИБ171 | D167: 1937370436 | E167: Михеева Вероника Вячеславовна | F167: М171МУБЕЗ010 | G167: Системный анализ и проектирование | H167: 3 | I167: Экзамен | J167: 2017/2018 учебный год 1 модуль | L167: 24 | M167: 1 | N167: 1 | O167: 1722514289 | P167: 2098 | R167: Управление информационной безопасностью | S167: =MATCH(D167,Отчет!$D$1:$D$65536,0) -> 60
A168: 1937431799 | B168: 8 | C168: МИБ171 | D168: 1937370452 | E168: Коровин Кирилл Сергеевич | F168: М171МУБЕЗ009 | G168: Системный анализ и проектирование | H168: 3 | I168: Экзамен | J168: 2017/2018 учебный год 1 модуль | L168: 24 | M168: 1 | N168: 1 | O168: 1722514289 | P168: 2098 | R168: Управление информационной безопасностью | S168: =MATCH(D168,Отчет!$D$1:$D$65536,0) -> 136
A169: 1937431610 | B169: 9 | C169: МИБ171 | D169: 1937370480 | E169: Дарбишева Патимат Гаджимурадовна | F169: М171МУБЕЗ005 | G169: Системный анализ и проектирование | H169: 3 | I169: Экзамен | J169: 2017/2018 учебный год 1 модуль | L169: 27 | M169: 1 | N169: 1 | O169: 1722514289 | P169: 2098 | R169: Управление информационной безопасностью | S169: =MATCH(D169,Отчет!$D$1:$D$65536,0) -> 30
A170: 1937432004 | B170: 8 | C170: МИБ171 | D170: 1937370498 | E170: Петрина Матвей Олегович | F170: М171МУБЕЗ014 | G170: Системный анализ и проектирование | H170: 3 | I170: Экзамен | J170: 2017/2018 учебный год 1 модуль | L170: 24 | M170: 1 | N170: 1 | O170: 1722514289 | P170: 2098 | R170: Управление информационной безопасностью | S170: =MATCH(D170,Отчет!$D$1:$D$65536,0) -> 75
A171: 1937431970 | B171: 9 | C171: МИБ171 | D171: 1937370517 | E171: Осадчая Алина Дмитриевна | F171: М171МУБЕЗ013 | G171: Системный анализ и проектирование | H171: 3 | I171: Экзамен | J171: 2017/2018 учебный год 1 модуль | L171: 27 | M171: 1 | N171: 1 | O171: 1722514289 | P171: 2098 | R171: Управление информационной безопасностью | S171: =MATCH(D171,Отчет!$D$1:$D$65536,0) -> 25
A172: 1940908699 | B172: 9 | C172: МБИ172 | D172: 1940815787 | E172: Музыка Наталия Константиновна | F172: М171МБИИН077 | G172: Системный анализ и проектирование | H172: 3 | I172: Экзамен | J172: 2017/2018 учебный год 1 модуль | L172: 27 | M172: 1 | N172: 1 | O172: 1722551595 | P172: 2098 | R172: Бизнес-информатика | S172: =MATCH(D172,Отчет!$D$1:$D$65536,0) -> 31
A173: 1937433827 | B173: 7 | C173: МЭБ171 | D173: 1937372945 | E173: Цуканов Иван Викторович | F173: М171МЭЛБЗ024 | G173: Системный анализ и проектирование | H173: 3 | I173: Экзамен | J173: 2017/2018 учебный год 1 модуль | L173: 21 | M173: 1 | N173: 1 | O173: 1722506105 | P173: 2098 | R173: Электронный бизнес | S173: =MATCH(D173,Отчет!$D$1:$D$65536,0) -> 100
A174: 1937433378 | B174: 8 | C174: МЭБ171 | D174: 1937372959 | E174: Лунин Никита Константинович | F174: М171МЭЛБЗ014 | G174: Системный анализ и проектирование | H174: 3 | I174: Экзамен | J174: 2017/2018 учебный год 1 модуль | L174: 24 | M174: 1 | N174: 1 | O174: 1722506105 | P174: 2098 | R174: Электронный бизнес | S174: =MATCH(D174,Отчет!$D$1:$D$65536,0) -> 158
A175: 1937433569 | B175: 8 | C175: МЭБ171 | D175: 1937372972 | E175: Рубцова Екатерина Андреевна | F175: М171МЭЛБЗ019 | G175: Системный анализ и проектирование | H175: 3 | I175: Экзамен | J175: 2017/2018 учебный год 1 модуль | L175: 24 | M175: 1 | N175: 1 | O175: 1722506105 | P175: 2098 | R175: Электронный бизнес | S175: =MATCH(D175,Отчет!$D$1:$D$65536,0) -> 139
A176: 1937433789 | B176: 10 | C176: МЭБ171 | D176: 1937372985 | E176: Фахрова Дина Вадимовна | F176: М171МЭЛБЗ023 | G176: Системный анализ и проектирование | H176: 3 | I176: Экзамен | J176: 2017/2018 учебный год 1 модуль | L176: 30 | M176: 1 | N176: 1 | O176: 1722506105 | P176: 2098 | R176: Электронный бизнес | S176: =MATCH(D176,Отчет!$D$1:$D$65536,0) -> 37
A177: 1937433047 | B177: 8 | C177: МЭБ171 | D177: 1937372998 | E177: Горобец Валерия Валентиновна | F177: М171МЭЛБЗ005 | G177: Системный анализ и проектирование | H177: 3 | I177: Экзамен | J177: 2017/2018 учебный год 1 модуль | L177: 24 | M177: 1 | N177: 1 | O177: 1722506105 | P177: 2098 | R177: Электронный бизнес | S177: =MATCH(D177,Отчет!$D$1:$D$65536,0) -> 42
A178: 1937433079 | B178: 9 | C178: МЭБ171 | D178: 1937373012 | E178: Давыдова Ксения Валерьевна | F178: М171МЭЛБЗ006 | G178: Системный анализ и проектирование | H178: 3 | I178: Экзамен | J178: 2017/2018 учебный год 1 модуль | L178: 27 | M178: 1 | N178: 1 | O178: 1722506105 | P178: 2098 | R178: Электронный бизнес | S178: =MATCH(D178,Отчет!$D$1:$D$65536,0) -> 97
A179: 1937433712 | B179: 10 | C179: МЭБ171 | D179: 1937373025 | E179: Суряднов Дмитрий Юрьевич | F179: М171МЭЛБЗ022 | G179: Системный анализ и проектирование | H179: 3 | I179: Экзамен | J179: 2017/2018 учебный год 1 модуль | L179: 30 | M179: 1 | N179: 1 | O179: 1722506105 | P179: 2098 | R179: Электронный бизнес | S179: =MATCH(D179,Отчет!$D$1:$D$65536,0) -> 27
A180: 1937433333 | B180: 8 | C180: МЭБ171 | D180: 1937373039 | E180: Кяргин Антон Юрьевич | F180: М171МЭЛБЗ013 | G180: Системный анализ и проектирование | H180: 3 | I180: Экзамен | J180: 2017/2018 учебный год 1 модуль | L180: 24 | M180: 1 | N180: 1 | O180: 1722506105 | P180: 2098 | R180: Электронный бизнес | S180: =MATCH(D180,Отчет!$D$1:$D$65536,0) -> 110
A181: 1937433180 | B181: 7 | C181: МЭБ171 | D181: 1937373052 | E181: Ким Дин Хо | F181: М171МЭЛБЗ009 | G181: Системный анализ и проектирование | H181: 3 | I181: Экзамен | J181: 2017/2018 учебный год 1 модуль | L181: 21 | M181: 1 | N181: 1 | O181: 1722506105 | P181: 2098 | R181: Электронный бизнес | S181: =MATCH(D181,Отчет!$D$1:$D$65536,0) -> 121
A182: 1937432920 | B182: 10 | C182: МЭБ171 | D182: 1937372839 | E182: Бабаджанян Армен Кароевич | F182: М171МЭЛБЗ002 | G182: Системный анализ и проектирование | H182: 3 | I182: Экзамен | J182: 2017/2018 учебный год 1 модуль | L182: 30 | M182: 1 | N182: 1 | O182: 1722506105 | P182: 2098 | R182: Электронный бизнес | S182: =MATCH(D182,Отчет!$D$1:$D$65536,0) -> 52
A183: 1937433859 | B183: 9 | C183: МЭБ171 | D183: 1937372852 | E183: Юлдашева Камилла Адилевна | F183: М171МЭЛБЗ025 | G183: Системный анализ и проектирование | H183: 3 | I183: Экзамен | J183: 2017/2018 учебный год 1 модуль | L183: 27 | M183: 1 | N183: 1 | O183: 1722506105 | P183: 2098 | R183: Электронный бизнес | S183: =MATCH(D183,Отчет!$D$1:$D$65536,0) -> 24
A184: 1937433608 | B184: 9 | C184: МЭБ171 | D184: 1937372866 | E184: Семенкович Софья Алексеевна | F184: М171МЭЛБЗ020 | G184: Системный анализ и проектирование | H184: 3 | I184: Экзамен | J184: 2017/2018 учебный год 1 модуль | L184: 27 | M184: 1 | N184: 1 | O184: 1722506105 | P184: 2098 | R184: Электронный бизнес | S184: =MATCH(D184,Отчет!$D$1:$D$65536,0) -> 90
A185: 1937433410 | B185: 10 | C185: МЭБ171 | D185: 1937372880 | E185: Лучкин Андрей Владимирович | F185: М171МЭЛБЗ015 | G185: Системный анализ и проектирование | H185: 3 | I185: Экзамен | J185: 2017/2018 учебный год 1 модуль | L185: 30 | M185: 1 | N185: 1 | O185: 1722506105 | P185: 2098 | R185: Электронный бизнес | S185: =MATCH(D185,Отчет!$D$1:$D$65536,0) -> 133
A186: 1937433661 | B186: 9 | C186: МЭБ171 | D186: 1937372893 | E186: Смирнов Константин Борисович | F186: М171МЭЛБЗ021 | G186: Системный анализ и проектирование | H186: 3 | I186: Экзамен | J186: 2017/2018 учебный год 1 модуль | L186: 27 | M186: 1 | N186: 1 | O186: 1722506105 | P186: 2098 | R186: Электронный бизнес | S186: =MATCH(D186,Отчет!$D$1:$D$65536,0) -> 55
A187: 1937433269 | B187: 9 | C187: МЭБ171 | D187: 1937372906 | E187: Китьян Акмаль Алексеевич | F187: М171МЭЛБЗ011 | G187: Системный анализ и проектирование | H187: 3 | I187: Экзамен | J187: 2017/2018 учебный год 1 модуль | L187: 27 | M187: 1 | N187: 1 | O187: 1722506105 | P187: 2098 | R187: Электронный бизнес | S187: =MATCH(D187,Отчет!$D$1:$D$65536,0) -> 154
A188: 1937433483 | B188: 8 | C188: МЭБ171 | D188: 1937372919 | E188: Михайлов Егор Александрович | F188: М171МЭЛБЗ017 | G188: Системный анализ и проектирование | H188: 3 | I188: Экзамен | J188: 2017/2018 учебный год 1 модуль | L188: 24 | M188: 1 | N188: 1 | O188: 1722506105 | P188: 2098 | R188: Электронный бизнес | S188: =MATCH(D188,Отчет!$D$1:$D$65536,0) -> 107
A189: 1937432884 | B189: 8 | C189: МЭБ171 | D189: 1937372932 | E189: Абросимова Анастасия Михайловна | F189: М171МЭЛБЗ001 | G189: Системный анализ и проектирование | H189: 3 | I189: Экзамен | J189: 2017/2018 учебный год 1 модуль | L189: 24 | M189: 1 | N189: 1 | O189: 1722506105 | P189: 2098 | R189: Электронный бизнес | S189: =MATCH(D189,Отчет!$D$1:$D$65536,0) -> 105
A190: 1937431573 | B190: 10 | C190: МИБ171 | D190: 1937371178 | E190: Гультяева Полина Николаевна | F190: М171МУБЕЗ004 | G190: Системный анализ и проектирование | H190: 3 | I190: Экзамен | J190: 2017/2018 учебный год 1 модуль | L190: 30 | M190: 1 | N190: 1 | O190: 1722514289 | P190: 2098 | R190: Управление информационной безопасностью | S190: =MATCH(D190,Отчет!$D$1:$D$65536,0) -> 39
A191: 1937432961 | B191: 8 | C191: МЭБ171 | D191: 1937372729 | E191: Бадамова Екатерина Дмитриевна | F191: М171МЭЛБЗ003 | G191: Системный анализ и проектирование | H191: 3 | I191: Экзамен | J191: 2017/2018 учебный год 1 модуль | L191: 24 | M191: 1 | N191: 1 | O191: 1722506105 | P191: 2098 | R191: Электронный бизнес | S191: =MATCH(D191,Отчет!$D$1:$D$65536,0) -> 47
A192: 1937433108 | B192: 9 | C192: МЭБ171 | D192: 1937372743 | E192: Джаббарова Лейла Мехман гызы | F192: М171МЭЛБЗ007 | G192: Системный анализ и проектирование | H192: 3 | I192: Экзамен | J192: 2017/2018 учебный год 1 модуль | L192: 27 | M192: 1 | N192: 1 | O192: 1722506105 | P192: 2098 | R192: Электронный бизнес | S192: =MATCH(D192,Отчет!$D$1:$D$65536,0) -> 85
A193: 1937433527 | B193: 8 | C193: МЭБ171 | D193: 1937372757 | E193: Осипова Мария Андреевна | F193: М171МЭЛБЗ018 | G193: Системный анализ и проектирование | H193: 3 | I193: Экзамен | J193: 2017/2018 учебный год 1 модуль | L193: 24 | M193: 1 | N193: 1 | O193: 1722506105 | P193: 2098 | R193: Электронный бизнес | S193: =MATCH(D193,Отчет!$D$1:$D$65536,0) -> 44
A194: 1937433222 | B194: 9 | C194: МЭБ171 | D194: 1937372770 | E194: Кирилловых Андрей Максимович | F194: М171МЭЛБЗ010 | G194: Системный анализ и проектирование | H194: 3 | I194: Экзамен | J194: 2017/2018 учебный год 1 модуль | L194: 27 | M194: 1 | N194: 1 | O194: 1722506105 | P194: 2098 | R194: Электронный бизнес | S194: =MATCH(D194,Отчет!$D$1:$D$65536,0) -> 102
A195: 1937433142 | B195: 10 | C195: МЭБ171 | D195: 1937372783 | E195: Калинин Дмитрий Владимирович | F195: М171МЭЛБЗ008 | G195: Системный анализ и проектирование | H195: 3 | I195: Экзамен | J195: 2017/2018 учебный год 1 модуль | L195: 30 | M195: 1 | N195: 1 | O195: 1722506105 | P195: 2098 | R195: Электронный бизнес | S195: =MATCH(D195,Отчет!$D$1:$D$65536,0) -> 49
A196: 1937433006 | B196: 9 | C196: МЭБ171 | D196: 1937372796 | E196: Гимашев Линар Русланович | F196: М171МЭЛБЗ004 | G196: Системный анализ и проектирование | H196: 3 | I196: Экзамен | J196: 2017/2018 учебный год 1 модуль | L196: 27 | M196: 1 | N196: 1 | O196: 1722506105 | P196: 2098 | R196: Электронный бизнес | S196: =MATCH(D196,Отчет!$D$1:$D$65536,0) -> 142
A197: 1937433300 | B197: 7 | C197: МЭБ171 | D197: 1937372811 | E197: Куратова Александра Евгеньевна | F197: М171МЭЛБЗ012 | G197: Системный анализ и проектирование | H197: 3 | I197: Экзамен | J197: 2017/2018 учебный год 1 модуль | L197: 21 | M197: 1 | N197: 1 | O197: 1722506105 | P197: 2098 | R197: Электронный бизнес | S197: =MATCH(D197,Отчет!$D$1:$D$65536,0) -> 137
A198: 1937433443 | B198: 8 | C198: МЭБ171 | D198: 1937372826 | E198: Минеева Анастасия Сергеевна | F198: М171МЭЛБЗ016 | G198: Системный анализ и проектирование | H198: 3 | I198: Экзамен | J198: 2017/2018 учебный год 1 модуль | L198: 24 | M198: 1 | N198: 1 | O198: 1722506105 | P198: 2098 | R198: Электронный бизнес | S198: =MATCH(D198,Отчет!$D$1:$D$65536,0) -> 146
A199: 1940922450 | B199: 9 | C199: МЭБ171 | D199: 1940816486 | E199: Кондращенко Ярослав Константинович | F199: М171МЭЛБЗ027 | G199: Системный анализ и проектирование | H199: 3 | I199: Экзамен | J199: 2017/2018 учебный год 1 модуль | L199: 27 | M199: 1 | N199: 0 | O199: 1722506105 | P199: 2098 | R199: Электронный бизнес | S199: =MATCH(D199,Отчет!$D$1:$D$65536,0) -> 78
A200: 1952080354 | B200: 7 | C200: МБИ173 | D200: 1941989079 | E200: Феофанов Лев Андреевич | F200: М171МБИИН092 | G200: Системный анализ и проектирование | H200: 3 | I200: Экзамен | J200: 2017/2018 учебный год 1 модуль | L200: 21 | M200: 1 | N200: 0 | O200: 1722551595 | P200: 2098 | R200: Бизнес-информатика | S200: =MATCH(D200,Отчет!$D$1:$D$65536,0) -> 172
... 2102 more rows
